Workbook

Sheet GUIDE TO KSB MAPPING
A1: GUIDE TO KSB MAPPING
A2: Applicants must show how their qualification will enable a person to demonstrate that they have attained as many of the knowledge, skills and behaviours set out in the standard as may be reasonably expected by undertaking a course of education.
A4: 1. You can map your qualification to one or more occupational standards.
A5: 2. Select the occupational standard(s) you wish to map to your qualification from the tabs in this spreadsheet. You may delete sheets/tabs that are not relevant to your qualification.
A6: 3. Please fill in the following details in cells B1-7 on your selected tab: Awarding Body/Applicant, Qualification name, Programme title if applicable.
A7: 4. Please respond to each KSB statement.
A8: 5. Populate columns C-G (E-I for ST0055, F-J for ST01325 or G-K for ST0488;) as shown in the example at the top of each standard tab.
A9: 6. Please be as specific as possible about which content in the qualification aligns to each KSB statement.
A10: 7. Submit the completed spreadsheet along with 'Qualification structure' spreadsheet and any documents you have cited in the 'EVIDENCE UPLOAD' part of the application form. Where we have capacity we are happy to feedback on early drafts of your KSB mapping.
A11: 8. Please contact HTQ.approvals@education.gov.uk if you need further help or guidance on mapping.

Sheet ST0055
B1: START HERE
B2: Awarding body/Applicant:
B3: Please type the name of awarding body/applicant here
B4: Qualification name:
B5: Please type your qualification title here
B6: Programme title if applicable:
B7: Please type the programme title here
A10: EXAMPLE OF KSB MAPPING
A11: KSB | B11: KSB Statement (this list contain the core KSBs for the Bespoke cutter and tailor occupation, plus the specific KSBs for Cutter and Tailor options) | C11: Included in: | E11: KSB coverage Select the coverage provided by the qualification from the dropdown box | F11: Where in the qualification is the relevant content? Please reference precisely where the content you are citing as evidence is within the submitted documents - Document name/Module name/Specific page number | G11: Evidence Quote or copy & paste the relevant content from your referenced qualification documents. Please provide 1 - 3 references that best evidence the KSB and only refer to content that all students will cover regardless of option choice. The information you supply in this column, in conjunction with the Supporting Comments / Rationale column (Column H) should clearly and explicitly demonstrate the declared level of KSB coverage. | H11: Supporting Comments/Rationale Where the evidence in Column G does not clearly and explicitly provide the declared level of coverage or might not be obvious to someone who is not an expert in your qualification, use this space to explain how the level of KSB coverage is achieved by the qualification content - please be specific to the wording and meaning of the KSB statement. Where a KSB is not fully met, please provide the rationale for why you feel this is not achievable. | I11: Assessment method Provide information on the method(s) used to assess this KSB and relevant assessment materials.
C12: Bespoke cutter and tailor (level 5) - Cutter | D12: Bespoke cutter and tailor (level 5) - Tailor
A13: K7 | B13: Safe and professional working practices including health, safety, environment and legislative requirements relevant to the sector, the organisation and own role | C13: YES | D13: YES | E13: FULLY MET | F13: Qualification specification, pg 14-16 Module 2: Health, safety and professional working practices, pg 6 | G13: Module 2: LO1 - Understand the importance of health and safety in the workplace. LO2 - Understand the application of health and safety legislation in the workplace. LO3 - Understand how to apply safe working practices to work activities. Indicative content: local, regional, national health & safety regulations, codes of practice, site safety, health & safety promotion, health & safety measures, PPE, manual handling, equipment management, waste disposal, risk management, risk assessment | H13: Learners will be able to show a full understanding of Health & Safety and legislative requirements relevant to the role. The indicative content on Pg 16 of the qualification specification shows they will cover Health & Safety across the wider sector, and then identify some measures that may be specific to certain organisations. Learners will also analyse the role of the employer and the environment with regards to applying Health & Safety working practices and processes. | I13: Module 2 - students will produce a written report using a brief. There is also a short answer paper. Module 2 Assessment Brief pg 7-8 refers.
A14: S23 | B14: Communicate effectively (verbal, non-verbal, written, digital) in manner relevant to the target audience | C14: YES | D14: YES | E14: FULLY MET | F14: Qualification specification, pg 21-22 Module 6: The Fundamentals of Practice, pg 12 Module 9: Personal and Professional Development Skills, pg 11 | G14: Module 6: LO2 - Know how to use digital devices and databases relevant to your workplace. Module 9: LO1 - Understand the uses of different methods of communication. LO3 - Be able to communicate effectively with different audiences. Indicative content: verbal and non-verbal communication skills, presentation skills, academic and non-academic writing style, writing skills | H14: Learners will cover verbal, non-verbal, written and digital communications, and demonstrate practical skills by completing assessment tasks which will include simulated work environments and preparing presentations targeting different audiences. Learners will develop the skills to communicate with people in a professional capacity including co-workers, line managers, clients, contractors and the public. | I14: Module 6 - case study. Module 9 - scenarios in simulated work environment, students will produce presentation. Module 9 assessment pg 4.
B19: Bespoke cutter and tailor (level 5)
B20: Return to Guide
B21: Two options are available (columns C-D). Please check if the KSB needs to be mapped against the option of your choice. If you map against two options and the evidence is different for each option please mark which evidence corresponds to which option.
A24: KSB | B24: KSB Statement (this list contain the core KSBs for the Bespoke cutter and tailor occupation, plus the specific KSBs for Cutter and Tailor options) | C24: Included in: | E24: KSB coverage Select the coverage provided by the qualification from the dropdown box | F24: Where in the qualification is the relevant content? Please reference precisely where the content you are citing as evidence is within the submitted documents - Document name/Module name/Specific page number | G24: Evidence Quote or copy & paste the relevant content from your referenced qualification documents. Please provide 1 - 3 references that best evidence the KSB and only refer to content that all students will cover regardless of option choice. The information you supply in this column, in conjunction with the Supporting Comments / Rationale column (Column H) should clearly and explicitly demonstrate the declared level of KSB coverage. | H24: Supporting Comments/Rationale Where the evidence in Column G does not clearly and explicitly provide the declared level of coverage or might not be obvious to someone who is not an expert in your qualification, use this space to explain how the level of KSB coverage is achieved by the qualification content - please be specific to the wording and meaning of the KSB statement. Where a KSB is not fully met, please provide the rationale for why you feel this is not achievable. | I24: Assessment method Provide information on the method(s) used to assess this KSB and relevant assessment materials. | K24: AB Score | L24: IM Score | M24: Mitigations | N24: CoE Score | O24: Outstanding Requirement | P24: IM Comment | Q24: IM moderation | R24: G7 QA | S24: IM G7 Response | T24: Conclusion
B25: Knowledge | C25: Bespoke cutter and tailor (level 5) - Cutter | D25: Bespoke cutter and tailor (level 5) - Tailor
A26: K1 | B26: Material manufacturing processes from raw material to finished product. How they meet British and international standards. | C26: YES | D26: YES | K26: =IF(E26:E67 = "FULLY MET",1,IF(E26:E67 = "PARTIALLY MET",0.5,IF(E26:E67 = "NOT MET",0,))) -> 0 | M26: NONE | N26: =IF(L26=1,1,IF(L26=0.5,0.5,IF(L26=0,0))) -> 0 | O26: =IF(N26=1,"NONE",IF(N26=0.5,"PARTIAL",IF(N26=0,"FULL"))) -> FULL
A27: K2 | B27: Properties and characteristics of cloth. | C27: YES | D27: YES | K27: 0 | M27: NONE | N27: 0 | O27: FULL
A28: K3 | B28: Professional client relationship management. For example, liaising on suitability of cloth, materials and trimmings when agreeing specifications for bespoke garments. | C28: YES | D28: YES | K28: 0 | M28: NONE | N28: 0 | O28: FULL
A29: K4 | B29: Properties and characteristics of trimmings. | C29: YES | D29: YES | K29: 0 | M29: NONE | N29: 0 | O29: FULL
A30: K5 | B30: Data protection laws and confidentiality protocols for the setting and the impact on the role including social media policy. | C30: YES | D30: YES | K30: 0 | M30: NONE | N30: 0 | O30: FULL
A31: K6 | B31: How to interpret figure and posture to produce a bespoke fit. | C31: YES | D31: YES | K31: 0 | M31: NONE | N31: 0 | O31: FULL
A32: K7 | B32: The range of bespoke individual styles and their suitability to clients. | C32: YES | D32: YES | K32: 0 | M32: NONE | N32: 0 | O32: FULL
A33: K8 | B33: Roles and responsibilities of the cutter and tailor. Agreed communication channels with the client. | C33: YES | D33: YES | K33: 0 | M33: NONE | N33: 0 | O33: FULL
A34: K9 | B34: Bespoke cutting and tailoring terminology. | C34: YES | D34: YES | K34: 0 | M34: NONE | N34: 0 | O34: FULL
A35: K10 | B35: Recognising defects in materials and the impact on the bespoke garment. | C35: YES | D35: YES | K35: 0 | M35: NONE | N35: 0 | O35: FULL
A36: K11 | B36: Quality control throughout the bespoke process. | C36: YES | D36: YES | K36: 0 | M36: NONE | N36: 0 | O36: FULL
A37: K12 | B37: How to maintain and safely use tools, equipment and machinery. | C37: YES | D37: YES | K37: 0 | M37: NONE | N37: 0 | O37: FULL
A38: K13 | B38: The importance of timely workflow to meet the agreed specification. | C38: YES | D38: YES | K38: 0 | M38: NONE | N38: 0 | O38: FULL
A39: K14 | B39: Efficient use of resources, time and materials. | C39: YES | D39: YES | K39: 0 | M39: NONE | N39: 0 | O39: FULL
A40: K15 | B40: Health and safety at work legislation. | C40: YES | D40: YES | K40: 0 | M40: NONE | N40: 0 | O40: FULL
A41: K16 | B41: How to handle and store bespoke cut components in the making process. | C41: YES | D41: YES | K41: 0 | M41: NONE | N41: 0 | O41: FULL
A42: K17 | B42: How to handle and store finished bespoke garments. | C42: YES | D42: YES | K42: 0 | M42: NONE | N42: 0 | O42: FULL
A43: K18 | B43: Processes to log and number each bespoke garment and methods of tracking for example an order book or checklist. | C43: YES | D43: YES | K43: 0 | M43: NONE | N43: 0 | O43: FULL
A44: K19 | B44: Quality assurance including formal recording methods for alterations to a bespoke garment. | C44: YES | D44: YES | K44: 0 | M44: NONE | N44: 0 | O44: FULL
A45: K20 | B45: How to decide if an adjustment or repair is both sustainable and viable to a bespoke garment. | C45: YES | D45: YES | K45: 0 | M45: NONE | N45: 0 | O45: FULL
A46: K21 | B46: The availability and cost of bespoke materials. | C46: YES | D46: YES | K46: 0 | M46: NONE | N46: 0 | O46: FULL
A47: K22 | B47: How to establish component costs. | C47: YES | D47: NO | K47: 0 | M47: NONE | N47: 0 | O47: FULL
A48: K23 | B48: Costing of a bespoke garment. | C48: YES | D48: NO | K48: 0 | M48: NONE | N48: 0 | O48: FULL
A49: K24 | B49: How to measure a client and observe figure variations for the construction of a bespoke cutting pattern. | C49: YES | D49: NO | K49: 0 | M49: NONE | N49: 0 | O49: FULL
A50: K25 | B50: How to organise purchasing of materials. | C50: YES | D50: NO | K50: 0 | M50: NONE | N50: 0 | O50: FULL
A51: K26 | B51: Stock control methods such as taking inventories. | C51: YES | D51: NO | K51: 0 | M51: NONE | N51: 0 | O51: FULL
A52: K27 | B52: The bespoke process to meet the specification. | C52: YES | D52: NO | K52: 0 | M52: NONE | N52: 0 | O52: FULL
A53: K28 | B53: Technical planning of the client commission for a range of bespoke garments, such as jackets, trousers, waistcoats. | C53: YES | D53: NO | K53: 0 | M53: NONE | N53: 0 | O53: FULL
A54: K29 | B54: Bespoke cutter review and approval processes in relation to the specification for example in relation to fit, quality and cost. | C54: YES | D54: NO | K54: 0 | M54: NONE | N54: 0 | O54: FULL
A55: K30 | B55: Client aftercare. | C55: YES | D55: NO | K55: 0 | M55: NONE | N55: 0 | O55: FULL
A56: K31 | B56: How to interpret body measurements and figure variations to inform the construction of bespoke cutting patterns. | C56: YES | D56: NO | K56: 0 | M56: NONE | N56: 0 | O56: FULL
A57: K32 | B57: Preparation of component bespoke garment parts. | C57: YES | D57: NO | K57: 0 | M57: NONE | N57: 0 | O57: FULL
A58: K33 | B58: How to prepare and produce economical lay plans. | C58: YES | D58: NO | K58: 0 | M58: NONE | N58: 0 | O58: FULL
A59: K34 | B59: Inspection of garment components and finished garments at defined process stages. | C59: YES | D59: NO | K59: 0 | M59: NONE | N59: 0 | O59: FULL
A60: K35 | B60: How to read and interpret cutter instructions. | C60: NO | D60: YES | K60: 0 | M60: NONE | N60: 0 | O60: FULL
A61: K36 | B61: Different work methods, appropriate to the use of a range of materials. | C61: NO | D61: YES | K61: 0 | M61: NONE | N61: 0 | O61: FULL
A62: K37 | B62: Construction details of style elements including pocket types such as double jetted, welted or slanted. | C62: NO | D62: YES | K62: 0 | M62: NONE | N62: 0 | O62: FULL
A63: K38 | B63: How to baste and re-baste bespoke garments through a process of adjustments. | C63: NO | D63: YES | K63: 0 | M63: NONE | N63: 0 | O63: FULL
A64: K39 | B64: How to complete and press bespoke garments to specification. | C64: NO | D64: YES | K64: 0 | M64: NONE | N64: 0 | O64: FULL
A65: K40 | B65: Figure and body types and how these impact on the bespoke garment construction process. | C65: NO | D65: YES | K65: 0 | M65: NONE | N65: 0 | O65: FULL
A66: K41 | B66: How to adapt bespoke features to different body proportions. | C66: NO | D66: YES | K66: 0 | M66: NONE | N66: 0 | O66: FULL
A67: K42 | B67: Adjustments as instructed by the cutter. | C67: NO | D67: YES | K67: 0 | M67: NONE | N67: 0 | O67: FULL
B68: Skills
A69: S1 | B69: Produce a bespoke specification to deliver against agreed client requirements such as design, material and timeframe. | C69: YES | D69: YES | K69: =IF(E69:E105 = "FULLY MET",1,IF(E69:E105 = "PARTIALLY MET",0.5,IF(E69:E105 = "NOT MET",0,))) -> 0 | M69: NONE | N69: =IF(L69=1,1,IF(L69=0.5,0.5,IF(L69=0,0))) -> 0 | O69: =IF(N69=1,"NONE",IF(N69=0.5,"PARTIAL",IF(N69=0,"FULL"))) -> FULL
A70: S2 | B70: Professional communication with stakeholders. | C70: YES | D70: YES | K70: 0 | M70: NONE | N70: 0 | O70: FULL
A71: S3 | B71: Interpret specification, managing expectations both internally and externally. | C71: YES | D71: YES | K71: 0 | M71: NONE | N71: 0 | O71: FULL
A72: S4 | B72: Professional communication with colleagues to ensure a productive work environment. | C72: YES | D72: YES | K72: 0 | M72: NONE | N72: 0 | O72: FULL
A73: S5 | B73: Maintain comprehensive records relating to the sale and production of bespoke garments. | C73: YES | D73: YES | K73: 0 | M73: NONE | N73: 0 | O73: FULL
A74: S6 | B74: Identify defects in materials and take the correct course of action to rectify. | C74: YES | D74: YES | K74: 0 | M74: NONE | N74: 0 | O74: FULL
A75: S7 | B75: Select materials suitable for intended use. | C75: YES | D75: YES | K75: 0 | M75: NONE | N75: 0 | O75: FULL
A76: S8 | B76: Diagnose and improve on issues against the specification of the bespoke garment. | C76: YES | D76: YES | K76: 0 | M76: NONE | N76: 0 | O76: FULL
A77: S9 | B77: Store tools and equipment for example shears and scissors. | C77: YES | D77: YES | K77: 0 | M77: NONE | N77: 0 | O77: FULL
A78: S10 | B78: Identify and minimise hazards and control risks in the workplace to maintain work procedures ensuring health and safety requirements are met. | C78: YES | D78: YES | K78: 0 | M78: NONE | N78: 0 | O78: FULL
A79: S11 | B79: Select, prepare, and test tools and machinery, including adjustments for different materials. | C79: YES | D79: YES | K79: 0 | M79: NONE | N79: 0 | O79: FULL
A80: S12 | B80: Correctly handle and store bespoke cut components in the making process. | C80: YES | D80: YES | K80: 0 | M80: NONE | N80: 0 | O80: FULL
A81: S13 | B81: Evaluate the effectiveness of the bespoke cutting and tailoring process. | C81: YES | D81: YES | K81: 0 | M81: NONE | N81: 0 | O81: FULL
A82: S14 | B82: Handle and store finished bespoke garments in a safe and suitable location ready for client fitting or collection. | C82: YES | D82: YES | K82: 0 | M82: NONE | N82: 0 | O82: FULL
A83: S15 | B83: Assess bespoke garment and implement the appropriate method to remedy a problem. | C83: YES | D83: YES | K83: 0 | M83: NONE | N83: 0 | O83: FULL
A84: S16 | B84: Carry out cost calculation for a bespoke garment. | C84: YES | D84: NO | K84: 0 | M84: NONE | N84: 0 | O84: FULL
A85: S17 | B85: Carry out bespoke selling and after care. | C85: YES | D85: NO | K85: 0 | M85: NONE | N85: 0 | O85: FULL
A86: S18 | B86: Take a full set of body measurements. Observe and record client posture and figure. | C86: YES | D86: NO | K86: 0 | M86: NONE | N86: 0 | O86: FULL
A87: S19 | B87: Implement efficient and effective use of resources, time and materials. | C87: YES | D87: YES | K87: 0 | M87: NONE | N87: 0 | O87: FULL
A88: S20 | B88: Organise purchasing of materials. | C88: YES | D88: NO | K88: 0 | M88: NONE | N88: 0 | O88: FULL
A89: S21 | B89: Record materials on receipt from suppliers. Manage stock levels. | C89: YES | D89: NO | K89: 0 | M89: NONE | N89: 0 | O89: FULL
A90: S22 | B90: Coordination of the bespoke process to meet the specification. | C90: YES | D90: NO | K90: 0 | M90: NONE | N90: 0 | O90: FULL
A91: S23 | B91: Produce bespoke cutting patterns according to customer requirements. | C91: YES | D91: NO | K91: 0 | M91: NONE | N91: 0 | O91: FULL
A92: S24 | B92: Lay out cutting patterns to create an efficient lay plan and mark the cloth. | C92: YES | D92: NO | K92: 0 | M92: NONE | N92: 0 | O92: FULL
A93: S25 | B93: Cut cloth and trimmings for the bespoke garment. Include sufficient inlays to ensure the bespoke garment has longevity. | C93: YES | D93: NO | K93: 0 | M93: NONE | N93: 0 | O93: FULL
A94: S26 | B94: Create bundle with all component parts including the specification for onward progression storing any spare cloth and trimmings. | C94: YES | D94: NO | K94: 0 | M94: NONE | N94: 0 | O94: FULL
A95: S27 | B95: Carry out fittings ensuring that the bespoke garment meets the specification such as adapting to figure and posture. | C95: YES | D95: NO | K95: 0 | M95: NONE | N95: 0 | O95: FULL
A96: S28 | B96: Adjust bespoke cutting patterns following fittings. | C96: YES | D96: NO | K96: 0 | M96: NONE | N96: 0 | O96: FULL
A97: S29 | B97: Disassemble a garment and amend construction as per cutters instructions. | C97: NO | D97: YES | K97: 0 | M97: NONE | N97: 0 | O97: FULL
A98: S30 | B98: Inspect bespoke garment components to confirm it is complete and meets the specification. Report issues to cutter. | C98: NO | D98: YES | K98: 0 | M98: NONE | N98: 0 | O98: FULL
A99: S31 | B99: Make proportionate style details to suit body shape such as lapel size. | C99: NO | D99: YES | K99: 0 | M99: NONE | N99: 0 | O99: FULL
A100: S32 | B100: Interpret body shapes to achieve a correctly proportioned bespoke garment. | C100: NO | D100: YES | K100: 0 | M100: NONE | N100: 0 | O100: FULL
A101: S33 | B101: Prepare the bespoke garment by hand for fitting. For example, canvas a coat. | C101: NO | D101: YES | K101: 0 | M101: NONE | N101: 0 | O101: FULL
A102: S34 | B102: Prepare the bespoke garment for any required additional fittings having completed all adjustments as instructed by the cutter such as pocket placement and size. | C102: NO | D102: YES | K102: 0 | M102: NONE | N102: 0 | O102: FULL
A103: S35 | B103: Construct style elements for a bespoke garment including making pockets such as double jetted, welted or slanted. | C103: NO | D103: YES | K103: 0 | M103: NONE | N103: 0 | O103: FULL
A104: S36 | B104: Complete final adjustments and hand stich buttonholes. Hand finish the bespoke garment inside and out. | C104: NO | D104: YES | K104: 0 | M104: NONE | N104: 0 | O104: FULL
A105: S37 | B105: Inspect the quality of construction during the bespoke process. | C105: NO | D105: YES | K105: 0 | M105: NONE | N105: 0 | O105: FULL
B106: Behaviours
A107: B1 | B107: Commitment to maintaining high standards of precision and excellence. | C107: YES | D107: YES | K107: =IF(E107:E110 = "FULLY MET",1,IF(E107:E110 = "PARTIALLY MET",0.5,IF(E107:E110 = "NOT MET",0,))) -> 0 | M107: NONE | N107: =IF(L107=1,1,IF(L107=0.5,0.5,IF(L107=0,0))) -> 0 | O107: =IF(N107=1,"NONE",IF(N107=0.5,"PARTIAL",IF(N107=0,"FULL"))) -> FULL
A108: B2 | B108: Focus on the requirements of the customer in a respectful and professional manner. | C108: YES | D108: YES | K108: 0 | M108: NONE | N108: =IF(L108=1,1,IF(L108=0.5,0.5,IF(L108=0,0))) -> 0 | O108: =IF(N108=1,"NONE",IF(N108=0.5,"PARTIAL",IF(N108=0,"FULL"))) -> FULL
A109: B3 | B109: Strong work ethic and commitment in order to meet the standards required. | C109: YES | D109: YES | K109: 0 | M109: NONE | N109: =IF(L109=1,1,IF(L109=0.5,0.5,IF(L109=0,0))) -> 0 | O109: =IF(N109=1,"NONE",IF(N109=0.5,"PARTIAL",IF(N109=0,"FULL"))) -> FULL
A110: B4 | B110: Recognition and appreciation of equality and diversity in the workplace. | C110: YES | D110: YES | K110: 0 | M110: NONE | N110: =IF(L110=1,1,IF(L110=0.5,0.5,IF(L110=0,0))) -> 0 | O110: =IF(N110=1,"NONE",IF(N110=0.5,"PARTIAL",IF(N110=0,"FULL"))) -> FULL
K113: Bespoke cutter and tailor (level 5) - Cutter
K115: Gross score | L115: =SUM(, L26:L59, L69:L96, L107:L110) -> 0 | M115: Net Score | N115: =SUM(, N26:N59, N69:N96, N107:N110) -> 0
K116: total KSB coverage | L116: =L115/N119 -> 0 | M116: total CoE KSB coverage | N116: =N115/N122 -> 0
M119: total KSBs | N119: 66
M120: fully mitigated | N120: 0
M121: partially mitigated | N121: 0
M122: net KSB | N122: =N119-N120-(N121*0.5) -> 66
K125: Bespoke cutter and tailor (level 5) - Tailor
K127: Gross score | L127: =SUM(, L26:L46, L60:L67, L69:L83, L87, L97:L105, L107:L110) -> 0 | M127: Net Score | N127: =SUM(, N26:N46, N60:N67, N69:N83, N87, N97:N105, N107:N110) -> 0
K128: total KSB coverage | L128: =L127/N131 -> 0 | M128: total CoE KSB coverage | N128: =N127/N134 -> 0
M131: total KSBs | N131: 58
M132: fully mitigated | N132: 0
M133: partially mitigated | N133: 0
M134: net KSB | N134: =N131-N132-(N133*0.5) -> 58
K137: TOTAL FOR ALL KBSs
K139: Gross score | L139: =SUM(L26:L110) -> 0 | M139: Net Score | N139: =SUM(N26:N110) -> 0
K140: total KSB coverage | L140: =L139/N143 -> 0 | M140: total CoE KSB coverage | N140: =N139/N146 -> 0
M143: total KSBs | N143: 83
M144: fully mitigated | N144: 0
M145: partially mitigated | N145: 0
M146: net KSB | N146: =N143-N144-(N145*0.5) -> 83

Sheet ST0425
B1: START HERE
B2: Awarding body/Applicant:
B3: Please type the name of awarding body/applicant here
B4: Qualification name:
B5: Please type your qualification title here
B6: Programme title if applicable:
B7: Please type the programme title here
A10: EXAMPLE OF KSB MAPPING
A11: KSB | B11: KSB Statement | C11: KSB coverage Select the coverage provided by the qualification from the dropdown box | D11: Where in the qualification is the relevant content? Please reference precisely where the content you are citing as evidence is within the submitted documents - Document name/Module name/Specific page number | E11: Evidence Quote or copy & paste the relevant content from your referenced qualification documents. Please provide 1 - 3 references that best evidence the KSB and only refer to content that all students will cover regardless of option choice. The information you supply in this column, in conjunction with the Supporting Comments / Rationale column (Column F) should clearly and explicitly demonstrate the declared level of KSB coverage. | F11: Supporting Comments/Rationale Where the evidence in Column E does not clearly and explicitly provide the declared level of coverage or might not be obvious to someone who is not an expert in your qualification, use this space to explain how the level of KSB coverage is achieved by the qualification content - please be specific to the wording and meaning of the KSB statement. Where a KSB is not fully met, please provide the rationale for why you feel this is not achievable. | G11: Assessment method Provide information on the method(s) used to assess this KSB and relevant assessment materials.
A12: K7 | B12: Safe and professional working practices including health, safety, environment and legislative requirements relevant to the sector, the organisation and own role | C12: FULLY MET | D12: Qualification specification, pg 14-16 Module 2: Health, safety and professional working practices, pg 6 | E12: Module 2: LO1 - Understand the importance of health and safety in the workplace. LO2 - Understand the application of health and safety legislation in the workplace. LO3 - Understand how to apply safe working practices to work activities. Indicative content: local, regional, national health & safety regulations, codes of practice, site safety, health & safety promotion, health & safety measures, PPE, manual handling, equipment management, waste disposal, risk management, risk assessment | F12: Learners will be able to show a full understanding of Health & Safety and legislative requirements relevant to the role. The indicative content on Pg 16 of the qualification specification shows they will cover Health & Safety across the wider sector, and then identify some measures that may be specific to certain organisations. Learners will also analyse the role of the employer and the environment with regards to applying Health & Safety working practices and processes. | G12: Module 2 - students will produce a written report using a brief. There is also a short answer paper. Module 2 Assessment Brief pg 7-8 refers.
A13: S23 | B13: Communicate effectively (verbal, non-verbal, written, digital) in manner relevant to the target audience | C13: FULLY MET | D13: Qualification specification, pg 21-22 Module 6: The Fundamentals of Practice, pg 12 Module 9: Personal and Professional Development Skills, pg 11 | E13: Module 6: LO2 - Know how to use digital devices and databases relevant to your workplace. Module 9: LO1 - Understand the uses of different methods of communication. LO3 - Be able to communicate effectively with different audiences. Indicative content: verbal and non-verbal communication skills, presentation skills, academic and non-academic writing style, writing skills | F13: Learners will cover verbal, non-verbal, written and digital communications, and demonstrate practical skills by completing assessment tasks which will include simulated work environments and preparing presentations targeting different audiences. Learners will develop the skills to communicate with people in a professional capacity including co-workers, line managers, clients, contractors and the public. | G13: Module 6 - case study. Module 9 - scenarios in simulated work environment, students will produce presentation. Module 9 assessment pg 4.
B18: Broadcast and media systems technician (level 5)
B19: Return to Guide
A20: KSB | B20: KSB Statement | C20: KSB coverage Select the coverage provided by the qualification from the dropdown box | D20: Where in the qualification is the relevant content? Please reference precisely where the content you are citing as evidence is within the submitted documents - Document name/Module name/Specific page number | E20: Evidence Quote or copy & paste the relevant content from your referenced qualification documents. Please provide 1 - 3 references that best evidence the KSB and only refer to content that all students will cover regardless of option choice. The information you supply in this column, in conjunction with the Supporting Comments / Rationale column (Column F) should clearly and explicitly demonstrate the declared level of KSB coverage. | F20: Supporting Comments/Rationale Where the evidence in Column E does not clearly and explicitly provide the declared level of coverage or might not be obvious to someone who is not an expert in your qualification, use this space to explain how the level of KSB coverage is achieved by the qualification content - please be specific to the wording and meaning of the KSB statement. Where a KSB is not fully met, please provide the rationale for why you feel this is not achievable. | G20: Assessment method Provide information on the method(s) used to assess this KSB and relevant assessment materials. | I20: AB Score | J20: IM Score | K20: Mitigations | L20: CoE Score | M20: Outstanding Requirement | N20: IM Comment | O20: IM moderation | P20: G7 QA | Q20: IM G7 Response | R20: Conclusion
B21: Knowledge
A22: K1 | B22: Know where to source the correct maintenance procedures and schedules relevant to own role | I22: =IF(C22:C63 = "FULLY MET",1,IF(C22:C63 = "PARTIALLY MET",0.5,IF(C22:C63 = "NOT MET",0,))) -> 0 | K22: NONE | L22: =IF(J22=1,1,IF(J22=0.5,0.5,IF(J22=0,0))) -> 0 | M22: =IF(L22=1,"NONE",IF(L22=0.5,"PARTIAL",IF(L22=0,"FULL"))) -> FULL
A23: K2 | B23: How to obtain functional and specification documentation such as equipment manuals, system specifications, manufacturers’ maintenance plans, design documents, fault logs/databases, regulatory requirements, functional specifications and operational handbooks for maintenance | I23: 0 | K23: NONE | L23: 0 | M23: FULL
A24: K3 | B24: Understand the maintenance characteristics that are particularly critical to the broadcast and media equipment or system, including electrical, electronic, mechanical, software, environmental and ergonomics | I24: 0 | K24: NONE | L24: 0 | M24: FULL
A25: K4 | B25: Understand the safe systems of work and isolation for working on antennas, high voltage, power boards, switchboards and uninterruptable power supplies | I25: 0 | K25: NONE | L25: 0 | M25: FULL
A26: K5 | B26: Know and understand the factors affecting decisions about ongoing maintenance versus replacement, including cost, downtime, reliability | I26: 0 | K26: NONE | L26: 0 | M26: FULL
A27: K6 | B27: How to connect broadcast systems and equipment to IT systems | I27: 0 | K27: NONE | L27: 0 | M27: FULL
A28: K7 | B28: Understand the types of faults that may occur in broadcast and media systems and how to identify these | I28: 0 | K28: NONE | L28: 0 | M28: FULL
A29: K8 | B29: How to conduct root cause analysis | I29: 0 | K29: NONE | L29: 0 | M29: FULL
A30: K9 | B30: Why it is important to minimise equipment and systems downtime, and to solve problems quickly e.g. loss of service and potential reputational damage, or financial penalties for breach of service level agreements | I30: 0 | K30: NONE | L30: 0 | M30: FULL
A31: K10 | B31: Know and understand own Business Continuity procedures | I31: 0 | K31: PARTIAL | L31: =IF(J31=1,0.5,IF(J31=0.5,0.5,IF(J31=0,0))) -> 0 | M31: =IF(L31=0.5,"NONE",IF(L31=0,"PARTIAL")) -> PARTIAL
A32: K11 | B32: Know and understand own workplace Health and Safety legislation, processes and procedures | I32: 0 | K32: NONE | L32: 0 | M32: FULL
A33: K12 | B33: Know how to safely use and maintain Personal Protective Equipment (PPE), tools and equipment | I33: 0 | K33: NONE | L33: 0 | M33: FULL
A34: K13 | B34: Understand the company procedures for reporting hazards and risks to the appropriate personnel | I34: 0 | K34: NONE | L34: 0 | M34: FULL
A35: K14 | B35: Understand the main hazards to personal health and safety within own role such as electrical voltage and radio frequencies (RF) | I35: 0 | K35: NONE | L35: 0 | M35: FULL
A36: K15 | B36: Understand the different types and uses of broadcast and media systems test equipment such as analysers or meters | I36: 0 | K36: NONE | L36: 0 | M36: FULL
A37: K16 | B37: Know and understand the importance of keeping testing equipment clean and accurately calibrated | I37: 0 | K37: NONE | L37: =IF(J37=1,1,IF(J37=0.5,0.5,IF(J37=0,0))) -> 0 | M37: FULL
A38: K17 | B38: Understand the correct procedures for storing and transporting testing equipment | I38: 0 | K38: NONE | L38: 0 | M38: FULL
A39: K18 | B39: Know and understand how to use the testing equipment correctly and safely | I39: 0 | K39: NONE | L39: 0 | M39: FULL
A40: K19 | B40: Know when, and who to report faults with the testing equipment to | I40: 0 | K40: NONE | L40: 0 | M40: FULL
A41: K20 | B41: Understand elementary analogue and digital electronic techniques | I41: 0 | K41: NONE | L41: 0 | M41: FULL
A42: K21 | B42: Understand the fundamentals of digital signals, coding techniques, modulation and multiplexing techniques and fibre optic communication | I42: 0 | K42: NONE | L42: 0 | M42: FULL
A43: K22 | B43: Understand Radio Frequency (RF) communication principles, wave propagation, transmission media and RF radiators | I43: 0 | K43: NONE | L43: 0 | M43: FULL
A44: K23 | B44: Understand the principles, techniques and applications of computer network systems, ethernet and IP technology, network components, server systems, virtualisation and remote access technology | I44: 0 | K44: NONE | L44: 0 | M44: FULL
A45: K24 | B45: Understand the purpose, benefits, limitations and risks of the different equipment and software required for broadcast and media systems and when it is appropriate to use them | I45: 0 | K45: NONE | L45: 0 | M45: FULL
A46: K25 | B46: How to operate the broadcast and media systems, software and equipment required | I46: 0 | K46: NONE | L46: 0 | M46: FULL
A47: K26 | B47: Know the types of problem that can occur with the operation of broadcast and media systems such as loss of power, signal degradation, overheating etc. | I47: 0 | K47: NONE | L47: 0 | M47: FULL
A48: K27 | B48: How to prioritise operational problems and why it is important to solve a problem quickly | I48: 0 | K48: NONE | L48: 0 | M48: FULL
A49: K28 | B49: Understand the technical quality of service requirements that affect your work | I49: 0 | K49: NONE | L49: 0 | M49: FULL
A50: K29 | B50: Understand how to adapt communication style and supporting information to meet audience requirements | I50: 0 | K50: NONE | L50: 0 | M50: FULL
A51: K30 | B51: Understand how to identify and advise on the most effective and realistic solution in each circumstance, taking constraints into account | I51: 0 | K51: NONE | L51: 0 | M51: FULL
A52: K31 | B52: Understand the importance of and methods for, organising and storing information such as written descriptions, diagrams, note taking from meetings, feedback from reports, presentations and change control | I52: 0 | K52: NONE | L52: 0 | M52: FULL
A53: K32 | B53: Understand how to use the organisational recording systems correctly | I53: 0 | K53: NONE | L53: 0 | M53: FULL
A54: K33 | B54: Understand broadcast technical operations, technical systems and equipment and the context of their use in workplace activities | I54: 0 | K54: NONE | L54: 0 | M54: FULL
A55: K34 | B55: Understand the broadcasting and media systems industry; its heritage and its future direction. | I55: 0 | K55: NONE | L55: 0 | M55: FULL
A56: K35 | B56: Know how to use resources, such as online sites, to update knowledge and find out what others are doing | I56: 0 | K56: NONE | L56: 0 | M56: FULL
A57: K36 | B57: Understand how and when to ask questions to improve your practice | I57: 0 | K57: NONE | L57: 0 | M57: FULL
A58: K37 | B58: Understand the principles of design, architecture, development and maintenance of broadcast and media systems and networks | I58: 0 | K58: NONE | L58: 0 | M58: FULL
A59: K38 | B59: Understand the brief for the work and how to interpret requirements and parameters as provided by the customer or line manager, or project manager and/or senior engineer | I59: 0 | K59: NONE | L59: 0 | M59: FULL
A60: K39 | B60: Understand the file transfer protocols, relating to broadcast and media systems, software and equipment including file access rights | I60: 0 | K60: NONE | L60: 0 | M60: FULL
A61: K40 | B61: Know how to connect broadcast and media systems and equipment to networks | I61: 0 | K61: NONE | L61: 0 | M61: FULL
A62: K41 | B62: Know and understand the appropriate formats required for different broadcast methods such as Joint Photographic Experts Group Standard (JPEG) or Moving Picture Experts Group Standard (MPEG) files or MP3 (audio format of MPEG) | I62: 0 | K62: NONE | L62: 0 | M62: FULL
A63: K42 | B63: How to protect content and the importance of information security | I63: 0 | K63: NONE | L63: 0 | M63: FULL
B64: Skills
A65: S1 | B65: Conduct planned maintenance on all systems in line with organisational procedures | I65: =IF(C65:C103 = "FULLY MET",1,IF(C65:C103 = "PARTIALLY MET",0.5,IF(C65:C103 = "NOT MET",0,))) -> 0 | K65: PARTIAL | L65: =IF(J65=1,0.5,IF(J65=0.5,0.5,IF(J65=0,0))) -> 0 | M65: =IF(L65=0.5,"NONE",IF(L65=0,"PARTIAL")) -> PARTIAL
A66: S2 | B66: Ensure maintenance work complies with all relevant regulations and guidelines | I66: 0 | K66: NONE | L66: =IF(J66=1,1,IF(J66=0.5,0.5,IF(J66=0,0))) -> 0 | M66: =IF(L66=1,"NONE",IF(L66=0.5,"PARTIAL",IF(L66=0,"FULL"))) -> FULL
A67: S3 | B67: Take prompt action to respond to and diagnose any problems encountered | I67: 0 | K67: NONE | L67: 0 | M67: FULL
A68: S4 | B68: Record maintenance carried out and actions taken in appropriate systems in line with organisational procedures | I68: 0 | K68: PARTIAL | L68: =IF(J68=1,0.5,IF(J68=0.5,0.5,IF(J68=0,0))) -> 0 | M68: =IF(L68=0.5,"NONE",IF(L68=0,"PARTIAL")) -> PARTIAL
A69: S5 | B69: Identify problems to broadcast media service or systems, conducting in-depth root cause analysis and fault finding as required | I69: 0 | K69: NONE | L69: =IF(J69=1,1,IF(J69=0.5,0.5,IF(J69=0,0))) -> 0 | M69: =IF(L69=1,"NONE",IF(L69=0.5,"PARTIAL",IF(L69=0,"FULL"))) -> FULL
A70: S6 | B70: Take ownership to resolve and/or escalate faults and incidents following the correct company procedures | I70: 0 | K70: PARTIAL | L70: =IF(J70=1,0.5,IF(J70=0.5,0.5,IF(J70=0,0))) -> 0 | M70: =IF(L70=0.5,"NONE",IF(L70=0,"PARTIAL")) -> PARTIAL
A71: S7 | B71: Communicate fault conditions in a timely manner, to colleagues, customers and service suppliers | I71: 0 | K71: NONE | L71: =IF(J71=1,1,IF(J71=0.5,0.5,IF(J71=0,0))) -> 0 | M71: =IF(L71=1,"NONE",IF(L71=0.5,"PARTIAL",IF(L71=0,"FULL"))) -> FULL
A72: S8 | B72: Log faults and report them to the relevant operational business area | I72: 0 | K72: PARTIAL | L72: =IF(J72=1,0.5,IF(J72=0.5,0.5,IF(J72=0,0))) -> 0 | M72: =IF(L72=0.5,"NONE",IF(L72=0,"PARTIAL")) -> PARTIAL
A73: S9 | B73: Comply with organisational Health and Safety policies, practices and procedures | I73: 0 | K73: PARTIAL | L73: =IF(J73=1,0.5,IF(J73=0.5,0.5,IF(J73=0,0))) -> 0 | M73: =IF(L73=0.5,"NONE",IF(L73=0,"PARTIAL")) -> PARTIAL
A74: S10 | B74: Identify, mitigate and report any incidents or risks to the appropriate personnel | I74: 0 | K74: PARTIAL | L74: =IF(J74=1,0.5,IF(J74=0.5,0.5,IF(J74=0,0))) -> 0 | M74: =IF(L74=0.5,"NONE",IF(L74=0,"PARTIAL")) -> PARTIAL
A75: S11 | B75: Complete Risk Assessments for tasks and work activities within and relevant to, own role | I75: 0 | K75: NONE | L75: =IF(J75=1,1,IF(J75=0.5,0.5,IF(J75=0,0))) -> 0 | M75: =IF(L75=1,"NONE",IF(L75=0.5,"PARTIAL",IF(L75=0,"FULL"))) -> FULL
A76: S12 | B76: Work safely and follow procedures for working on antennas, high voltage, power boards, switchboards and with uninterruptable power supplies | I76: 0 | K76: NONE | L76: 0 | M76: FULL
A77: S13 | B77: Identify and obtain the appropriate test equipment required | I77: 0 | K77: NONE | L77: 0 | M77: FULL
A78: S14 | B78: Ensure the equipment is in working condition and calibrated correctly | I78: 0 | K78: NONE | L78: 0 | M78: FULL
A79: S15 | B79: Safely transport and store the testing equipment in line with organisational procedures | I79: 0 | K79: PARTIAL | L79: =IF(J79=1,0.5,IF(J79=0.5,0.5,IF(J79=0,0))) -> 0 | M79: =IF(L79=0.5,"NONE",IF(L79=0,"PARTIAL")) -> PARTIAL
A80: S16 | B80: Report any faults with the test equipment, rectifying these if appropriate | I80: 0 | K80: NONE | L80: =IF(J80=1,1,IF(J80=0.5,0.5,IF(J80=0,0))) -> 0 | M80: =IF(L80=1,"NONE",IF(L80=0.5,"PARTIAL",IF(L80=0,"FULL"))) -> FULL
A81: S17 | B81: Test and evaluate the performance of electronic circuits | I81: 0 | K81: NONE | L81: 0 | M81: FULL
A82: S18 | B82: Use software and hardware diagnostics tools and connectivity protocols to interface and integrate broadcast systems | I82: 0 | K82: NONE | L82: 0 | M82: FULL
A83: S19 | B83: Use test equipment correctly, evaluating results and taking the appropriate course of action | I83: 0 | K83: NONE | L83: 0 | M83: FULL
A84: S20 | B84: Interconnect and trouble-shoot video and audio signals | I84: 0 | K84: NONE | L84: 0 | M84: FULL
A85: S21 | B85: Identify and advise on the most effective and realistic solution in each circumstance taking into account constraints | I85: 0 | K85: NONE | L85: 0 | M85: FULL
A86: S22 | B86: Use a level of technical terminology that meets the technical understanding of the person receiving the advice | I86: 0 | K86: NONE | L86: 0 | M86: FULL
A87: S23 | B87: Adapt your communications style according to the audience | I87: 0 | K87: NONE | L87: 0 | M87: FULL
A88: S24 | B88: Use supporting information that aids others’ understanding of advice when required such as system diagrams | I88: 0 | K88: NONE | L88: 0 | M88: FULL
A89: S25 | B89: Check that the advice given complies with all relevant regulations and guidelines | I89: 0 | K89: NONE | L89: 0 | M89: FULL
A90: S26 | B90: Ensure the delivery of systems/services to customers in line with agree service levels | I90: 0 | K90: PARTIAL | L90: =IF(J90=1,0.5,IF(J90=0.5,0.5,IF(J90=0,0))) -> 0 | M90: =IF(L90=0.5,"NONE",IF(L90=0,"PARTIAL")) -> PARTIAL
A91: S27 | B91: Comply with organisational systems for reporting and recording information | I91: 0 | K91: PARTIAL | L91: =IF(J91=1,0.5,IF(J91=0.5,0.5,IF(J91=0,0))) -> 0 | M91: =IF(L91=0.5,"NONE",IF(L91=0,"PARTIAL")) -> PARTIAL
A92: S28 | B92: Ensure records relating to planned and corrective maintenance are correctly completed and updated | I92: 0 | K92: NONE | L92: =IF(J92=1,1,IF(J92=0.5,0.5,IF(J92=0,0))) -> 0 | M92: =IF(L92=1,"NONE",IF(L92=0.5,"PARTIAL",IF(L92=0,"FULL"))) -> FULL
A93: S29 | B93: Create and maintain a professional development record to document progress against key competencies and enable effective learning from the workplace | I93: 0 | K93: PARTIAL | L93: =IF(J93=1,0.5,IF(J93=0.5,0.5,IF(J93=0,0))) -> 0 | M93: =IF(L93=0.5,"NONE",IF(L93=0,"PARTIAL")) -> PARTIAL
A94: S30 | B94: S30: Seek help or advice from appropriate people or information sources when limitations in your knowledge or expertise will impact on your work | I94: 0 | K94: NONE | L94: =IF(J94=1,1,IF(J94=0.5,0.5,IF(J94=0,0))) -> 0 | M94: =IF(L94=1,"NONE",IF(L94=0.5,"PARTIAL",IF(L94=0,"FULL"))) -> FULL
A95: S31 | B95: Seek out learning and networking opportunities that will be most beneficial to you | I95: 0 | K95: NONE | L95: 0 | M95: FULL
A96: S32 | B96: S32: Remain flexible, adaptable and positive to new directions, creative requirements and technical developments | I96: 0 | K96: NONE | L96: 0 | M96: FULL
A97: S33 | B97: Check that specifications are capable of being implemented and operated | I97: 0 | K97: NONE | L97: 0 | M97: FULL
A98: S34 | B98: Implement upgrades or modifications in line with organisational procedures and specification | I98: 0 | K98: PARTIAL | L98: =IF(J98=1,0.5,IF(J98=0.5,0.5,IF(J98=0,0))) -> 0 | M98: =IF(L98=0.5,"NONE",IF(L98=0,"PARTIAL")) -> PARTIAL
A99: S35 | B99: Check ingested data or transport streams against workflow requirements | I99: 0 | K99: NONE | L99: =IF(J99=1,1,IF(J99=0.5,0.5,IF(J99=0,0))) -> 0 | M99: =IF(L99=1,"NONE",IF(L99=0.5,"PARTIAL",IF(L99=0,"FULL"))) -> FULL
A100: S36 | B100: Operate broadcast and media systems using methods and procedures that meet requirements | I100: 0 | K100: NONE | L100: 0 | M100: FULL
A101: S37 | B101: Comply with the organisational processes for ensuring physical and electronic security of data and systems | I101: 0 | K101: PARTIAL | L101: =IF(J101=1,0.5,IF(J101=0.5,0.5,IF(J101=0,0))) -> 0 | M101: =IF(L101=0.5,"NONE",IF(L101=0,"PARTIAL")) -> PARTIAL
A102: S38 | B102: Play out or export media in line with requirements | I102: 0 | K102: NONE | L102: =IF(J102=1,1,IF(J102=0.5,0.5,IF(J102=0,0))) -> 0 | M102: =IF(L102=1,"NONE",IF(L102=0.5,"PARTIAL",IF(L102=0,"FULL"))) -> FULL
A103: S39 | B103: Check that outputs of broadcast and media systems comply with specifications, regulations, standards, guidelines and procedures | I103: 0 | K103: NONE | L103: 0 | M103: FULL
B104: Behaviours
A105: B1 | B105: A strong work ethic and commitment to meet the standards required | I105: =IF(C105:C110 = "FULLY MET",1,IF(C105:C110 = "PARTIALLY MET",0.5,IF(C105:C110 = "NOT MET",0,))) -> 0 | K105: NONE | L105: =IF(J105=1,1,IF(J105=0.5,0.5,IF(J105=0,0))) -> 0 | M105: =IF(L105=1,"NONE",IF(L105=0.5,"PARTIAL",IF(L105=0,"FULL"))) -> FULL
A106: B2 | B106: Desire to expand technical knowledge, and passion for working with broadcast and media systems | I106: 0 | K106: NONE | L106: 0 | M106: FULL
A107: B3 | B107: Thinking creatively and logically to solve technical issues - contributing to a process of continual improvement | I107: 0 | K107: NONE | L107: 0 | M107: FULL
A108: B4 | B108: Recognition and compliance with workplace legislation, policies and procedures | I108: 0 | K108: PARTIAL | L108: =IF(J108=1,0.5,IF(J108=0.5,0.5,IF(J108=0,0))) -> 0 | M108: =IF(L108=0.5,"NONE",IF(L108=0,"PARTIAL")) -> PARTIAL
A109: B5 | B109: Displaying confidence in their approach to communicating with different audiences | I109: 0 | K109: PARTIAL | L109: =IF(J109=1,0.5,IF(J109=0.5,0.5,IF(J109=0,0))) -> 0 | M109: PARTIAL
A110: B6 | B110: Building and maintaining positive relationships with colleagues, customers and suppliers | I110: 0 | K110: PARTIAL | L110: =IF(J110=1,0.5,IF(J110=0.5,0.5,IF(J110=0,0))) -> 0 | M110: PARTIAL
I113: Gross score | J113: =SUM(J22:J110) -> 0 | K113: Net Score | L113: =SUM(L22:L110) -> 0
I114: total KSB coverage | J114: =J113/L117 -> 0 | K114: total CoE KSB coverage | L114: =L113/L120 -> 0
K117: total KSBs | L117: 87
K118: fully mitigated | L118: 0
K119: partialy mitigated | L119: 16
K120: net KSB | L120: =L117-L118-(L119*0.5) -> 79

Sheet ST0488
B1: START HERE
B2: Awarding body/Applicant:
B3: Please type the name of awarding body/applicant here
B4: Qualification name:
B5: Please type your qualification title here
B6: Programme title if applicable:
B7: Please type the programme title here
A9: EXAMPLE OF KSB MAPPING
A10: KSB | B10: KSB Statement (this list contains the core KSBs for the Junior animator occupation, plus the specific KSBs for 2D Animation, Stop-Motion Animation, 3D Animation and Interactive media and immersive reality options) | C10: Included in: | G10: KSB coverage Select the coverage provided by the qualification from the dropdown box | H10: Where in the qualification is the relevant content? Please reference precisely where the content you are citing as evidence is within the submitted documents - Document name/Module name/Specific page number | I10: Evidence Quote or copy & paste the relevant content from your referenced qualification documents. Please provide 1 - 3 references that best evidence the KSB and only refer to content that all students will cover regardless of option choice. The information you supply in this column, in conjunction with the Supporting Comments / Rationale column (Column H) should clearly and explicitly demonstrate the declared level of KSB coverage. | J10: Supporting Comments/Rationale Where the evidence in Column G does not clearly and explicitly provide the declared level of coverage or might not be obvious to someone who is not an expert in your qualification, use this space to explain how the level of KSB coverage is achieved by the qualification content - please be specific to the wording and meaning of the KSB statement. Where a KSB is not fully met, please provide the rationale for why you feel this is not achievable. | K10: Assessment method Provide information on the method(s) used to assess this KSB and relevant assessment materials.
C11: Junior animator (level 4) - 2D Animation | D11: Junior animator (level 4) - Stop-motion Animation | E11: Junior animator (level 4) - 3D Animation | F11: Junior animator (level 4) - Interactive media and immersive reality
A12: K7 | B12: Safe and professional working practices including health, safety, environment and legislative requirements relevant to the sector, the organisation and own role | C12: YES | D12: YES | E12: YES | F12: YES | G12: FULLY MET | H12: Qualification specification, pg 14-16 Module 2: Health, safety and professional working practices, pg 6 | I12: Module 2: LO1 - Understand the importance of health and safety in the workplace. LO2 - Understand the application of health and safety legislation in the workplace. LO3 - Understand how to apply safe working practices to work activities. Indicative content: local, regional, national health & safety regulations, codes of practice, site safety, health & safety promotion, health & safety measures, PPE, manual handling, equipment management, waste disposal, risk management, risk assessment | J12: Learners will be able to show a full understanding of Health & Safety and legislative requirements relevant to the role. The indicative content on Pg 16 of the qualification specification shows they will cover Health & Safety across the wider sector, and then identify some measures that may be specific to certain organisations. Learners will also analyse the role of the employer and the environment with regards to applying Health & Safety working practices and processes. | K12: Module 2 - students will produce a written report using a brief. There is also a short answer paper. Module 2 Assessment Brief pg 7-8 refers.
A13: S23 | B13: Communicate effectively (verbal, non-verbal, written, digital) in manner relevant to the target audience | C13: YES | D13: YES | E13: YES | F13: YES | G13: FULLY MET | H13: Qualification specification, pg 21-22 Module 6: The Fundamentals of Practice, pg 12 Module 9: Personal and Professional Development Skills, pg 11 | I13: Module 6: LO2 - Know how to use digital devices and databases relevant to your workplace. Module 9: LO1 - Understand the uses of different methods of communication. LO3 - Be able to communicate effectively with different audiences. Indicative content: verbal and non-verbal communication skills, presentation skills, academic and non-academic writing style, writing skills | J13: Learners will cover verbal, non-verbal, written and digital communications, and demonstrate practical skills by completing assessment tasks which will include simulated work environments and preparing presentations targeting different audiences. Learners will develop the skills to communicate with people in a professional capacity including co-workers, line managers, clients, contractors and the public. | K13: Module 6 - case study. Module 9 - scenarios in simulated work environment, students will produce presentation. Module 9 assessment pg 4.
B17: Junior animator (level 4)
B18: Return to Guide
B19: Four options are available (columns C-F). Please check if the KSB needs to be mapped against the option of your choice. If you map against two or three options and the evidence is different for each option please mark which evidence corresponds to which option.
A21: KSB | B21: KSB Statement (this list contains the core KSBs for the Junior animator occupation, plus the specific KSBs for 2D Animation, Stop-Motion Animation, 3D Animation and Interactive media and immersive reality options) | C21: Included in: | G21: KSB coverage Select the coverage provided by the qualification from the dropdown box | H21: Where in the qualification is the relevant content? Please reference precisely where the content you are citing as evidence is within the submitted documents - Document name/Module name/Specific page number | I21: Evidence Quote or copy & paste the relevant content from your referenced qualification documents. Please provide 1 - 3 references that best evidence the KSB and only refer to content that all students will cover regardless of option choice. The information you supply in this column, in conjunction with the Supporting Comments / Rationale column (Column H) should clearly and explicitly demonstrate the declared level of KSB coverage. | J21: Supporting Comments/Rationale Where the evidence in Column G does not clearly and explicitly provide the declared level of coverage or might not be obvious to someone who is not an expert in your qualification, use this space to explain how the level of KSB coverage is achieved by the qualification content - please be specific to the wording and meaning of the KSB statement. Where a KSB is not fully met, please provide the rationale for why you feel this is not achievable. | K21: Assessment method Provide information on the method(s) used to assess this KSB and relevant assessment materials. | M21: AB Score | N21: IM Score | O21: Mitigations | P21: CoE Score | Q21: Outstanding Requirement | R21: IM Comment | S21: IM moderation | T21: G7 QA | U21: IM G7 Response | V21: Conclusion
B22: Knowledge | C22: Junior animator (level 4) - 2D Animation | D22: Junior animator (level 4) - Stop-Motion Animation | E22: Junior animator (level 4) - 3D Animation | F22: Junior animator (level 4) - Interactive media and immersive reality
A23: K1 | B23: How to use own surroundings and research of visual, written and empirical and physical references to inspire and inform animated creations | C23: YES | D23: YES | E23: YES | F23: YES | M23: =IF(G23:G96 = "FULLY MET",1,IF(G23:G96 = "PARTIALLY MET",0.5,IF(G23:G96 = "NOT MET",0,))) -> 0 | O23: NONE | P23: =IF(N23=1,1,IF(N23=0.5,0.5,IF(N23=0,0))) -> 0 | Q23: =IF(P23=1,"NONE",IF(P23=0.5,"PARTIAL",IF(P23=0,"FULL"))) -> FULL
A24: K2 | B24: Know and understand the traditional and digital methods for producing animated sequences such as hand drawn or computer generated animation | C24: YES | D24: YES | E24: YES | F24: YES | M24: 0 | O24: NONE | P24: =IF(N24=1,1,IF(N24=0.5,0.5,IF(N24=0,0))) -> 0 | Q24: FULL
A25: K3 | B25: Understand the brand guidelines or subject matter of the animation to be created | C25: YES | D25: YES | E25: YES | F25: YES | M25: 0 | O25: NONE | P25: 0 | Q25: FULL
A26: K4 | B26: Understand the history and development of the animation industry and animation genres including, but not limited to, children's, family, adult, experimental, information content | C26: YES | D26: YES | E26: YES | F26: YES | M26: 0 | O26: NONE | P26: 0 | Q26: FULL
A27: K5 | B27: Know and understand the different animation styles, core techniques and technologies used such as 2D, 3D and Stop Motion | C27: YES | D27: YES | E27: YES | F27: YES | M27: 0 | O27: NONE | P27: 0 | Q27: FULL
A28: K6 | B28: Understand the dynamics of the animation sector and current and future trends in animation | C28: YES | D28: YES | E28: YES | F28: YES | M28: 0 | O28: NONE | P28: 0 | Q28: FULL
A29: K7 | B29: Know and understand own responsibility for identifying and reporting risks relating to Health and Safety | C29: YES | D29: YES | E29: YES | F29: YES | M29: 0 | O29: NONE | P29: 0 | Q29: FULL
A30: K8 | B30: How to work effectively, both individually or as part of a team | C30: YES | D30: YES | E30: YES | F30: YES | M30: 0 | O30: NONE | P30: 0 | Q30: FULL
A31: K9 | B31: Understand the context within the production of own role, the department they are working in, and the subsequent stages of the workflow process | C31: YES | D31: YES | E31: YES | F31: YES | M31: 0 | O31: NONE | P31: 0 | Q31: FULL
A32: K10 | B32: Understand the animation production pipeline and how own role interacts with this | C32: YES | D32: YES | E32: YES | F32: YES | M32: 0 | O32: NONE | P32: 0 | Q32: FULL
A33: K11 | B33: Know and understand the technical and production parameters and client requirements for the project, such as; the schedule, timelines, budget, animation medium, frame count, field size, aspect ratio and format | C33: YES | D33: YES | E33: YES | F33: YES | M33: 0 | O33: NONE | P33: 0 | Q33: FULL
A34: K12 | B34: Understand the particular operational and technical standards of others departments and the challenges they face | C34: YES | D34: YES | E34: YES | F34: YES | M34: 0 | O34: NONE | P34: 0 | Q34: FULL
A35: K13 | B35: How good, timely communication can contribute to productive working relationships with clients and customers | C35: YES | D35: YES | E35: YES | F35: YES | M35: 0 | O35: NONE | P35: 0 | Q35: FULL
A36: K14 | B36: Understand the brand, market position, departments, communication methods, financial processes, culture and ways of working for animation productions you work on | C36: YES | D36: YES | E36: YES | F36: YES | M36: 0 | O36: NONE | P36: 0 | Q36: FULL
A37: K15 | B37: How live action reference can influence your ability to animate characters/objects/creatures | C37: YES | D37: YES | E37: YES | F37: YES | M37: 0 | O37: NONE | P37: 0 | Q37: FULL
A38: K16 | B38: Understand character/object/creature development and your role in that development | C38: YES | D38: YES | E38: YES | F38: YES | M38: 0 | O38: NONE | P38: 0 | Q38: FULL
A39: K17 | B39: The principles of anatomy and how these affect movement | C39: YES | D39: YES | E39: YES | F39: YES | M39: 0 | O39: NONE | P39: 0 | Q39: FULL
A40: K18 | B40: Understand shot construction and composition | C40: YES | D40: YES | E40: YES | F40: YES | M40: 0 | O40: NONE | P40: 0 | Q40: FULL
A41: K19 | B41: Understand shot breakdown and continuity | C41: YES | D41: YES | E41: YES | F41: YES | M41: 0 | O41: NONE | P41: =IF(N41=1,1,IF(N41=0.5,0.5,IF(N41=0,0))) -> 0 | Q41: FULL
A42: K20 | B42: How to present ideas and information effectively using story/playboards or story telling | C42: YES | D42: YES | E42: YES | F42: YES | M42: 0 | O42: NONE | P42: 0 | Q42: FULL
A43: K21 | B43: How to use language which is clear, avoids jargon and is appropriate to the audience | C43: YES | D43: YES | E43: YES | F43: YES | M43: 0 | O43: NONE | P43: 0 | Q43: FULL
A44: K22 | B44: Understand the effect your voice tone, pace, volume and body language can have on your audience during presentations | C44: YES | D44: YES | E44: YES | F44: YES | M44: 0 | O44: NONE | P44: 0 | Q44: FULL
A45: K23 | B45: How to encourage questions in both oral and written presentations | C45: YES | D45: YES | E45: YES | F45: YES | M45: 0 | O45: NONE | P45: 0 | Q45: FULL
A46: K24 | B46: Understand the creative style, overall concept and level of animation required for the production | C46: YES | D46: YES | E46: YES | F46: YES | M46: 0 | O46: NONE | P46: 0 | Q46: FULL
A47: K25 | B47: Understand any performance guidelines for the characters they are working on, such as how they may react and behave in different situations | C47: YES | D47: YES | E47: YES | F47: YES | M47: 0 | O47: NONE | P47: 0 | Q47: FULL
A48: K26 | B48: Understand the logic of physical motion, weight, balance, texture and form | C48: YES | D48: YES | E48: YES | F48: YES | M48: 0 | O48: NONE | P48: 0 | Q48: FULL
A49: K27 | B49: Understand character movement and lip sync | C49: YES | D49: YES | E49: YES | F49: YES | M49: 0 | O49: NONE | P49: 0 | Q49: FULL
A50: K28 | B50: Know how to use the relevant graphics, animation and compositing software for an animation production | C50: YES | D50: YES | E50: YES | F50: YES | M50: 0 | O50: NONE | P50: 0 | Q50: FULL
A51: K29 | B51: How to maintain record systems of drawings and associated information | C51: YES | D51: YES | E51: YES | F51: YES | M51: 0 | O51: NONE | P51: 0 | Q51: FULL
A52: K30 | B52: Understand the possibilities and constraints offered by the software you are using for the animation production | C52: YES | D52: YES | E52: YES | F52: YES | M52: 0 | O52: NONE | P52: 0 | Q52: FULL
A53: K31 | B53: Understand the importance of maintaining data security and following your organisation's guidelines and file structures for storage | C53: YES | D53: YES | E53: YES | F53: YES | M53: 0 | O53: NONE | P53: 0 | Q53: FULL
A54: K32 | B54: The legal and regulatory requirements which apply to animated assets such as copyright and intellectual property rights | C54: YES | D54: YES | E54: YES | F54: YES | M54: 0 | O54: NONE | P54: 0 | Q54: FULL
A55: K33 | B55: Understand the rendering requirements for the production | C55: YES | D55: YES | E55: YES | F55: YES | M55: 0 | O55: NONE | P55: 0 | Q55: FULL
A56: K34 | B56: Understand the intended appearance and required degree of realism of the finished image you are working on | C56: YES | D56: YES | E56: YES | F56: YES | M56: 0 | O56: NONE | P56: 0 | Q56: FULL
A57: K35 | B57: Know and understand the factors affecting render speed, such as size of texture map, ray and reflection depth, global illumination, ambient occlusion, anti-aliasing, blurry reflections or area shadows | C57: YES | D57: YES | E57: YES | F57: YES | M57: 0 | O57: NONE | P57: 0 | Q57: FULL
A58: K36 | B58: Know and understand rendering techniques, such as: ray tracing, texture mapping to define the colour, texture and reflectance of objects and environments, exposure depth of field to alter the sense of depth or focus on objects and environments, toon rendering and stereo rendering | C58: YES | D58: YES | E58: YES | F58: YES | M58: 0 | O58: NONE | P58: 0 | Q58: FULL
A59: K37 | B59: How to use z-buffering techniques to simulate a sense of perspective to describe the distance between objects and environments | C59: YES | D59: YES | E59: YES | F59: YES | M59: 0 | O59: NONE | P59: 0 | Q59: FULL
A60: K38 | B60: How creative blurring and transforms give the appearance of live-action | C60: YES | D60: YES | E60: YES | F60: YES | M60: 0 | O60: NONE | P60: 0 | Q60: FULL
A61: K39 | B61: Understand the surface properties and how shading models can be applied to represent variations in different materials | C61: YES | D61: YES | E61: YES | F61: YES | M61: 0 | O61: NONE | P61: 0 | Q61: FULL
A62: K40 | B62: How to save and duplicate render settings across multiple files | C62: YES | D62: YES | E62: YES | F62: YES | M62: 0 | O62: NONE | P62: 0 | Q62: FULL
A63: K41 | B63: Understand the principles of 2D animation | C63: YES | D63: NO | E63: NO | F63: NO | M63: 0 | O63: NONE | P63: 0 | Q63: FULL
A64: K42 | B64: How to use interpolated morphing to make animation more fluid | C64: YES | D64: NO | E64: NO | F64: NO | M64: 0 | O64: NONE | P64: 0 | Q64: FULL
A65: K43 | B65: How rotoscopy is used in 2D animation | C65: YES | D65: NO | E65: NO | F65: NO | M65: 0 | O65: NONE | P65: 0 | Q65: FULL
A66: K44 | B66: Understand the concepts of key animation and in-between animation | C66: YES | D66: NO | E66: NO | F66: NO | M66: 0 | O66: NONE | P66: 0 | Q66: FULL
A67: K45 | B67: Understand shot breakdown and continuity | C67: YES | D67: NO | E67: NO | F67: NO | M67: 0 | O67: NONE | P67: 0 | Q67: FULL
A68: K46 | B68: Recognise and understand the drawing skills that are needed for the animation or artwork being produced | C68: YES | D68: NO | E68: NO | F68: NO | M68: 0 | O68: NONE | P68: 0 | Q68: FULL
A69: K47 | B69: Understand the traditional and digital methods for producing animated sequences | C69: YES | D69: NO | E69: NO | F69: NO | M69: 0 | O69: NONE | P69: 0 | Q69: FULL
A70: K48 | B70: Understand how to use industry-standard 2D animation software | C70: YES | D70: NO | E70: NO | F70: NO | M70: 0 | O70: NONE | P70: 0 | Q70: FULL
A71: K49 | B71: Understand the use of 2D vector graphics and manipulation of images | C71: YES | D71: NO | E71: NO | F71: NO | M71: 0 | O71: NONE | P71: 0 | Q71: FULL
A72: K50 | B72: Understand why it is important to evaluate progress and seek feedback on your work in animation | C72: YES | D72: YES | E72: YES | F72: YES | M72: 0 | O72: NONE | P72: 0 | Q72: FULL
A73: K51 | B73: The principles of stop motion animation | C73: NO | D73: YES | E73: NO | F73: NO | M73: 0 | O73: NONE | P73: 0 | Q73: FULL
A74: K52 | B74: Understand the media and techniques used in stop motion animation | C74: NO | D74: YES | E74: NO | F74: NO | M74: 0 | O74: NONE | P74: 0 | Q74: FULL
A75: K53 | B75: The materials used and how they are resistant to movement e.g. joints, stability, plasticine preservation | C75: NO | D75: YES | E75: NO | F75: NO | M75: 0 | O75: NONE | P75: 0 | Q75: FULL
A76: K54 | B76: How to improvise rigging and when it is appropriate for you to do so | C76: NO | D76: YES | E76: YES | F76: NO | M76: 0 | O76: NONE | P76: 0 | Q76: FULL
A77: K55 | B77: Understand the capabilities and limitations of models | C77: NO | D77: YES | E77: NO | F77: NO | M77: 0 | O77: NONE | P77: 0 | Q77: FULL
A78: K56 | B78: Understand the importance of lighting, camera angles and frame rates for stop motion | C78: NO | D78: YES | E78: NO | F78: NO | M78: 0 | O78: NONE | P78: 0 | Q78: FULL
A79: K57 | B79: Understand shot construction, composition, breakdown and continuity of shots | C79: NO | D79: YES | E79: NO | F79: NO | M79: 0 | O79: NONE | P79: =IF(N79=1,1,IF(N79=0.5,0.5,IF(N79=0,0))) -> 0 | Q79: FULL
A80: K58 | B80: Understand the development of the animated character through its movement and timing | C80: NO | D80: YES | E80: NO | F80: NO | M80: 0 | O80: NONE | P80: 0 | Q80: FULL
A81: K59 | B81: Understand the need to work methodically in an organised and concentrated manner, paying attention to detail | C81: NO | D81: YES | E81: NO | F81: NO | M81: 0 | O81: NONE | P81: 0 | Q81: FULL
A82: K60 | B82: Understand the principles and techniques of digital animation, such as hi and low resolution modelling, meshing, colouring, matte making, digital sculpting of 3D animation | C82: NO | D82: YES | E82: YES | F82: NO | M82: 0 | O82: NONE | P82: 0 | Q82: FULL
A83: K61 | B83: Understand the physics of motion and resistance | C83: NO | D83: YES | E83: YES | F83: NO | M83: 0 | O83: NONE | P83: 0 | Q83: FULL
A84: K62 | B84: Know and understand the techniques, issues, costs and output of motion-capture, and when it is appropriate to use it | C84: NO | D84: YES | E84: YES | F84: NO | M84: 0 | O84: NONE | P84: 0 | Q84: FULL
A85: K63 | B85: How to use industry-standard 3D animation software | C85: NO | D85: YES | E85: YES | F85: NO | M85: 0 | O85: NONE | P85: 0 | Q85: FULL
A86: K64 | B86: How to achieve different looks in computer generated assets including shininess, reflectivity, texture, roughness | C86: NO | D86: NO | E86: YES | F86: NO | M86: 0 | O86: NONE | P86: 0 | Q86: FULL
A87: K65 | B87: Understand the physical properties and mechanics of particle systems, structures, cloths, fluids and crowds and how they react and respond to different stimuli | C87: NO | D87: NO | E87: YES | F87: NO | M87: 0 | O87: NONE | P87: 0 | Q87: FULL
A88: K66 | B88: How to create renditions of naturalistic physical or magical phenomena such as fire, water, clouds, smoke and physical destruction | C88: NO | D88: NO | E88: YES | F88: NO | M88: 0 | O88: NONE | P88: 0 | Q88: =IF(P88=1,"NONE",IF(P88=0.5,"PARTIAL",IF(P88=0,"FULL"))) -> FULL
A89: K67 | B89: Understand the requirements and expectations of other team members who will use the animations you create | C89: NO | D89: NO | E89: YES | F89: YES | M89: 0 | O89: NONE | P89: 0 | Q89: FULL
A90: K68 | B90: Understand relevant standards and conventions relating to user-interface design | C90: NO | D90: NO | E90: NO | F90: YES | M90: 0 | O90: NONE | P90: 0 | Q90: FULL
A91: K69 | B91: Understand the principles of interaction design, especially regarding usability and accessibility | C91: NO | D91: NO | E91: NO | F91: YES | M91: 0 | O91: NONE | P91: 0 | Q91: FULL
A92: K70 | B92: When and why an animation might be cut-off prematurely, and how to minimise the risk of this adversely affecting the user’s experience of the product | C92: NO | D92: NO | E92: NO | F92: YES | M92: 0 | O92: NONE | P92: 0 | Q92: FULL
A93: K71 | B93: Understand the impact on own work of technical parameters such as the processing power, memory, bandwidth, screen size, resolution, colour depth, physical user interface etc. of the target platform(s) | C93: NO | D93: NO | E93: NO | F93: YES | M93: 0 | O93: NONE | P93: 0 | Q93: FULL
A94: K72 | B94: Which of the events or user interactions will trigger your animations | C94: NO | D94: NO | E94: NO | F94: YES | M94: 0 | O94: NONE | P94: 0 | Q94: FULL
A95: K73 | B95: Understand how each animation will be used in the product such as whether it will play once, loop several times or indefinitely, etc.) | C95: NO | D95: NO | E95: NO | F95: YES | M95: 0 | O95: NONE | P95: 0 | Q95: FULL
A96: K74 | B96: Understand the purpose and target users for the animated assets being created | C96: NO | D96: NO | E96: NO | F96: YES | M96: 0 | O96: NONE | P96: 0 | Q96: FULL
B97: Skills
A98: S1 | B98: Determine what is required for their own work as a junior animator by analysing briefs, specifications, visual references, technical and production parameters | C98: YES | D98: YES | E98: YES | F98: YES | M98: =IF(G98:G175 = "FULLY MET",1,IF(G98:G175 = "PARTIALLY MET",0.5,IF(G98:G175 = "NOT MET",0,))) -> 0 | O98: NONE | P98: =IF(N98=1,1,IF(N98=0.5,0.5,IF(N98=0,0))) -> 0 | Q98: FULL
A99: S2 | B99: Research ideas and information for the animation being created | C99: YES | D99: YES | E99: YES | F99: YES | M99: 0 | O99: NONE | P99: 0 | Q99: FULL
A100: S3 | B100: Read and interpret the relevant sources of information for the production, such as; the script, animatic, x-sheet or dope-sheet, character, colour and model reference and soundtrack | C100: YES | D100: YES | E100: YES | F100: YES | M100: 0 | O100: NONE | P100: 0 | Q100: FULL
A101: S4 | B101: Continue to update own animation skills, use new tools, software, data and other related technology | C101: YES | D101: YES | E101: YES | F101: YES | M101: 0 | O101: NONE | P101: 0 | Q101: FULL
A102: S5 | B102: Adapt and be able to meet the requirements of the animation style or genre specified for the production | C102: YES | D102: YES | E102: YES | F102: YES | M102: 0 | O102: NONE | P102: 0 | Q102: FULL
A103: S6 | B103: Use reliable information to keep-up-to date with the laws, regulations, codes of practice, standards and guidelines that govern animation and how they affect your work | C103: YES | D103: YES | E103: YES | F103: YES | M103: 0 | O103: NONE | P103: 0 | Q103: FULL
A104: S7 | B104: Maintain an awareness of the current priorities, constraints and opportunities of your work as junior animator at all times | C104: YES | D104: YES | E104: YES | F104: YES | M104: 0 | O104: NONE | P104: 0 | Q104: FULL
A105: S8 | B105: Comply with relevant legislation and organisational policies and procedures such as Health and Safety | C105: YES | D105: YES | E105: YES | F105: YES | M105: 0 | O105: PARTIAL | P105: =IF(N105=1,0.5,IF(N105=0.5,0.5,IF(N105=0,0))) -> 0 | Q105: =IF(P105=0.5,"NONE",IF(P105=0,"PARTIAL")) -> PARTIAL
A106: S9 | B106: Work methodically in an organised and concentrated manner, paying particular attention to detail | C106: YES | D106: YES | E106: YES | F106: YES | M106: 0 | O106: NONE | P106: =IF(N106=1,1,IF(N106=0.5,0.5,IF(N106=0,0))) -> 0 | Q106: FULL
A107: S10 | B107: Identify the information you need to carry out your work to expected standards on each animation production | C107: YES | D107: YES | E107: YES | F107: YES | M107: 0 | O107: NONE | P107: 0 | Q107: FULL
A108: S11 | B108: Work effectively both individually and as part of a wider animation team | C108: YES | D108: YES | E108: YES | F108: YES | M108: 0 | O108: NONE | P108: 0 | Q108: FULL
A109: S12 | B109: Operate within and adhere to agreed organisational policies, standards and procedures | C109: YES | D109: YES | E109: YES | F109: YES | M109: 0 | O109: PARTIAL | P109: =IF(N109=1,0.5,IF(N109=0.5,0.5,IF(N109=0,0))) -> 0 | Q109: =IF(P109=0.5,"NONE",IF(P109=0,"PARTIAL")) -> PARTIAL
A110: S13 | B110: Maintain an awareness of the current priorities, constraints and opportunities of the client's budget or production requirements at all times | C110: YES | D110: YES | E110: YES | F110: YES | M110: 0 | O110: NONE | P110: =IF(N110=1,1,IF(N110=0.5,0.5,IF(N110=0,0))) -> 0 | Q110: FULL
A111: S14 | B111: Move characters on set in whatever style is required to meet the creative, narrative and technical demands of the production | C111: YES | D111: YES | E111: YES | F111: YES | M111: 0 | O111: NONE | P111: 0 | Q111: FULL
A112: S15 | B112: Respond to feedback about the animated material you create in a positive way, making refinements as requested by clients or supervisors | C112: YES | D112: YES | E112: YES | F112: YES | M112: 0 | O112: NONE | P112: 0 | Q112: FULL
A113: S16 | B113: Deliver good customer service in a creative environment | C113: YES | D113: YES | E113: YES | F113: YES | M113: 0 | O113: NONE | P113: 0 | Q113: FULL
A114: S17 | B114: Develop an animated character/object/creature through its movement and timing | C114: YES | D114: YES | E114: YES | F114: YES | M114: 0 | O114: NONE | P114: 0 | Q114: FULL
A115: S18 | B115: Contribute ideas to aid the creative development of the character, shot and overall production | C115: YES | D115: YES | E115: YES | F115: YES | M115: 0 | O115: NONE | P115: 0 | Q115: FULL
A116: S19 | B116: Create animations using given camera angles, or make adjustments to camera animations according to the production demands and schedule | C116: YES | D116: YES | E116: YES | F116: YES | M116: 0 | O116: NONE | P116: 0 | Q116: FULL
A117: S20 | B117: Create the assets that meet the requirements of the animation department | C117: YES | D117: YES | E117: YES | F117: YES | M117: 0 | O117: NONE | P117: 0 | Q117: FULL
A118: S21 | B118: Plan story/playboards to communicate key ideas with the team or clients | C118: YES | D118: YES | E118: YES | F118: YES | M118: 0 | O118: NONE | P118: 0 | Q118: FULL
A119: S22 | B119: Create story/playboards that depict the script and narrative | C119: YES | D119: YES | E119: YES | F119: YES | M119: 0 | O119: NONE | P119: 0 | Q119: FULL
A120: S23 | B120: Present work in progress, or completed animations to colleagues or clients | C120: YES | D120: YES | E120: YES | F120: YES | M120: 0 | O120: NONE | P120: 0 | Q120: FULL
A121: S24 | B121: Respond carefully to questions, making sure you provide the information the audience is asking for | C121: YES | D121: YES | E121: YES | F121: YES | M121: 0 | O121: NONE | P121: 0 | Q121: FULL
A122: S25 | B122: Animate primary and secondary characters/objects/creatures and elements | C122: YES | D122: YES | E122: YES | F122: YES | M122: 0 | O122: NONE | P122: 0 | Q122: FULL
A123: S26 | B123: Interpret the personality and traits of the character/object/creature, conveying the emotions, behaviours and actions within a scene | C123: YES | D123: YES | E123: YES | F123: YES | M123: 0 | O123: NONE | P123: 0 | Q123: FULL
A124: S27 | B124: Ensure that animations are in sync with the soundtrack | C124: YES | D124: YES | E124: YES | F124: YES | M124: 0 | O124: NONE | P124: 0 | Q124: FULL
A125: S28 | B125: Create animation in line with production demands, and ensure the output is correct for the next stage of the process | C125: YES | D125: YES | E125: YES | F125: YES | M125: 0 | O125: NONE | P125: 0 | Q125: FULL
A126: S29 | B126: Select and use the industry standard software package required by the particular animation production | C126: YES | D126: YES | E126: YES | F126: YES | M126: 0 | O126: NONE | P126: 0 | Q126: FULL
A127: S30 | B127: Adapt to the various styles, techniques, procedures and software that may be required by the animation production | C127: YES | D127: YES | E127: YES | F127: YES | M127: 0 | O127: NONE | P127: 0 | Q127: FULL
A128: S31 | B128: Prepare and store files in line with production requirements, to enable the next stage of animation production to run efficiently | C128: YES | D128: YES | E128: YES | F128: YES | M128: 0 | O128: NONE | P128: 0 | Q128: FULL
A129: S32 | B129: Undertake test renders at appropriate times to determine the length of time required for rendering and check for errors | C129: YES | D129: YES | E129: YES | F129: YES | M129: 0 | O129: NONE | P129: 0 | Q129: FULL
A130: S33 | B130: Establish the render settings that gain the required appearance and create sufficient flexibility for compositing | C130: YES | D130: YES | E130: YES | F130: YES | M130: 0 | O130: NONE | P130: 0 | Q130: FULL
A131: S34 | B131: Apply render settings that enable the required degree of realism | C131: YES | D131: YES | E131: YES | F131: YES | M131: 0 | O131: NONE | P131: 0 | Q131: FULL
A132: S35 | B132: Prioritise renders in accordance with production priorities | C132: YES | D132: YES | E132: YES | F132: YES | M132: 0 | O132: NONE | P132: 0 | Q132: FULL
A133: S36 | B133: Calculate render times and storage space required to meet production requirements | C133: YES | D133: YES | E133: YES | F133: YES | M133: 0 | O133: NONE | P133: 0 | Q133: FULL
A134: S37 | B134: Create a series of key frames to structure the animation that are appropriate to the animation production | C134: YES | D134: NO | E134: NO | F134: NO | M134: 0 | O134: NONE | P134: 0 | Q134: FULL
A135: S38 | B135: Provide the key frames and check they meet the needs of the production with the director | C135: YES | D135: NO | E135: NO | F135: NO | M135: 0 | O135: NONE | P135: 0 | Q135: FULL
A136: S39 | B136: Work in line with shot breakdown ensuring continuity | C136: YES | D136: NO | E136: NO | F136: NO | M136: 0 | O136: NONE | P136: 0 | Q136: FULL
A137: S40 | B137: Create the movement and performance required by the production to in-between the animation, adding frames or cleaning up as required | C137: YES | D137: NO | E137: NO | F137: NO | M137: 0 | O137: NONE | P137: 0 | Q137: FULL
A138: S41 | B138: Test animated sequences to confirm the effects and continuity meet requirements | C138: YES | D138: NO | E138: NO | F138: NO | M138: 0 | O138: NONE | P138: 0 | Q138: FULL
A139: S42 | B139: Use the appropriate software for the techniques and procedures required | C139: YES | D139: NO | E139: NO | F139: NO | M139: 0 | O139: NONE | P139: 0 | Q139: FULL
A140: S43 | B140: Use rotoscoping to produce animated frames | C140: YES | D140: NO | E140: NO | F140: NO | M140: 0 | O140: NONE | P140: 0 | Q140: FULL
A141: S44 | B141: Create animation according to the production demands | C141: YES | D141: NO | E141: NO | F141: NO | M141: 0 | O141: NONE | P141: 0 | Q141: FULL
A142: S45 | B142: Review output with relevant people and offer suggestions to assist others with the production | C142: YES | D142: NO | E142: NO | F142: NO | M142: 0 | O142: NONE | P142: 0 | Q142: FULL
A143: S46 | B143: Respond positively to feedback about the animations you create, making refinements as needed | C143: YES | D143: NO | E143: NO | F143: NO | M143: 0 | O143: NONE | P143: 0 | Q143: FULL
A144: S47 | B144: Remain constantly flexible and adaptable to new directions, creative requirements and software developments | C144: YES | D144: NO | E144: NO | F144: NO | M144: 0 | O144: NONE | P144: 0 | Q144: FULL
A145: S48 | B145: Adjust lighting and camera equipment to meet production and aesthetic requirements of specific scenes throughout the production | C145: NO | D145: YES | E145: NO | F145: NO | M145: 0 | O145: NONE | P145: 0 | Q145: FULL
A146: S49 | B146: Plan and block through shots under direction, where appropriate recording real life videos to try out the performance as a reference | C146: NO | D146: YES | E146: NO | F146: NO | M146: 0 | O146: NONE | P146: 0 | Q146: FULL
A147: S50 | B147: Create pop through or rehearsal movie and agree with the director an appropriate series of key frames to structure the animation | C147: NO | D147: YES | E147: NO | F147: NO | M147: 0 | O147: NONE | P147: 0 | Q147: FULL
A148: S51 | B148: Time out each shot that is appropriate to the production and agree these with the director | C148: NO | D148: YES | E148: NO | F148: NO | M148: 0 | O148: NONE | P148: 0 | Q148: FULL
A149: S52 | B149: Prepare for and re-animate individual shots according to the director’s notes | C149: NO | D149: YES | E149: NO | F149: NO | M149: 0 | O149: NONE | P149: 0 | Q149: FULL
A150: S53 | B150: Move characters on set in whatever style is required to meet the creative, narrative and technical demands of the production | C150: NO | D150: YES | E150: NO | F150: NO | M150: 0 | O150: NONE | P150: 0 | Q150: FULL
A151: S54 | B151: Review models with relevant people and offer suggestions that assist others with the animation production | C151: NO | D151: YES | E151: NO | F151: NO | M151: 0 | O151: NONE | P151: 0 | Q151: FULL
A152: S55 | B152: Test the stop motion animation characters and sequences you have created against the production specifications | C152: NO | D152: YES | E152: NO | F152: NO | M152: 0 | O152: NONE | P152: 0 | Q152: =IF(P152=1,"NONE",IF(P152=0.5,"PARTIAL",IF(P152=0,"FULL"))) -> FULL
A153: S56 | B153: Review animations created with the relevant people, offering suggestions to assist others with the production | C153: NO | D153: YES | E153: NO | F153: YES | M153: 0 | O153: NONE | P153: 0 | Q153: FULL
A154: S57 | B154: Respond positively to feedback about the stop motion animations you create, making refinements as needed | C154: NO | D154: YES | E154: NO | F154: NO | M154: 0 | O154: NONE | P154: 0 | Q154: FULL
A155: S58 | B155: Remain constantly flexible and adaptable to changes in the creative requirements of the production | C155: NO | D155: YES | E155: YES | F155: YES | M155: 0 | O155: NONE | P155: 0 | Q155: FULL
A156: S59 | B156: Prepare and store assets and files in line with production requirements to enable the next stage of production to run efficiently | C156: NO | D156: YES | E156: YES | F156: YES | M156: 0 | O156: NONE | P156: 0 | Q156: FULL
A157: S60 | B157: Block animation using stepped or spline techniques, structuring the animation appropriately for the production and in agreement with the director | C157: NO | D157: NO | E157: YES | F157: NO | M157: 0 | O157: NONE | P157: 0 | Q157: FULL
A158: S61 | B158: Create animation layers that work on top of existing motion capture data and polish captured performances to meet production requirements | C158: NO | D158: NO | E158: YES | F158: NO | M158: 0 | O158: NONE | P158: 0 | Q158: FULL
A159: S62 | B159: Create the movement and performance required by the production to in-between the animation, adjusting the curves and adding extras keys as appropriate | C159: NO | D159: NO | E159: YES | F159: NO | M159: 0 | O159: NONE | P159: 0 | Q159: FULL
A160: S63 | B160: Script rigs for animated characters in line with production requirements | C160: NO | D160: NO | E160: YES | F160: NO | M160: 0 | O160: NONE | P160: 0 | Q160: FULL
A161: S64 | B161: Ensure rigging techniques and references create credible animation with movements that are realistic for the type of object being modelled and the style of animation required | C161: NO | D161: NO | E161: YES | F161: NO | M161: 0 | O161: NONE | P161: 0 | Q161: FULL
A162: S65 | B162: Ensure that animations maintain continuity of character/performance with other shots in the sequence and/or other animators work | C162: NO | D162: NO | E162: YES | F162: NO | M162: 0 | O162: NONE | P162: 0 | Q162: FULL
A163: S66 | B163: Create animations using given camera angles or make adjustments to camera animations according to the production demands and schedule | C163: NO | D163: NO | E163: YES | F163: NO | M163: 0 | O163: NONE | P163: 0 | Q163: FULL
A164: S67 | B164: Test the 3D animations you have created against the production specifications | C164: NO | D164: NO | E164: YES | F164: NO | M164: 0 | O164: NONE | P164: 0 | Q164: FULL
A165: S68 | B165: Review animations created with the relevant people, offering suggestions to assist others with the production | C165: NO | D165: NO | E165: YES | F165: NO | M165: 0 | O165: NONE | P165: 0 | Q165: FULL
A166: S69 | B166: Respond positively to feedback about the 3D animations you create, making refinements as needed | C166: NO | D166: NO | E166: YES | F166: NO | M166: 0 | O166: NONE | P166: 0 | Q166: FULL
A167: S70 | B167: Design animations within specified parameters and constraints relating to the target platform and medium | C167: NO | D167: NO | E167: NO | F167: YES | M167: 0 | O167: NONE | P167: 0 | Q167: FULL
A168: S71 | B168: Create animations that are attractive, easy to use and fit for purpose | C168: NO | D168: NO | E168: NO | F168: YES | M168: 0 | O168: NONE | P168: 0 | Q168: FULL
A169: S72 | B169: Save your animations in appropriate formats so that they can be easily incorporated into the product | C169: NO | D169: NO | E169: NO | F169: YES | M169: 0 | O169: NONE | P169: 0 | Q169: FULL
A170: S73 | B170: Provide clear documentation for others to incorporate your animations into the product | C170: NO | D170: NO | E170: NO | F170: YES | M170: 0 | O170: NONE | P170: 0 | Q170: FULL
A171: S74 | B171: Organise animations using appropriate filing and naming conventions so that they can be located easily by others | C171: NO | D171: NO | E171: NO | F171: YES | M171: 0 | O171: NONE | P171: 0 | Q171: FULL
A172: S75 | B172: Liaise with colleagues, such as designers and developers, to ensure your animations are appropriate and meet requirements | C172: NO | D172: NO | E172: NO | F172: YES | M172: 0 | O172: NONE | P172: 0 | Q172: FULL
A173: S76 | B173: Test the animated assets you have created against the production specifications and to ensure they are easy to use and fit-for-purpose | C173: NO | D173: NO | E173: NO | F173: YES | M173: 0 | O173: NONE | P173: 0 | Q173: FULL
A174: S77 | B174: Review assets created with the relevant people, offering suggestions to assist others with the production | C174: NO | D174: NO | E174: NO | F174: YES | M174: 0 | O174: NONE | P174: =IF(N174=1,1,IF(N174=0.5,0.5,IF(N174=0,0))) -> 0 | Q174: FULL
A175: S78 | B175: Respond positively to feedback about the assets you create, making refinements as needed | C175: NO | D175: NO | E175: NO | F175: YES | M175: 0 | O175: NONE | P175: 0 | Q175: FULL
B176: Behaviours
A177: B1 | B177: Self motivation - a self-starter, with a proactive approach to tasks and managing own development | C177: YES | D177: YES | E177: YES | F177: YES | M177: =IF(G177:G183 = "FULLY MET",1,IF(G177:G183 = "PARTIALLY MET",0.5,IF(G177:G183 = "NOT MET",0,))) -> 0 | O177: NONE | P177: =IF(N177=1,1,IF(N177=0.5,0.5,IF(N177=0,0))) -> 0 | Q177: =IF(P177=1,"NONE",IF(P177=0.5,"PARTIAL",IF(P177=0,"FULL"))) -> FULL
A178: B2 | B178: Adaptability- Adapts positively to changing work priorities and patterns, ensuring productions deadlines continue to be met | C178: YES | D178: YES | E178: YES | F178: YES | M178: 0 | O178: NONE | P178: 0 | Q178: FULL
A179: B3 | B179: Flexibility – A positive approach to working independently and collaboratively as part of a team | C179: YES | D179: YES | E179: YES | F179: YES | M179: 0 | O179: NONE | P179: 0 | Q179: FULL
A180: B4 | B180: Strong work ethic - motivated, proactive, committed punctual and reliable | C180: YES | D180: YES | E180: YES | F180: YES | M180: 0 | O180: NONE | P180: 0 | Q180: FULL
A181: B5 | B181: Maintains company and customer confidentiality, acting as an ambassador for their employer | C181: YES | D181: YES | E181: YES | F181: YES | M181: 0 | O181: PARTIAL | P181: =IF(N181=1,0.5,IF(N181=0.5,0.5,IF(N181=0,0))) -> 0 | Q181: =IF(P181=0.5,"NONE",IF(P181=0,"PARTIAL")) -> PARTIAL
A182: B6 | B182: Displays a passion for animation and creative media creation | C182: YES | D182: YES | E182: YES | F182: YES | M182: 0 | O182: NONE | P182: =IF(N182=1,1,IF(N182=0.5,0.5,IF(N182=0,0))) -> 0 | Q182: =IF(P182=1,"NONE",IF(P182=0.5,"PARTIAL",IF(P182=0,"FULL"))) -> FULL
A183: B7 | B183: Displays a positive attitude - constructive thinking and motivated to succeed | C183: YES | D183: YES | E183: YES | F183: YES | M183: 0 | O183: NONE | P183: 0 | Q183: FULL
M186: Junior animator (Level 4) - 2D Animation
M188: Gross score | N188: =SUM(N23:N72,N98:N144,N177:N183) -> 0 | O188: Net Score | P188: =SUM(P23:P72,P98:P144,P177:P183) -> 0
M189: total KSB coverage | N189: =N188/P192 -> 0 | O189: total CoE KSB coverage | P189: =P188/P195 -> 0
O192: total KSBs | P192: 104
O193: fully mitigated | P193: 0
O194: partialy mitigated | P194: 3
O195: net KSB | P195: =P192-P193-(P194*0.5) -> 102.5
M198: Junior animator (Level 4) - Stop-Motion Animation
M200: Gross score | N200: =SUM(N23:N62,N72:N85,N98:N133,N145:N156,N177:N183) -> 0 | O200: Net Score | P200: =SUM(P23:P62,P72:P85,P98:P133,P145:P156,P177:P183) -> 0
M201: total KSB coverage | N201: =N200/P204 -> 0 | O201: total CoE KSB coverage | P201: =P200/P207 -> 0
O204: total KSBs | P204: 109
O205: fully mitigated | P205: 0
O206: partialy mitigated | P206: 3
O207: net KSB | P207: =P204-P205-(P206*0.5) -> 107.5
M210: Junior animator (Level 4) - 3D Animation
M212: Gross score | N212: =SUM(N23:N62,N72,N76,N82:N89,N98:N133,N155:N166,N177:N183) -> 0 | O212: Net Score | P212: =SUM(P23:P62,P72,P76,P82:P89,P98:P133,P155:P166,P177:P183) -> 0
M213: total KSB coverage | N213: =N212/P216 -> 0 | O213: total CoE KSB coverage | P213: =P212/P219 -> 0
O216: total KSBs | P216: 105
O217: fully mitigated | P217: 0
O218: partialy mitigated | P218: 3
O219: net KSB | P219: =P216-P217-(P218*0.5) -> 103.5
M222: Junior animator (Level 4) - Interactive media and immersive reality
... 13 more rows

Sheet ST0696
B1: START HERE
B2: Awarding body/Applicant:
B3: Please type the name of awarding body/applicant here
B4: Qualification name:
B5: Please type your qualification title here
B6: Programme title if applicable:
B7: Please type the programme title here
A10: EXAMPLE OF KSB MAPPING
A11: KSB | B11: KSB Statement | C11: KSB coverage Select the coverage provided by the qualification from the dropdown box | D11: Where in the qualification is the relevant content? Please reference precisely where the content you are citing as evidence is within the submitted documents - Document name/Module name/Specific page number | E11: Evidence Quote or copy & paste the relevant content from your referenced qualification documents. Please provide 1 - 3 references that best evidence the KSB and only refer to content that all students will cover regardless of option choice. The information you supply in this column, in conjunction with the Supporting Comments / Rationale column (Column F) should clearly and explicitly demonstrate the declared level of KSB coverage. | F11: Supporting Comments/Rationale Where the evidence in Column E does not clearly and explicitly provide the declared level of coverage or might not be obvious to someone who is not an expert in your qualification, use this space to explain how the level of KSB coverage is achieved by the qualification content - please be specific to the wording and meaning of the KSB statement. Where a KSB is not fully met, please provide the rationale for why you feel this is not achievable. | G11: Assessment method Provide information on the method(s) used to assess this KSB and relevant assessment materials.
A12: K7 | B12: Safe and professional working practices including health, safety, environment and legislative requirements relevant to the sector, the organisation and own role | C12: FULLY MET | D12: Qualification specification, pg 14-16 Module 2: Health, safety and professional working practices, pg 6 | E12: Module 2: LO1 - Understand the importance of health and safety in the workplace. LO2 - Understand the application of health and safety legislation in the workplace. LO3 - Understand how to apply safe working practices to work activities. Indicative content: local, regional, national health & safety regulations, codes of practice, site safety, health & safety promotion, health & safety measures, PPE, manual handling, equipment management, waste disposal, risk management, risk assessment | F12: Learners will be able to show a full understanding of Health & Safety and legislative requirements relevant to the role. The indicative content on Pg 16 of the qualification specification shows they will cover Health & Safety across the wider sector, and then identify some measures that may be specific to certain organisations. Learners will also analyse the role of the employer and the environment with regards to applying Health & Safety working practices and processes. | G12: Module 2 - students will produce a written report using a brief. There is also a short answer paper. Module 2 Assessment Brief pg 7-8 refers.
A13: S23 | B13: Communicate effectively (verbal, non-verbal, written, digital) in manner relevant to the target audience | C13: FULLY MET | D13: Qualification specification, pg 21-22 Module 6: The Fundamentals of Practice, pg 12 Module 9: Personal and Professional Development Skills, pg 11 | E13: Module 6: LO2 - Know how to use digital devices and databases relevant to your workplace. Module 9: LO1 - Understand the uses of different methods of communication. LO3 - Be able to communicate effectively with different audiences. Indicative content: verbal and non-verbal communication skills, presentation skills, academic and non-academic writing style, writing skills | F13: Learners will cover verbal, non-verbal, written and digital communications, and demonstrate practical skills by completing assessment tasks which will include simulated work environments and preparing presentations targeting different audiences. Learners will develop the skills to communicate with people in a professional capacity including co-workers, line managers, clients, contractors and the public. | G13: Module 6 - case study. Module 9 - scenarios in simulated work environment, students will produce presentation. Module 9 assessment pg 4.
B18: Post production technical operator (level 4)
B19: Return to Guide
A20: KSB | B20: KSB Statement | C20: KSB coverage Select the coverage provided by the qualification from the dropdown box | D20: Where in the qualification is the relevant content? Please reference precisely where the content you are citing as evidence is within the submitted documents - Document name/Module name/Specific page number | E20: Evidence Quote or copy & paste the relevant content from your referenced qualification documents. Please provide 1 - 3 references that best evidence the KSB and only refer to content that all students will cover regardless of option choice. The information you supply in this column, in conjunction with the Supporting Comments / Rationale column (Column F) should clearly and explicitly demonstrate the declared level of KSB coverage. | F20: Supporting Comments/Rationale Where the evidence in Column E does not clearly and explicitly provide the declared level of coverage or might not be obvious to someone who is not an expert in your qualification, use this space to explain how the level of KSB coverage is achieved by the qualification content - please be specific to the wording and meaning of the KSB statement. Where a KSB is not fully met, please provide the rationale for why you feel this is not achievable. | G20: Assessment method Provide information on the method(s) used to assess this KSB and relevant assessment materials. | I20: AB Score | J20: IM Score | K20: Mitigations | L20: CoE Score | M20: Outstanding Requirement | N20: IM Comment | O20: IM moderation | P20: G7 QA | Q20: IM G7 Response | R20: Conclusion
B21: Knowledge
A22: K1 | B22: Understand the purpose of post-production within the end-to-end production process | I22: =IF(C22:C59 = "FULLY MET",1,IF(C22:C59 = "PARTIALLY MET",0.5,IF(C22:C59 = "NOT MET",0,))) -> 0 | K22: NONE | L22: =IF(J22=1,1,IF(J22=0.5,0.5,IF(J22=0,0))) -> 0 | M22: =IF(L22=1,"NONE",IF(L22=0.5,"PARTIAL",IF(L22=0,"FULL"))) -> FULL
A23: K2 | B23: Understand the commercial context of post-production with the film, TV and advertising industry | I23: 0 | K23: NONE | L23: =IF(J23=1,1,IF(J23=0.5,0.5,IF(J23=0,0))) -> 0 | M23: FULL
A24: K3 | B24: Understand the importance of agreed workflows and how to adapt these to meet the needs of a production | I24: 0 | K24: NONE | L24: 0 | M24: FULL
A25: K4 | B25: Understand the importance of accurate, effective and timely communication with own team, other departments and customers to ensure efficient progress of the work in hand | I25: 0 | K25: NONE | L25: 0 | M25: FULL
A26: K5 | B26: Know the relevant health and safety legislation and company policies to ensure a safe working environment for themselves, colleagues and customers | I26: 0 | K26: NONE | L26: 0 | M26: FULL
A27: K6 | B27: Understand the principles of video signals for film and TV in the digital and analogue domains including: resolution, sampling, colour science, display technologies and emerging and legacy video formats/standards | I27: 0 | K27: NONE | L27: 0 | M27: FULL
A28: K7 | B28: Understand the principles of audio signals in the digital and analogue domains including: Signal path basics, mono, stereo, surround sound, object-based audio, audio levels and loudness | I28: 0 | K28: NONE | L28: 0 | M28: FULL
A29: K8 | B29: Understand the use of metadata and other forms of content documentation | I29: 0 | K29: NONE | L29: 0 | M29: FULL
A30: K9 | B30: Understand the use of timecode and other frame labelling protocols | I30: 0 | K30: NONE | L30: 0 | M30: FULL
A31: K10 | B31: Understand why it is business critical to use unambiguous labelling of content, clock numbers and file naming conventions | I31: 0 | K31: NONE | L31: 0 | M31: FULL
A32: K11 | B32: Understand the importance of agreed workflows and how these may be adapted to meet the bespoke needs of a production | I32: 0 | K32: NONE | L32: 0 | M32: FULL
A33: K12 | B33: Know and understand the structure of and appropriate application of, audio and video file formats in common use in production, post-production and delivery | I33: 0 | K33: NONE | L33: 0 | M33: FULL
A34: K13 | B34: Know the fomats that are used for still images and graphics held as bitmaps or vector images, and which file formats are used for moving images held as sequential single frame files | I34: 0 | K34: NONE | L34: 0 | M34: FULL
A35: K14 | B35: Understand the principles of encoding, transcoding and compression of digital audio and video | I35: 0 | K35: NONE | L35: 0 | M35: FULL
A36: K15 | B36: Understand the capabilities of different connection standards for portable storage devices | I36: 0 | K36: NONE | L36: 0 | M36: FULL
A37: K16 | B37: Understand the principles of high speed file transfer across Local Area Networks (LAN) and Wider Area Networks (WAN) | I37: 0 | K37: NONE | L37: 0 | M37: FULL
A38: K17 | B38: Know and understand the protocols for secure, audited receipt and dispatch of content via physical and electronic transfer | I38: 0 | K38: NONE | L38: 0 | M38: FULL
A39: K18 | B39: Understand the principles of computer systems, IP networks and shared storage systems as applied in post production | I39: 0 | K39: NONE | L39: 0 | M39: FULL
A40: K19 | B40: How media is managed throughout the data lifecycle including production storage, shared storage, nearline storage and archive, whether on premises or in the cloud | I40: 0 | K40: NONE | L40: 0 | M40: FULL
A41: K20 | B41: Understand the bandwidth requirements and disk configurations necessary to ensure reliable playback and record performance at the required resolution for one or more clients from shared storage or directly connected storage | I41: 0 | K41: NONE | L41: =IF(J41=1,1,IF(J41=0.5,0.5,IF(J41=0,0))) -> 0 | M41: FULL
A42: K21 | B42: Understand the principles of good digital content governance, resilience, RAID (redundant array of inexpensive disks), security, confidentiality | I42: 0 | K42: NONE | L42: 0 | M42: FULL
A43: K22 | B43: Understand the value of media content to the business and its customers | I43: 0 | K43: NONE | L43: 0 | M43: FULL
A44: K23 | B44: Understand the principles of non-linear editing systems | I44: 0 | K44: NONE | L44: 0 | M44: FULL
A45: K24 | B45: Understand the functional role, capabilities and limitations of the equipment used in offline editing | I45: 0 | K45: NONE | L45: 0 | M45: FULL
A46: K25 | B46: How to provide operational assistance and first-line support to creative personnel and problem solve within agreed governance constraints | I46: 0 | K46: NONE | L46: 0 | M46: FULL
A47: K26 | B47: Understand the principles of non-linear picture and sound finishing systems | I47: 0 | K47: NONE | L47: 0 | M47: FULL
A48: K27 | B48: Understand the functional role, capabilities and limitations of the equipment used in online editing, colour grading and audio dubbing | I48: 0 | K48: NONE | L48: 0 | M48: FULL
A49: K28 | B49: Understand the technical standards and customer specifications used for UK and international delivery of programmes, films and commercials to cinema, TV broadcast and online distribution platforms | I49: 0 | K49: NONE | L49: 0 | M49: FULL
A50: K29 | B50: Understand the requirements of international productions to aid localisation, such as textless backgrounds and audio stems. | I50: 0 | K50: NONE | L50: 0 | M50: FULL
A51: K30 | B51: Understand the correct environment in which to perform quality control and assessment | I51: 0 | K51: NONE | L51: 0 | M51: FULL
A52: K31 | B52: Understand the European Broadcasting Union (EBU) classification of quality issues and the International Telecommunications Union (ITU) 5-point quality assessment scale | I52: 0 | K52: NONE | L52: 0 | M52: FULL
A53: K32 | B53: Know and understand the regulations to comply with in regard to flashing images and stimuli causing photo sensitive epilepsy | I53: 0 | K53: NONE | L53: 0 | M53: FULL
A54: K33 | B54: Understand the regulations and specifications for on-screen text and graphics such as: safe areas, minimum text height and minimum durations for legal information in commercials | I54: 0 | K54: NONE | L54: 0 | M54: FULL
A55: K34 | B55: Understand the importance of intelligibility of dialogue and how this is impacted by a complex range of factors, especially age-related hearing loss | I55: 0 | K55: NONE | L55: 0 | M55: FULL
A56: K35 | B56: Know and understand the relevant health and safety legislation and company policies | I56: 0 | K56: NONE | L56: 0 | M56: FULL
A57: K36 | B57: Know and understand legacy video standards such as standard definition PAL and NTSC and their conversion to contemporary standards | I57: 0 | K57: NONE | L57: 0 | M57: FULL
A58: K37 | B58: Know and understand legacy video and audio tape formats | I58: 0 | K58: NONE | L58: 0 | M58: FULL
A59: K38 | B59: Understand the implications of using legacy formats in contemporary workflows | I59: 0 | K59: NONE | L59: 0 | M59: FULL
B60: Skills
A61: S1 | B61: Work in line with agreed workflows, adapting to operational changes as they occur | I61: =IF(C61:C108 = "FULLY MET",1,IF(C61:C108 = "PARTIALLY MET",0.5,IF(C61:C108 = "NOT MET",0,))) -> 0 | K61: PARTIAL | L61: =IF(J61=1,0.5,IF(J61=0.5,0.5,IF(J61=0,0))) -> 0 | M61: =IF(L61=0.5,"NONE",IF(L61=0,"PARTIAL")) -> PARTIAL
A62: S2 | B62: Multitask on simultaneous projects, often for different clients, prioritising the work to ensure that all tasks are completed on schedule | I62: 0 | K62: NONE | L62: =IF(J62=1,1,IF(J62=0.5,0.5,IF(J62=0,0))) -> 0 | M62: =IF(L62=1,"NONE",IF(L62=0.5,"PARTIAL",IF(L62=0,"FULL"))) -> FULL
A63: S3 | B63: Analyse and interpret the work order and technical specification to complete the scheduled tasks | I63: 0 | K63: NONE | L63: 0 | M63: FULL
A64: S4 | B64: Use process documentation and work order reporting systems for efficient, accurate and timely communication with other departments about the progress of the work in hand | I64: 0 | K64: PARTIAL | L64: =IF(J64=1,0.5,IF(J64=0.5,0.5,IF(J64=0,0))) -> 0 | M64: =IF(L64=0.5,"NONE",IF(L64=0,"PARTIAL")) -> PARTIAL
A65: S5 | B65: Work accurately with a high degree of attention to detail | I65: 0 | K65: NONE | L65: =IF(J65=1,1,IF(J65=0.5,0.5,IF(J65=0,0))) -> 0 | M65: =IF(L65=1,"NONE",IF(L65=0.5,"PARTIAL",IF(L65=0,"FULL"))) -> FULL
A66: S6 | B66: Analyse and advise on the quality of audio, video and data throughout the post production process to colleagues, customers and suppliers | I66: 0 | K66: NONE | L66: 0 | M66: FULL
A67: S7 | B67: Follow post production processes to ensure the necessary quality is achieved | I67: 0 | K67: NONE | L67: 0 | M67: FULL
A68: S8 | B68: Access and interpret the relevant information pertaining to technical specifications and client requirements, and apply to the post production process | I68: 0 | K68: NONE | L68: 0 | M68: FULL
A69: S9 | B69: Use appropriate technical vocabulary to document and communicate compliance with, or exceptions from, technical standards | I69: 0 | K69: NONE | L69: 0 | M69: FULL
A70: S10 | B70: Assimilate information from multiple sources and apply to task in hand | I70: 0 | K70: NONE | L70: 0 | M70: FULL
A71: S11 | B71: Ensure data is transferred securely between client supplied sources and post production storage systems, performing data integrity and virus checks | I71: 0 | K71: NONE | L71: 0 | M71: FULL
A72: S12 | B72: Ingest and export media content and metadata to/from post-production systems, syncing the audio to video and applying colour transforms (LUTs) as required | I72: 0 | K72: NONE | L72: 0 | M72: FULL
A73: S13 | B73: Arrange media content in agreed folder structures, using consistent and unambiguous folder and file naming conventions | I73: 0 | K73: NONE | L73: 0 | M73: FULL
A74: S14 | B74: Prepare graphics and still images for ingest using software such as Photoshop where basic manipulation is required. | I74: 0 | K74: NONE | L74: 0 | M74: FULL
A75: S15 | B75: Encode and transcode audio and video data to required specifications | I75: 0 | K75: NONE | L75: 0 | M75: FULL
A76: S16 | B76: Export finished content or work-in-progress with metadata from post-production systems to required specifications and naming conventions | I76: 0 | K76: NONE | L76: 0 | M76: FULL
A77: S17 | B77: Provide technical advice to clients and colleagues on an appropriate file specification for a given requirement | I77: 0 | K77: NONE | L77: 0 | M77: FULL
A78: S18 | B78: Dispatch and receive physical assets to/from external organisations and audit the process | I78: 0 | K78: NONE | L78: 0 | M78: FULL
A79: S19 | B79: Use file transfer software for fast, secure and audited delivery of assets to external destinations | I79: 0 | K79: NONE | L79: 0 | M79: FULL
A80: S20 | B80: Communicate work progress to colleagues and clients as appropriate | I80: 0 | K80: NONE | L80: 0 | M80: FULL
A81: S21 | B81: Manage access by clients to shared storage systems according to company protocols | I81: 0 | K81: PARTIAL | L81: =IF(J81=1,0.5,IF(J81=0.5,0.5,IF(J81=0,0))) -> 0 | M81: =IF(L81=0.5,"NONE",IF(L81=0,"PARTIAL")) -> PARTIAL
A82: S22 | B82: Ensure data integrity when moving media between storage systems | I82: 0 | K82: NONE | L82: =IF(J82=1,1,IF(J82=0.5,0.5,IF(J82=0,0))) -> 0 | M82: =IF(L82=1,"NONE",IF(L82=0.5,"PARTIAL",IF(L82=0,"FULL"))) -> FULL
A83: S23 | B83: Backup, archive and restore media, sequences and metadata according to company practice | I83: 0 | K83: PARTIAL | L83: =IF(J83=1,0.5,IF(J83=0.5,0.5,IF(J83=0,0))) -> 0 | M83: =IF(L83=0.5,"NONE",IF(L83=0,"PARTIAL")) -> PARTIAL
A84: S24 | B84: Safely delete media as instructed and complying with company protocols | I84: 0 | K84: PARTIAL | L84: =IF(J84=1,0.5,IF(J84=0.5,0.5,IF(J84=0,0))) -> 0 | M84: PARTIAL
A85: S25 | B85: Maintain content security measures, both electronic and physical as required by the employer and their clients | I85: 0 | K85: PARTIAL | L85: =IF(J85=1,0.5,IF(J85=0.5,0.5,IF(J85=0,0))) -> 0 | M85: PARTIAL
A86: S26 | B86: Enact business continuity procedures | I86: 0 | K86: PARTIAL | L86: =IF(J86=1,0.5,IF(J86=0.5,0.5,IF(J86=0,0))) -> 0 | M86: PARTIAL
A87: S27 | B87: Prioritise the workload to ensure the scheduled tasks are completed on time, liaising with colleagues and clients | I87: 0 | K87: NONE | L87: =IF(J87=1,1,IF(J87=0.5,0.5,IF(J87=0,0))) -> 0 | M87: =IF(L87=1,"NONE",IF(L87=0.5,"PARTIAL",IF(L87=0,"FULL"))) -> FULL
A88: S28 | B88: Provide frontline operational support to clients in editing suites, to ensure that they can find and work with their media | I88: 0 | K88: NONE | L88: 0 | M88: FULL
A89: S29 | B89: Take ownership to resolve and/or escalate faults/incidents to the appropriate person, within agreed governance constraints | I89: 0 | K89: PARTIAL | L89: =IF(J89=1,0.5,IF(J89=0.5,0.5,IF(J89=0,0))) -> 0 | M89: =IF(L89=0.5,"NONE",IF(L89=0,"PARTIAL")) -> PARTIAL
A90: S30 | B90: Connect and set-up post production editing equipment using appropriate cables and connectors | I90: 0 | K90: NONE | L90: =IF(J90=1,1,IF(J90=0.5,0.5,IF(J90=0,0))) -> 0 | M90: =IF(L90=1,"NONE",IF(L90=0.5,"PARTIAL",IF(L90=0,"FULL"))) -> FULL
A91: S31 | B91: Perform and check data conforms of sequences prior to colour grading or online editing | I91: 0 | K91: NONE | L91: 0 | M91: FULL
A92: S32 | B92: Transfer picture data between grading and editing systems, ensuring the data integrity of content and sequences is maintained | I92: 0 | K92: NONE | L92: 0 | M92: FULL
A93: S33 | B93: Relink ingested media to updated sequences as editorial changes occur | I93: 0 | K93: NONE | L93: 0 | M93: FULL
A94: S34 | B94: Prepare and transfer audio data to the dubbing suite | I94: 0 | K94: NONE | L94: 0 | M94: FULL
A95: S35 | B95: Perform basic editing functions necessary for the preparation of media and sequences for creative processes, or for formatting of finished content for delivery (e.g. adding line-up signals, idents, patching in QC fixes, audio laybacks) | I95: 0 | K95: NONE | L95: 0 | M95: FULL
A96: S36 | B96: Analyse and interpret the results of reports from audio and video test equipment | I96: 0 | K96: NONE | L96: 0 | M96: FULL
A97: S37 | B97: Consistently assess and identify faults in content, using the correct terminology to accurately describe and record them | I97: 0 | K97: NONE | L97: 0 | M97: FULL
A98: S38 | B98: Use own judgement and discretion to decide what is acceptable and what is not in relation to quality control, depending on the context of the material, its intended use and the required technical specifications and customer requirements | I98: 0 | K98: NONE | L98: 0 | M98: FULL
A99: S39 | B99: Deliver accurate and concise Quality Assessment Reports with clear indications of mandatory failures, advisory warnings and client approved exceptions | I99: 0 | K99: NONE | L99: 0 | M99: FULL
A100: S40 | B100: Provide technical advice on remedial action to correct faults identified | I100: 0 | K100: NONE | L100: 0 | M100: FULL
A101: S41 | B101: Communicate findings to both clients and colleagues accurately, and in a diplomatic manner | I101: 0 | K101: NONE | L101: 0 | M101: FULL
A102: S42 | B102: Comply with company Health and Safety policies and practices, identifying, mitigating and reporting any incidents or risk to the appropriate person | I102: 0 | K102: NONE | L102: 0 | M102: FULL
A103: S43 | B103: Consistently work in a safe manner for self, colleagues and clients. | I103: 0 | K103: NONE | L103: 0 | M103: FULL
A104: S44 | B104: Use appropriate legacy media physical handling procedures | I104: 0 | K104: NONE | L104: 0 | M104: FULL
A105: S45 | B105: Carry out basic operation of videotape recorders and audio recorders | I105: 0 | K105: NONE | L105: 0 | M105: FULL
A106: S46 | B106: Digitise tape content into editing systems | I106: 0 | K106: NONE | L106: 0 | M106: FULL
A107: S47 | B107: Playout finished content from editing systems to tape | I107: 0 | K107: NONE | L107: 0 | M107: FULL
A108: S48 | B108: Provide technical advice to clients and colleagues on the implications of using legacy format in contemporary workflows | I108: 0 | K108: NONE | L108: 0 | M108: FULL
B109: Behaviours
A110: B1 | B110: Displays a strong work ethic and commitment to meet the standards required - upholding ethical and professional standards | I110: =IF(C110:C120 = "FULLY MET",1,IF(C110:C120 = "PARTIALLY MET",0.5,IF(C110:C120 = "NOT MET",0,))) -> 0 | K110: NONE | L110: =IF(J110=1,1,IF(J110=0.5,0.5,IF(J110=0,0))) -> 0 | M110: =IF(L110=1,"NONE",IF(L110=0.5,"PARTIAL",IF(L110=0,"FULL"))) -> FULL
A111: B2 | B111: Demonstrates a passion for post production, the media industry and its productions - proactively keeping up to date with latest developments within the industry | I111: 0 | K111: NONE | L111: 0 | M111: FULL
A112: B3 | B112: Maintains company and customer confidentiality, acting as an ambassador for their employer | I112: 0 | K112: PARTIAL | L112: =IF(J112=1,0.5,IF(J112=0.5,0.5,IF(J112=0,0))) -> 0 | M112: =IF(L112=0.5,"NONE",IF(L112=0,"PARTIAL")) -> PARTIAL
A113: B4 | B113: Acts in a manner that supports the commercial customer relationship acting as an ambassador for their employer | I113: 0 | K113: PARTIAL | L113: =IF(J113=1,0.5,IF(J113=0.5,0.5,IF(J113=0,0))) -> 0 | M113: PARTIAL
A114: B5 | B114: Demonstrates attention to detail and not willingly accepting second best; whilst at the same time being pragmatic about balancing client expectations against the available time and budget | I114: 0 | K114: NONE | L114: =IF(J114=1,1,IF(J114=0.5,0.5,IF(J114=0,0))) -> 0 | M114: =IF(L114=1,"NONE",IF(L114=0.5,"PARTIAL",IF(L114=0,"FULL"))) -> FULL
A115: B6 | B115: Proactively keeping up to date with latest developments within the industry | I115: 0 | K115: NONE | L115: 0 | M115: FULL
A116: B7 | B116: Thinks creatively and logically to solve technical issues - contribute to a process of continual improvement of workflow and technique | I116: 0 | K116: NONE | L116: 0 | M116: FULL
A117: B8 | B117: Delivers good customer service in a creative environment | I117: 0 | K117: NONE | L117: 0 | M117: FULL
A118: B9 | B118: Balances the quality threshold which it is practical to achieve within time and budget constraints, and the customer expectations | I118: 0 | K118: NONE | L118: 0 | M118: FULL
A119: B10 | B119: Works with a high level of sustained concentration and attention to detail | I119: 0 | K119: NONE | L119: 0 | M119: FULL
A120: B11 | B120: Works safely to ensure a safe working environment for themselves, colleagues and customers | I120: 0 | K120: NONE | L120: 0 | M120: FULL
I123: Gross score | J123: =SUM(J22:J120) -> 0 | K123: Net Score | L123: =SUM(L22:L120) -> 0
I124: total KSB coverage | J124: =J123/L127 -> 0 | K124: total CoE KSB coverage | L124: =L123/L130 -> 0
K127: total KSBs | L127: 97
K128: fully mitigated | L128: 0
K129: partialy mitigated | L129: 10
K130: net KSB | L130: =L127-L128-(L129*0.5) -> 92

Sheet ST0749
B1: START HERE
B2: Awarding body/Applicant:
B3: Please type the name of awarding body/applicant here
B4: Qualification name:
B5: Please type your qualification title here
B6: Programme title if applicable:
B7: Please type the programme title here
A10: EXAMPLE OF KSB MAPPING
A11: KSB | B11: KSB Statement | C11: KSB coverage Select the coverage provided by the qualification from the dropdown box | D11: Where in the qualification is the relevant content? Please reference precisely where the content you are citing as evidence is within the submitted documents - Document name/Module name/Specific page number | E11: Evidence Quote or copy & paste the relevant content from your referenced qualification documents. Please provide 1 - 3 references that best evidence the KSB and only refer to content that all students will cover regardless of option choice. The information you supply in this column, in conjunction with the Supporting Comments / Rationale column (Column F) should clearly and explicitly demonstrate the declared level of KSB coverage. | F11: Supporting Comments/Rationale Where the evidence in Column E does not clearly and explicitly provide the declared level of coverage or might not be obvious to someone who is not an expert in your qualification, use this space to explain how the level of KSB coverage is achieved by the qualification content - please be specific to the wording and meaning of the KSB statement. Where a KSB is not fully met, please provide the rationale for why you feel this is not achievable. | G11: Assessment method Provide information on the method(s) used to assess this KSB and relevant assessment materials.
A12: K7 | B12: Safe and professional working practices including health, safety, environment and legislative requirements relevant to the sector, the organisation and own role | C12: FULLY MET | D12: Qualification specification, pg 14-16 Module 2: Health, safety and professional working practices, pg 6 | E12: Module 2: LO1 - Understand the importance of health and safety in the workplace. LO2 - Understand the application of health and safety legislation in the workplace. LO3 - Understand how to apply safe working practices to work activities. Indicative content: local, regional, national health & safety regulations, codes of practice, site safety, health & safety promotion, health & safety measures, PPE, manual handling, equipment management, waste disposal, risk management, risk assessment | F12: Learners will be able to show a full understanding of Health & Safety and legislative requirements relevant to the role. The indicative content on Pg 16 of the qualification specification shows they will cover Health & Safety across the wider sector, and then identify some measures that may be specific to certain organisations. Learners will also analyse the role of the employer and the environment with regards to applying Health & Safety working practices and processes. | G12: Module 2 - students will produce a written report using a brief. There is also a short answer paper. Module 2 Assessment Brief pg 7-8 refers.
A13: S23 | B13: Communicate effectively (verbal, non-verbal, written, digital) in manner relevant to the target audience | C13: FULLY MET | D13: Qualification specification, pg 21-22 Module 6: The Fundamentals of Practice, pg 12 Module 9: Personal and Professional Development Skills, pg 11 | E13: Module 6: LO2 - Know how to use digital devices and databases relevant to your workplace. Module 9: LO1 - Understand the uses of different methods of communication. LO3 - Be able to communicate effectively with different audiences. Indicative content: verbal and non-verbal communication skills, presentation skills, academic and non-academic writing style, writing skills | F13: Learners will cover verbal, non-verbal, written and digital communications, and demonstrate practical skills by completing assessment tasks which will include simulated work environments and preparing presentations targeting different audiences. Learners will develop the skills to communicate with people in a professional capacity including co-workers, line managers, clients, contractors and the public. | G13: Module 6 - case study. Module 9 - scenarios in simulated work environment, students will produce presentation. Module 9 assessment pg 4.
B18: Historic environment advice assistant (level 4)
B19: Return to Guide
A20: KSB | B20: KSB Statement | C20: KSB coverage Select the coverage provided by the qualification from the dropdown box | D20: Where in the qualification is the relevant content? Please reference precisely where the content you are citing as evidence is within the submitted documents - Document name/Module name/Specific page number | E20: Evidence Quote or copy & paste the relevant content from your referenced qualification documents. Please provide 1 - 3 references that best evidence the KSB and only refer to content that all students will cover regardless of option choice. The information you supply in this column, in conjunction with the Supporting Comments / Rationale column (Column F) should clearly and explicitly demonstrate the declared level of KSB coverage. | F20: Supporting Comments/Rationale Where the evidence in Column E does not clearly and explicitly provide the declared level of coverage or might not be obvious to someone who is not an expert in your qualification, use this space to explain how the level of KSB coverage is achieved by the qualification content - please be specific to the wording and meaning of the KSB statement. Where a KSB is not fully met, please provide the rationale for why you feel this is not achievable. | G20: Assessment method Provide information on the method(s) used to assess this KSB and relevant assessment materials. | I20: AB Score | J20: IM Score | K20: Mitigations | L20: CoE Score | M20: Outstanding Requirement | N20: IM Comment | O20: IM moderation | P20: G7 QA | Q20: IM G7 Response | R20: Conclusion
B21: Knowledge
A22: K1 | B22: How to respond to client or public requests and organisational requirements e.g. requests for advice from owners of Listing Buildings, or requests for record information about Listed Buildings from colleagues | I22: =IF(C22:C35 = "FULLY MET",1,IF(C22:C35 = "PARTIALLY MET",0.5,IF(C22:C35 = "NOT MET",0,))) -> 0 | K22: NONE | L22: =IF(J22=1,1,IF(J22=0.5,0.5,IF(J22=0,0))) -> 0 | M22: =IF(L22=1,"NONE",IF(L22=0.5,"PARTIAL",IF(L22=0,"FULL"))) -> FULL
A23: K2 | B23: Knowledge of stakeholder communication methods and strategies and how to maintain honest and constructive relationships. | I23: 0 | K23: NONE | L23: 0 | M23: FULL
A24: K3 | B24: The requirements for projects, including timescales, deadlines, cost implications, and identifying milestones/targets. | I24: 0 | K24: NONE | L24: 0 | M24: FULL
A25: K4 | B25: Heritage policies, frameworks, strategies, and best practice Standards for historic building conservation and archaeological work e.g. National Planning Policy Framework (NPPF), Historic England: Conservation Principles, Policies and Guidance for the sustainable management of the Historic Environment, DCMS: Principles of selection for listing buildings | I25: 0 | K25: NONE | L25: 0 | M25: FULL
A26: K5 | B26: Where and how to find the relevant statutory legislation and other guidance concerning change in the historic environment, e.g. Planning (Listed Buildings and Conservation Areas) Act 1990, Ancient Monuments and Archaeological Areas Act 1979, National Planning Policy Framework, Protection of Wrecks Act 1973, Town and Country Planning (Environmental Impact Assessment) Regulations 2017, Ecclesiastical Exemption Order 2010 | I26: 0 | K26: NONE | L26: 0 | M26: FULL
A27: K6 | B27: The Historic Environment conservation principles (BS7913) and other published criteria for assessment and design | I27: 0 | K27: NONE | L27: 0 | M27: FULL
A28: K7 | B28: The fundamentals of archaeological, landscape or architectural history and building practice and chronology, including a broad understanding and recognition of archaeological site or building types, styles, technologies, materials and periods | I28: 0 | K28: NONE | L28: 0 | M28: FULL
A29: K8 | B29: The wider context of the historic environment, and the roles and responsibilities of statutory authorities, heritage organisations of all types and specialists, e.g. public, private and third sector organisations, subject specialist networks | I29: 0 | K29: NONE | L29: 0 | M29: FULL
A30: K9 | B30: Documentation used in the identification, management, design or recording of the Historic Environment, e.g. assessments of significance, Local Development Plans, listing and designation statements, desk-based assessments, Historic Environment Records. | I30: 0 | K30: NONE | L30: 0 | M30: FULL
A31: K10 | B31: Compliance processes for the historic environment, including heritage at risk and enforcement. | I31: 0 | K31: NONE | L31: =IF(J31=1,1,IF(J31=0.5,0.5,IF(J31=0,0))) -> 0 | M31: FULL
A32: K11 | B32: Their employer’s health and safety policy and procedures and operational procedures and how those relate to industry standards, and the fundamentals of relevant Health and Safety legislation and construction site Health & Safety. How to recognise and report risks. | I32: 0 | K32: NONE | L32: 0 | M32: FULL
A33: K12 | B33: Their role in the context of the project which they are working, what is required of them, and the implications of the project on the wider context of the historic environment. The limits of their own understanding, abilities and responsibilities, and how to practice within them. The ethical requirements of the relevant professional body. | I33: 0 | K33: NONE | L33: 0 | M33: FULL
A34: K13 | B34: Knowledge of learning and self-development opportunities within the sector and how to develop a personal action plan | I34: 0 | K34: NONE | L34: 0 | M34: FULL
A35: K14 | B35: How to identify archaeological sites or building types, styles, technologies, materials and periods in practice. | I35: 0 | K35: NONE | L35: 0 | M35: FULL
B36: Skills
A37: S1 | B37: Work as part of a team and communicate effectively with colleagues, clients and stakeholders | I37: =IF(C37:C52 = "FULLY MET",1,IF(C37:C52 = "PARTIALLY MET",0.5,IF(C37:C52 = "NOT MET",0,))) -> 0 | K37: NONE | L37: =IF(J37=1,1,IF(J37=0.5,0.5,IF(J37=0,0))) -> 0 | M37: FULL
A38: S2 | B38: Coordinate and administer casework and projects, manage projects for clients or organisations including using systems and processes specific to the historic environment sector | I38: 0 | K38: NONE | L38: 0 | M38: FULL
A39: S3 | B39: Demonstrate time management skills, prioritise workload, work under pressure and be able to meet critical deadlines | I39: 0 | K39: NONE | L39: 0 | M39: FULL
A40: S4 | B40: Write reports, specifications and briefs for projects that are complex and non-routine but well defined, e.g. Written Schemes of Investigation, Conservation Management Plans, listing and designation advice, desk-based assessments | I40: 0 | K40: NONE | L40: 0 | M40: FULL
A41: S5 | B41: Interpret technical information and documents on the historic environment, e.g architectural plans, design and access statements, listed building consent orders | I41: 0 | K41: NONE | L41: 0 | M41: FULL
A42: S6 | B42: Link, contextualise and apply legislation, policy, standards and guidance to projects, e.g. Planning (Listed Buildings and Conservation Areas) Act 1990, Ancient Monuments and Archaeological Areas Act 1979, National Planning Policy Framework, Protection of Wrecks Act 1973, Town and Country Planning (Environmental Impact Assessment) Regulations 2017, Ecclesiastical Exemption Order 2010 | I42: 0 | K42: NONE | L42: 0 | M42: FULL
A43: S7 | B43: Assess and describe the condition of the historic environment, e.g conducting evaluation visits, desk-based assessment, assessments of significance | I43: 0 | K43: NONE | L43: 0 | M43: FULL
A44: S8 | B44: Problem solve and evaluate proposals for change and gauge appropriateness of proposed actions | I44: 0 | K44: NONE | L44: 0 | M44: FULL
A45: S9 | B45: Apply relevant historic environment sector standards to check and review work | I45: 0 | K45: NONE | L45: 0 | M45: FULL
A46: S10 | B46: Identify, compile and process data on the historic environment | I46: 0 | K46: NONE | L46: 0 | M46: FULL
A47: S11 | B47: Review and maintain records on the historic environment in accordance with relevant standards | I47: 0 | K47: NONE | L47: 0 | M47: FULL
A48: S12 | B48: Exercise appropriate judgement and decision making, escalating to/involving others when dealing with complex queries or sensitive cases | I48: 0 | K48: NONE | L48: 0 | M48: FULL
A49: S13 | B49: Recognise the potential for work in the historic environment to deliver public benefit, identify opportunities for research and to deliver new knowledge for society | I49: 0 | K49: NONE | L49: 0 | M49: FULL
A50: S14 | B50: Be responsible for mapping and working to data standards, carrying out information reviews or technical investigation on the historic environment | I50: 0 | K50: NONE | L50: 0 | M50: FULL
A51: S15 | B51: Work in a variety of outdoor and indoor site types safely, recognise and report risks in order to reduce the risk of incidents | I51: 0 | K51: NONE | L51: 0 | M51: FULL
A52: S16 | B52: Identify and use of range of methods and techniques to identify archaeological sites or building types, styles, technologies, materials and periods in practice | I52: 0 | K52: NONE | L52: 0 | M52: FULL
B53: Behaviours
A54: B1 | B54: Take reasonable care for the health and safety of themselves and of others who may be affected by their acts or omissions at work | I54: =IF(C54:C60 = "FULLY MET",1,IF(C54:C60 = "PARTIALLY MET",0.5,IF(C54:C60 = "NOT MET",0,))) -> 0 | K54: NONE | L54: =IF(J54=1,1,IF(J54=0.5,0.5,IF(J54=0,0))) -> 0 | M54: FULL
A55: B2 | B55: Focus and pay attention to detail | I55: 0 | K55: NONE | L55: 0 | M55: FULL
A56: B3 | B56: Ability to problem-solve and negotiate | I56: 0 | K56: NONE | L56: 0 | M56: FULL
A57: B4 | B57: Commit to quality and their continuous professional development | I57: 0 | K57: PARTIAL | L57: =IF(J57=1,0.5,IF(J57=0.5,0.5,IF(J57=0,0))) -> 0 | M57: =IF(L57=0.5,"NONE",IF(L57=0,"PARTIAL")) -> PARTIAL
A58: B5 | B58: Work effectively individually and as part of a team | I58: 0 | K58: NONE | L58: =IF(J58=1,1,IF(J58=0.5,0.5,IF(J58=0,0))) -> 0 | M58: FULL
A59: B6 | B59: Be approachable and able to communicate with all levels of their own and other organisations, as well as the general public, in workplace settings, as well as during site visits and stakeholder meetings | I59: 0 | K59: PARTIAL | L59: =IF(J59=1,0.5,IF(J59=0.5,0.5,IF(J59=0,0))) -> 0 | M59: =IF(L59=0.5,"NONE",IF(L59=0,"PARTIAL")) -> PARTIAL
A60: B7 | B60: Be sensitive to and aware of the significance of the historic environment, and the needs of its stakeholders, being conscious of integrity, honesty and professional ethical requirements | I60: 0 | K60: NONE | L60: =IF(J60=1,1,IF(J60=0.5,0.5,IF(J60=0,0))) -> 0 | M60: FULL
I63: Gross score | J63: =SUM(J22:J60) -> 0 | K63: Net Score | L63: =SUM(L22:L60) -> 0
I64: total KSB coverage | J64: =J63/L67 -> 0 | K64: total CoE KSB coverage | L64: =L63/L70 -> 0
K67: total KSBs | L67: 37
K68: fully mitigated | L68: 0
K69: partialy mitigated | L69: 2
K70: net KSB | L70: =L67-L68-(L69*0.5) -> 36

Sheet ST0912
B1: START HERE
B2: Awarding body/Applicant:
B3: Please type the name of awarding body/applicant here
B4: Qualification name:
B5: Please type your qualification title here
B6: Programme title if applicable:
B7: Please type the programme title here
A10: EXAMPLE OF KSB MAPPING
A11: KSB | B11: KSB Statement | C11: KSB coverage Select the coverage provided by the qualification from the dropdown box | D11: Where in the qualification is the relevant content? Please reference precisely where the content you are citing as evidence is within the submitted documents - Document name/Module name/Specific page number | E11: Evidence Quote or copy & paste the relevant content from your referenced qualification documents. Please provide 1 - 3 references that best evidence the KSB and only refer to content that all students will cover regardless of option choice. The information you supply in this column, in conjunction with the Supporting Comments / Rationale column (Column F) should clearly and explicitly demonstrate the declared level of KSB coverage. | F11: Supporting Comments/Rationale Where the evidence in Column E does not clearly and explicitly provide the declared level of coverage or might not be obvious to someone who is not an expert in your qualification, use this space to explain how the level of KSB coverage is achieved by the qualification content - please be specific to the wording and meaning of the KSB statement. Where a KSB is not fully met, please provide the rationale for why you feel this is not achievable. | G11: Assessment method Provide information on the method(s) used to assess this KSB and relevant assessment materials.
A12: K7 | B12: Safe and professional working practices including health, safety, environment and legislative requirements relevant to the sector, the organisation and own role | C12: FULLY MET | D12: Qualification specification, pg 14-16 Module 2: Health, safety and professional working practices, pg 6 | E12: Module 2: LO1 - Understand the importance of health and safety in the workplace. LO2 - Understand the application of health and safety legislation in the workplace. LO3 - Understand how to apply safe working practices to work activities. Indicative content: local, regional, national health & safety regulations, codes of practice, site safety, health & safety promotion, health & safety measures, PPE, manual handling, equipment management, waste disposal, risk management, risk assessment | F12: Learners will be able to show a full understanding of Health & Safety and legislative requirements relevant to the role. The indicative content on Pg 16 of the qualification specification shows they will cover Health & Safety across the wider sector, and then identify some measures that may be specific to certain organisations. Learners will also analyse the role of the employer and the environment with regards to applying Health & Safety working practices and processes. | G12: Module 2 - students will produce a written report using a brief. There is also a short answer paper. Module 2 Assessment Brief pg 7-8 refers.
A13: S23 | B13: Communicate effectively (verbal, non-verbal, written, digital) in manner relevant to the target audience | C13: FULLY MET | D13: Qualification specification, pg 21-22 Module 6: The Fundamentals of Practice, pg 12 Module 9: Personal and Professional Development Skills, pg 11 | E13: Module 6: LO2 - Know how to use digital devices and databases relevant to your workplace. Module 9: LO1 - Understand the uses of different methods of communication. LO3 - Be able to communicate effectively with different audiences. Indicative content: verbal and non-verbal communication skills, presentation skills, academic and non-academic writing style, writing skills | F13: Learners will cover verbal, non-verbal, written and digital communications, and demonstrate practical skills by completing assessment tasks which will include simulated work environments and preparing presentations targeting different audiences. Learners will develop the skills to communicate with people in a professional capacity including co-workers, line managers, clients, contractors and the public. | G13: Module 6 - case study. Module 9 - scenarios in simulated work environment, students will produce presentation. Module 9 assessment pg 4.
B18: Stained glass craftsperson (level 4)
B19: Return to Guide
A20: KSB | B20: KSB Statement | C20: KSB coverage Select the coverage provided by the qualification from the dropdown box | D20: Where in the qualification is the relevant content? Please reference precisely where the content you are citing as evidence is within the submitted documents - Document name/Module name/Specific page number | E20: Evidence Quote or copy & paste the relevant content from your referenced qualification documents. Please provide 1 - 3 references that best evidence the KSB and only refer to content that all students will cover regardless of option choice. The information you supply in this column, in conjunction with the Supporting Comments / Rationale column (Column F) should clearly and explicitly demonstrate the declared level of KSB coverage. | F20: Supporting Comments/Rationale Where the evidence in Column E does not clearly and explicitly provide the declared level of coverage or might not be obvious to someone who is not an expert in your qualification, use this space to explain how the level of KSB coverage is achieved by the qualification content - please be specific to the wording and meaning of the KSB statement. Where a KSB is not fully met, please provide the rationale for why you feel this is not achievable. | G20: Assessment method Provide information on the method(s) used to assess this KSB and relevant assessment materials. | I20: AB Score | J20: IM Score | K20: Mitigations | L20: CoE Score | M20: Outstanding Requirement | N20: IM Comment | O20: IM moderation | P20: G7 QA | Q20: IM G7 Response | R20: Conclusion
B21: Knowledge
A22: K1 | B22: Basic health and safety requirements associated within the workshop and on-site, including COSHH legislation, risk assessment method statements, working at height, use of tools, materials and associated processes. | I22: =IF(C22:C40 = "FULLY MET",1,IF(C22:C40 = "PARTIALLY MET",0.5,IF(C22:C40 = "NOT MET",0,))) -> 0 | K22: NONE | L22: =IF(J22=1,1,IF(J22=0.5,0.5,IF(J22=0,0))) -> 0 | M22: =IF(L22=1,"NONE",IF(L22=0.5,"PARTIAL",IF(L22=0,"FULL"))) -> FULL
A23: K2 | B23: The hazards associated with different materials and sustainable waste disposal processes. | I23: 0 | K23: NONE | L23: 0 | M23: FULL
A24: K3 | B24: The importance and requirements of clear communication to staff team, clients and external colleagues. | I24: 0 | K24: NONE | L24: 0 | M24: FULL
A25: K4 | B25: The context of each project through research and consider this in your working process. E.g. monetary, historical or cultural value. | I25: 0 | K25: NONE | L25: 0 | M25: FULL
A26: K5 | B26: The developments of artistic styles, processes and materials as well as the wider architectural and historic context of stained glass within a particular building/setting. | I26: 0 | K26: NONE | L26: 0 | M26: FULL
A27: K6 | B27: Appropriate research for each project and how to utilise a range of relevant and credible sources. | I27: 0 | K27: NONE | L27: 0 | M27: FULL
A28: K7 | B28: The information required to be collected during site visits to enable project work to progress e.g. measurements required and how to use templates. | I28: 0 | K28: NONE | L28: 0 | M28: FULL
A29: K8 | B29: The requirements for developing designs and which methods should be used to inform the designs e.g. knowing when to use a rubbing or a cut-line drawing. | I29: 0 | K29: NONE | L29: 0 | M29: FULL
A30: K9 | B30: How to dismantle and assemble glass panels to ensure glass can be removed or replaced without damage. | I30: 0 | K30: NONE | L30: 0 | M30: FULL
A31: K10 | B31: The importance of accurate documentation e.g. recording of positioning, damage and previous repairs. | I31: 0 | K31: NONE | L31: 0 | M31: FULL
A32: K11 | B32: Materials commonly used in architectural glass windows including different types of glass e.g. flash glass, hand blown and machine-made glass. | I32: 0 | K32: NONE | L32: 0 | M32: FULL
A33: K12 | B33: How to safely and correctly cut specialist glass using appropriate hand tools e.g. correct hand positioning when using glass cutter. | I33: 0 | K33: NONE | L33: 0 | M33: FULL
A34: K13 | B34: Different storage and handling considerations for fragile/large/heavy glass panels. | I34: 0 | K34: NONE | L34: 0 | M34: FULL
A35: K14 | B35: How to select and handle appropriate materials for fabrication. E.g. Lead types. | I35: 0 | K35: NONE | L35: 0 | M35: FULL
A36: K15 | B36: How to cut and shape materials when fabricating. E.g. Lead or other materials. | I36: 0 | K36: NONE | L36: 0 | M36: FULL
A37: K16 | B37: How to construct a large-scale architectural glass panel to maximize stability. E.g. lead matrix. | I37: 0 | K37: NONE | L37: 0 | M37: FULL
A38: K17 | B38: Joining or soldering processes specific to fabrication. E.g. Stained glass fabrication or bonding techniques. | I38: 0 | K38: NONE | L38: 0 | M38: FULL
A39: K18 | B39: The importance of correct waterproofing procedures and selection of materials. E.g. cementing or sealants. | I39: 0 | K39: NONE | L39: 0 | M39: FULL
A40: K19 | B40: The importance of building and environmental regulations and security requirements for a window within an architectural context. | I40: 0 | K40: NONE | L40: 0 | M40: FULL
B41: Skills
A42: S1 | B42: Apply health and safety precautions associated within the workshop and on-site, including COSHH, safe handling and useage of tools, materials and associated processes, use of PPE, adhering to risk assessment method statements and complying with working at height legislation. | I42: =IF(C42:C56 = "FULLY MET",1,IF(C42:C56 = "PARTIALLY MET",0.5,IF(C42:C56 = "NOT MET",0,))) -> 0 | K42: NONE | L42: =IF(J42=1,1,IF(J42=0.5,0.5,IF(J42=0,0))) -> 0 | M42: =IF(L42=1,"NONE",IF(L42=0.5,"PARTIAL",IF(L42=0,"FULL"))) -> FULL
A43: S2 | B43: Clearly communicate information to staff colleagues and external clients/stakeholders. | I43: 0 | K43: NONE | L43: 0 | M43: FULL
A44: S3 | B44: Collecting, documenting and applying appropriate research for each project and utilising a range of relevant and credible sources including photography, sketches and note-taking. | I44: 0 | K44: NONE | L44: 0 | M44: FULL
A45: S4 | B45: Accurately measure widths, heights, bar positions, lead profiles, etc. of openings e.g. using tape measures and fabricating templates of openings. | I45: 0 | K45: NONE | L45: 0 | M45: FULL
A46: S5 | B46: Preparing accurate drawings and cartoons using measurements and templates taken on-site. | I46: 0 | K46: NONE | L46: 0 | M46: FULL
A47: S6 | B47: Create rubbings using paper and wax method to faithfully reproduce original designs. | I47: 0 | K47: NONE | L47: 0 | M47: FULL
A48: S7 | B48: Accurately and appropriately document existing condition of panel through photography, drawing and note-taking. | I48: 0 | K48: NONE | L48: 0 | M48: FULL
A49: S8 | B49: Safely and systematically dismantle or assemble glass panels using the appropriate tools to ensure glass can be removed or re-assembled without damage. | I49: 0 | K49: NONE | L49: 0 | M49: FULL
A50: S9 | B50: Safely and correctly cut specialist glass using appropriate hand tools e.g. glass cutter, using appropriate positioning for both hand and type of glass. | I50: 0 | K50: NONE | L50: 0 | M50: FULL
A51: S10 | B51: Ensure correct storage and safe handling is used for fragile/ large/heavy glass panels. | I51: 0 | K51: NONE | L51: 0 | M51: FULL
A52: S11 | B52: Undertake construction processes appropriate to project including preparation and cleaning. E.g. using a soldering iron for stained-glass or bonding glass elements. | I52: 0 | K52: NONE | L52: 0 | M52: FULL
A53: S12 | B53: Application of correct waterproofing procedures, selecting correct materials. E.g. cementing or sealing. | I53: 0 | K53: NONE | L53: 0 | M53: FULL
A54: S13 | B54: Select and handle correct specialist materials appropriate to the task e.g. flat leads, convex leads. | I54: 0 | K54: NONE | L54: 0 | M54: FULL
A55: S14 | B55: Safely cut and shape specialist materials using appropriate tools. E.g. lead or glass | I55: 0 | K55: NONE | L55: 0 | M55: FULL
A56: S15 | B56: Construct using appropriate methods depending on fabricating technique. E.g. lead matrices to maximize stability which ensures longevity. | I56: 0 | K56: NONE | L56: 0 | M56: FULL
B57: Behaviours
A58: B1 | B58: Awareness and proactive approach towards the legal health and safety obligations required in the workplace, both individually and towards others. | I58: =IF(C58:C66 = "FULLY MET",1,IF(C58:C66 = "PARTIALLY MET",0.5,IF(C58:C66 = "NOT MET",0,))) -> 0 | K58: NONE | L58: =IF(J58=1,1,IF(J58=0.5,0.5,IF(J58=0,0))) -> 0 | M58: =IF(L58=1,"NONE",IF(L58=0.5,"PARTIAL",IF(L58=0,"FULL"))) -> FULL
A59: B2 | B59: Awareness of effective communication and teamwork within studio and external stakeholder engagements including appreciation of allied trades and how they all contribute to the project. | I59: 0 | K59: PARTIAL | L59: =IF(J59=1,0.5,IF(J59=0.5,0.5,IF(J59=0,0))) -> 0 | M59: =IF(L59=0.5,"NONE",IF(L59=0,"PARTIAL")) -> PARTIAL
A60: B3 | B60: A methodical and organised approach to collecting, clearly presenting and applying research. | I60: 0 | K60: NONE | L60: =IF(J60=1,1,IF(J60=0.5,0.5,IF(J60=0,0))) -> 0 | M60: =IF(L60=1,"NONE",IF(L60=0.5,"PARTIAL",IF(L60=0,"FULL"))) -> FULL
A61: B4 | B61: Maintaining accuracy and an eye for detail when conducting all work. | I61: 0 | K61: NONE | L61: 0 | M61: FULL
A62: B5 | B62: Consistently selecting most appropriate methods and ways of working for each project. | I62: 0 | K62: NONE | L62: 0 | M62: FULL
A63: B6 | B63: Maintaining systematic an organised approach to tasks. | I63: 0 | K63: NONE | L63: 0 | M63: FULL
A64: B7 | B64: Respect and care of tools and equipment. | I64: 0 | K64: NONE | L64: 0 | M64: FULL
A65: B8 | B65: Care and appreciation of the artefact being worked on e.g. sentimental, historic and monetary value. | I65: 0 | K65: NONE | L65: 0 | M65: FULL
A66: B9 | B66: Appreciate own knowledge and skill levels and recognise when the situation may be beyond own capabilities. | I66: 0 | K66: NONE | L66: 0 | M66: FULL
I69: Gross score | J69: =SUM(J22:J66) -> 0 | K69: Net Score | L69: =SUM(L22:L66) -> 0
I70: total KSB coverage | J70: =J69/L73 -> 0 | K70: total CoE KSB coverage | L70: =L69/L76 -> 0
K73: total KSBs | L73: 43
K74: fully mitigated | L74: 0
K75: partialy mitigated | L75: 1
K76: net KSB | L76: =L73-L74-(L75*0.5) -> 42.5

Sheet ST0933
B1: START HERE
B2: Awarding body/Applicant:
B3: Please type the name of awarding body/applicant here
B4: Qualification name:
B5: Please type your qualification title here
B6: Programme title if applicable:
B7: Please type the programme title here
A10: EXAMPLE OF KSB MAPPING
A11: KSB | B11: KSB Statement | C11: KSB coverage Select the coverage provided by the qualification from the dropdown box | D11: Where in the qualification is the relevant content? Please reference precisely where the content you are citing as evidence is within the submitted documents - Document name/Module name/Specific page number | E11: Evidence Quote or copy & paste the relevant content from your referenced qualification documents. Please provide 1 - 3 references that best evidence the KSB and only refer to content that all students will cover regardless of option choice. The information you supply in this column, in conjunction with the Supporting Comments / Rationale column (Column F) should clearly and explicitly demonstrate the declared level of KSB coverage. | F11: Supporting Comments/Rationale Where the evidence in Column E does not clearly and explicitly provide the declared level of coverage or might not be obvious to someone who is not an expert in your qualification, use this space to explain how the level of KSB coverage is achieved by the qualification content - please be specific to the wording and meaning of the KSB statement. Where a KSB is not fully met, please provide the rationale for why you feel this is not achievable. | G11: Assessment method Provide information on the method(s) used to assess this KSB and relevant assessment materials.
A12: K7 | B12: Safe and professional working practices including health, safety, environment and legislative requirements relevant to the sector, the organisation and own role | C12: FULLY MET | D12: Qualification specification, pg 14-16 Module 2: Health, safety and professional working practices, pg 6 | E12: Module 2: LO1 - Understand the importance of health and safety in the workplace. LO2 - Understand the application of health and safety legislation in the workplace. LO3 - Understand how to apply safe working practices to work activities. Indicative content: local, regional, national health & safety regulations, codes of practice, site safety, health & safety promotion, health & safety measures, PPE, manual handling, equipment management, waste disposal, risk management, risk assessment | F12: Learners will be able to show a full understanding of Health & Safety and legislative requirements relevant to the role. The indicative content on Pg 16 of the qualification specification shows they will cover Health & Safety across the wider sector, and then identify some measures that may be specific to certain organisations. Learners will also analyse the role of the employer and the environment with regards to applying Health & Safety working practices and processes. | G12: Module 2 - students will produce a written report using a brief. There is also a short answer paper. Module 2 Assessment Brief pg 7-8 refers.
A13: S23 | B13: Communicate effectively (verbal, non-verbal, written, digital) in manner relevant to the target audience | C13: FULLY MET | D13: Qualification specification, pg 21-22 Module 6: The Fundamentals of Practice, pg 12 Module 9: Personal and Professional Development Skills, pg 11 | E13: Module 6: LO2 - Know how to use digital devices and databases relevant to your workplace. Module 9: LO1 - Understand the uses of different methods of communication. LO3 - Be able to communicate effectively with different audiences. Indicative content: verbal and non-verbal communication skills, presentation skills, academic and non-academic writing style, writing skills | F13: Learners will cover verbal, non-verbal, written and digital communications, and demonstrate practical skills by completing assessment tasks which will include simulated work environments and preparing presentations targeting different audiences. Learners will develop the skills to communicate with people in a professional capacity including co-workers, line managers, clients, contractors and the public. | G13: Module 6 - case study. Module 9 - scenarios in simulated work environment, students will produce presentation. Module 9 assessment pg 4.
B18: Post production engineer (level 5)
B19: Return to Guide
A20: KSB | B20: KSB Statement | C20: KSB coverage Select the coverage provided by the qualification from the dropdown box | D20: Where in the qualification is the relevant content? Please reference precisely where the content you are citing as evidence is within the submitted documents - Document name/Module name/Specific page number | E20: Evidence Quote or copy & paste the relevant content from your referenced qualification documents. Please provide 1 - 3 references that best evidence the KSB and only refer to content that all students will cover regardless of option choice. The information you supply in this column, in conjunction with the Supporting Comments / Rationale column (Column F) should clearly and explicitly demonstrate the declared level of KSB coverage. | F20: Supporting Comments/Rationale Where the evidence in Column E does not clearly and explicitly provide the declared level of coverage or might not be obvious to someone who is not an expert in your qualification, use this space to explain how the level of KSB coverage is achieved by the qualification content - please be specific to the wording and meaning of the KSB statement. Where a KSB is not fully met, please provide the rationale for why you feel this is not achievable. | G20: Assessment method Provide information on the method(s) used to assess this KSB and relevant assessment materials. | I20: AB Score | J20: IM Score | K20: Mitigations | L20: CoE Score | M20: Outstanding Requirement | N20: IM Comment | O20: IM moderation | P20: G7 QA | Q20: IM G7 Response | R20: Conclusion
B21: Knowledge
A22: K1 | B22: How SMPTE (Society of Motion Picture Television Engineers) standards impact on the work of post-production organisations | I22: =IF(C22:C40 = "FULLY MET",1,IF(C22:C40 = "PARTIALLY MET",0.5,IF(C22:C40 = "NOT MET",0,))) -> 0 | K22: NONE | L22: =IF(J22=1,1,IF(J22=0.5,0.5,IF(J22=0,0))) -> 0 | M22: =IF(L22=1,"NONE",IF(L22=0.5,"PARTIAL",IF(L22=0,"FULL"))) -> FULL
A23: K2 | B23: The common industry standards for computer networks that impact on post production systems | I23: 0 | K23: NONE | L23: 0 | M23: FULL
A24: K3 | B24: How to identify the operational state of systems and equipment | I24: 0 | K24: NONE | L24: 0 | M24: FULL
A25: K4 | B25: K4: How to identify when issues are technology related and when they may require user training | I25: 0 | K25: NONE | L25: 0 | M25: FULL
A26: K5 | B26: The key software and operating systems used by the organisation e.g. SALT, ANSIBLE, PUPPET | I26: 0 | K26: NONE | L26: 0 | M26: FULL
A27: K6 | B27: Understanding of the overall facility infrastructure including cabling, servers, studios | I27: 0 | K27: NONE | L27: 0 | M27: FULL
A28: K7 | B28: How key post-production software applications are used within the organisation to balance sound, colour, visual effects and transition between sections. | I28: 0 | K28: NONE | L28: 0 | M28: FULL
A29: K8 | B29: The common faults that can arise with Post Production systems and software | I29: 0 | K29: NONE | L29: 0 | M29: FULL
A30: K9 | B30: The solutions that can be applied to common system and software faults | I30: 0 | K30: NONE | L30: 0 | M30: FULL
A31: K10 | B31: The creative workflow used within the organisation | I31: 0 | K31: NONE | L31: 0 | M31: FULL
A32: K11 | B32: How to recognise the organisational priorities and how they impact on the planning of work activities in the immediate, short and long term | I32: 0 | K32: NONE | L32: 0 | M32: FULL
A33: K12 | B33: Hardware set up including location of gear, cabling, video routers and relevant labelling | I33: 0 | K33: NONE | L33: 0 | M33: FULL
A34: K13 | B34: Basic TCP (Transmission Control Protocol) used to allow computers to communicate on a network such as the internet | I34: 0 | K34: NONE | L34: 0 | M34: FULL
A35: K14 | B35: Where and when internal and external general and specialist expertise can be sought | I35: 0 | K35: NONE | L35: 0 | M35: FULL
A36: K15 | B36: How problem-solving techniques (such as root cause analysis) can be applied to resolve routine and bespoke problems and how triage methods can be used to prioritise activities | I36: 0 | K36: NONE | L36: 0 | M36: FULL
A37: K16 | B37: How to manage the expectations of internal and external customers | I37: 0 | K37: NONE | L37: 0 | M37: FULL
A38: K17 | B38: How configuration of new equipment is managed | I38: 0 | K38: NONE | L38: 0 | M38: FULL
A39: K18 | B39: The processes in place for data and physical security and its critical importance to the organisation | I39: 0 | K39: NONE | L39: 0 | M39: FULL
A40: K19 | B40: Environmental and Health and Safety policies and procedures | I40: 0 | K40: NONE | L40: 0 | M40: FULL
B41: Skills
A42: S1 | B42: Engage with clients to determine system requirements and establish hardware and software needs | I42: =IF(C42:C68 = "FULLY MET",1,IF(C42:C68 = "PARTIALLY MET",0.5,IF(C42:C68 = "NOT MET",0,))) -> 0 | K42: NONE | L42: =IF(J42=1,1,IF(J42=0.5,0.5,IF(J42=0,0))) -> 0 | M42: =IF(L42=1,"NONE",IF(L42=0.5,"PARTIAL",IF(L42=0,"FULL"))) -> FULL
A43: S2 | B43: Determine the scope of the task and agrees the specification | I43: 0 | K43: NONE | L43: 0 | M43: FULL
A44: S3 | B44: Set up new hardware and software systems to specification and to meet security requirements | I44: 0 | K44: NONE | L44: 0 | M44: FULL
A45: S4 | B45: Apply and follow defined procedures for maintenance and set up activities | I45: 0 | K45: NONE | L45: 0 | M45: FULL
A46: S5 | B46: Monitor and adjust calibration of equipment using SMPTE standards as a benchmark | I46: 0 | K46: NONE | L46: 0 | M46: FULL
A47: S6 | B47: Identify correct operational state of equipment and the operational status of applications | I47: 0 | K47: NONE | L47: 0 | M47: FULL
A48: S7 | B48: Select and use appropriate test equipment and software | I48: 0 | K48: NONE | L48: 0 | M48: FULL
A49: S8 | B49: Monitor and identify when applications and equipment are not working correctly | I49: 0 | K49: NONE | L49: 0 | M49: FULL
A50: S9 | B50: Operate and use IT hardware and auxiliary equipment effectively | I50: 0 | K50: NONE | L50: 0 | M50: FULL
A51: S10 | B51: Implement regular analysis to establish the on-going performance of systems | I51: 0 | K51: NONE | L51: 0 | M51: FULL
A52: S11 | B52: Gather and interpret information to identify the root cause of technical problems and apply a triage process in identifying faults | I52: 0 | K52: NONE | L52: 0 | M52: FULL
A53: S12 | B53: Apply diagnostic processes to identify and assess the scale of bespoke hardware and software problems | I53: 0 | K53: NONE | L53: 0 | M53: FULL
A54: S13 | B54: Evaluate possible solutions taking into account cost, time and priority | I54: 0 | K54: NONE | L54: 0 | M54: FULL
A55: S14 | B55: Reproduce and document fault conditions | I55: 0 | K55: NONE | L55: 0 | M55: FULL
A56: S15 | B56: Utilise helpdesk systems to track backlog and maintain customer service | I56: 0 | K56: NONE | L56: 0 | M56: FULL
A57: S16 | B57: Implement checks to review and evaluate the effectiveness of solutions | I57: 0 | K57: NONE | L57: 0 | M57: FULL
A58: S17 | B58: Log the progress of work and key actions on organisational systems | I58: 0 | K58: PARTIAL | L58: =IF(J58=1,0.5,IF(J58=0.5,0.5,IF(J58=0,0))) -> 0 | M58: =IF(L58=0.5,"NONE",IF(L58=0,"PARTIAL")) -> PARTIAL
A59: S18 | B59: Schedule and implement work to take account of workflow to minimise negative impact | I59: 0 | K59: NONE | L59: =IF(J59=1,1,IF(J59=0.5,0.5,IF(J59=0,0))) -> 0 | M59: =IF(L59=1,"NONE",IF(L59=0.5,"PARTIAL",IF(L59=0,"FULL"))) -> FULL
A60: S19 | B60: Implement creative workarounds until a permanent solution can be put in place | I60: 0 | K60: NONE | L60: 0 | M60: FULL
A61: S20 | B61: Brief other specialists to assist with the resolution of problems | I61: 0 | K61: NONE | L61: 0 | M61: FULL
A62: S21 | B62: Respond effectively in pressurised periods of work | I62: 0 | K62: NONE | L62: 0 | M62: FULL
A63: S22 | B63: Take ownership of the work environment and identified problems | I63: 0 | K63: NONE | L63: 0 | M63: FULL
A64: S23 | B64: Able to assess user state, user goals and user difficulties | I64: 0 | K64: NONE | L64: 0 | M64: FULL
A65: S24 | B65: Manage creative issues and establish trust with colleagues in order to minimise conflict | I65: 0 | K65: NONE | L65: 0 | M65: FULL
A66: S25 | B66: Describe complex problems in a simple and clear way to users and colleagues | I66: 0 | K66: NONE | L66: 0 | M66: FULL
A67: S26 | B67: Support junior staff by providing guidance on how to resolve system problems, checking the quality of their work and providing constructive feedback | I67: 0 | K67: PARTIAL | L67: =IF(J67=1,0.5,IF(J67=0.5,0.5,IF(J67=0,0))) -> 0 | M67: =IF(L67=0.5,"NONE",IF(L67=0,"PARTIAL")) -> PARTIAL
A68: S27 | B68: Complies with Environmental and Health and Safety polices and procedures. | I68: 0 | K68: NONE | L68: =IF(J68=1,1,IF(J68=0.5,0.5,IF(J68=0,0))) -> 0 | M68: =IF(L68=1,"NONE",IF(L68=0.5,"PARTIAL",IF(L68=0,"FULL"))) -> FULL
B69: Behaviours
A70: B1 | B70: Champions the importance of adherence to the organisation’s Environmental, Health and Safety management systems:- actively displays and promotes a safety first culture within the organisation | I70: =IF(C70:C77 = "FULLY MET",1,IF(C70:C77 = "PARTIALLY MET",0.5,IF(C70:C77 = "NOT MET",0,))) -> 0 | K70: PARTIAL | L70: =IF(J70=1,0.5,IF(J70=0.5,0.5,IF(J70=0,0))) -> 0 | M70: =IF(L70=0.5,"NONE",IF(L70=0,"PARTIAL")) -> PARTIAL
A71: B2 | B71: Operates in a systematic, proactive and transparent way | I71: 0 | K71: NONE | L71: =IF(J71=1,1,IF(J71=0.5,0.5,IF(J71=0,0))) -> 0 | M71: =IF(L71=1,"NONE",IF(L71=0.5,"PARTIAL",IF(L71=0,"FULL"))) -> FULL
A72: B3 | B72: Actively promotes the case for the adoption of emerging and advanced technologies to optimise performance | I72: 0 | K72: NONE | L72: 0 | M72: FULL
A73: B4 | B73: Takes full responsibility for own professional development, seeking opportunities to enhance knowledge, skills and experience. Keeps abreast of developments in emerging technologies | I73: 0 | K73: PARTIAL | L73: =IF(J73=1,0.5,IF(J73=0.5,0.5,IF(J73=0,0))) -> 0 | M73: =IF(L73=0.5,"NONE",IF(L73=0,"PARTIAL")) -> PARTIAL
A74: B5 | B74: Accepts responsibility for their workload with a responsible approach to risk | I74: 0 | K74: NONE | L74: =IF(J74=1,1,IF(J74=0.5,0.5,IF(J74=0,0))) -> 0 | M74: =IF(L74=1,"NONE",IF(L74=0.5,"PARTIAL",IF(L74=0,"FULL"))) -> FULL
A75: B6 | B75: Demonstrates a high level of motivation and resilience when facing challenging situations | I75: 0 | K75: NONE | L75: 0 | M75: FULL
A76: B7 | B76: Creates and maintains positive, professional, trusting and ethical working relationships with their team and the wider range of internal, external and connected stakeholders | I76: 0 | K76: PARTIAL | L76: =IF(J76=1,0.5,IF(J76=0.5,0.5,IF(J76=0,0))) -> 0 | M76: =IF(L76=0.5,"NONE",IF(L76=0,"PARTIAL")) -> PARTIAL
A77: B8 | B77: Acts professionally when engaging with colleagues and clients | I77: 0 | K77: NONE | L77: =IF(J77=1,1,IF(J77=0.5,0.5,IF(J77=0,0))) -> 0 | M77: FULL
I80: Gross score | J80: =SUM(J22:J77) -> 0 | K80: Net Score | L80: =SUM(L22:L77) -> 0
I81: total KSB coverage | J81: =J80/L84 -> 0 | K81: total CoE KSB coverage | L81: =L80/L87 -> 0
K84: total KSBs | L84: 54
K85: fully mitigated | L85: 0
K86: partialy mitigated | L86: 5
K87: net KSB | L87: =L84-L85-(L86*0.5) -> 51.5

Sheet ST0940
B1: START HERE
B2: Awarding body/Applicant:
B3: Please type the name of awarding body/applicant here
B4: Qualification name:
B5: Please type your qualification title here
B6: Programme title if applicable:
B7: Please type the programme title here
A10: EXAMPLE OF KSB MAPPING
A11: KSB | B11: KSB Statement | C11: KSB coverage Select the coverage provided by the qualification from the dropdown box | D11: Where in the qualification is the relevant content? Please reference precisely where the content you are citing as evidence is within the submitted documents - Document name/Module name/Specific page number | E11: Evidence Quote or copy & paste the relevant content from your referenced qualification documents. Please provide 1 - 3 references that best evidence the KSB and only refer to content that all students will cover regardless of option choice. The information you supply in this column, in conjunction with the Supporting Comments / Rationale column (Column F) should clearly and explicitly demonstrate the declared level of KSB coverage. | F11: Supporting Comments/Rationale Where the evidence in Column E does not clearly and explicitly provide the declared level of coverage or might not be obvious to someone who is not an expert in your qualification, use this space to explain how the level of KSB coverage is achieved by the qualification content - please be specific to the wording and meaning of the KSB statement. Where a KSB is not fully met, please provide the rationale for why you feel this is not achievable. | G11: Assessment method Provide information on the method(s) used to assess this KSB and relevant assessment materials.
A12: K7 | B12: Safe and professional working practices including health, safety, environment and legislative requirements relevant to the sector, the organisation and own role | C12: FULLY MET | D12: Qualification specification, pg 14-16 Module 2: Health, safety and professional working practices, pg 6 | E12: Module 2: LO1 - Understand the importance of health and safety in the workplace. LO2 - Understand the application of health and safety legislation in the workplace. LO3 - Understand how to apply safe working practices to work activities. Indicative content: local, regional, national health & safety regulations, codes of practice, site safety, health & safety promotion, health & safety measures, PPE, manual handling, equipment management, waste disposal, risk management, risk assessment | F12: Learners will be able to show a full understanding of Health & Safety and legislative requirements relevant to the role. The indicative content on Pg 16 of the qualification specification shows they will cover Health & Safety across the wider sector, and then identify some measures that may be specific to certain organisations. Learners will also analyse the role of the employer and the environment with regards to applying Health & Safety working practices and processes. | G12: Module 2 - students will produce a written report using a brief. There is also a short answer paper. Module 2 Assessment Brief pg 7-8 refers.
A13: S23 | B13: Communicate effectively (verbal, non-verbal, written, digital) in manner relevant to the target audience | C13: FULLY MET | D13: Qualification specification, pg 21-22 Module 6: The Fundamentals of Practice, pg 12 Module 9: Personal and Professional Development Skills, pg 11 | E13: Module 6: LO2 - Know how to use digital devices and databases relevant to your workplace. Module 9: LO1 - Understand the uses of different methods of communication. LO3 - Be able to communicate effectively with different audiences. Indicative content: verbal and non-verbal communication skills, presentation skills, academic and non-academic writing style, writing skills | F13: Learners will cover verbal, non-verbal, written and digital communications, and demonstrate practical skills by completing assessment tasks which will include simulated work environments and preparing presentations targeting different audiences. Learners will develop the skills to communicate with people in a professional capacity including co-workers, line managers, clients, contractors and the public. | G13: Module 6 - case study. Module 9 - scenarios in simulated work environment, students will produce presentation. Module 9 assessment pg 4.
B18: Audiovisual technician (level 5)
B19: Return to Guide
A20: KSB | B20: KSB Statement | C20: KSB coverage Select the coverage provided by the qualification from the dropdown box | D20: Where in the qualification is the relevant content? Please reference precisely where the content you are citing as evidence is within the submitted documents - Document name/Module name/Specific page number | E20: Evidence Quote or copy & paste the relevant content from your referenced qualification documents. Please provide 1 - 3 references that best evidence the KSB and only refer to content that all students will cover regardless of option choice. The information you supply in this column, in conjunction with the Supporting Comments / Rationale column (Column F) should clearly and explicitly demonstrate the declared level of KSB coverage. | F20: Supporting Comments/Rationale Where the evidence in Column E does not clearly and explicitly provide the declared level of coverage or might not be obvious to someone who is not an expert in your qualification, use this space to explain how the level of KSB coverage is achieved by the qualification content - please be specific to the wording and meaning of the KSB statement. Where a KSB is not fully met, please provide the rationale for why you feel this is not achievable. | G20: Assessment method Provide information on the method(s) used to assess this KSB and relevant assessment materials. | I20: AB Score | J20: IM Score | K20: Mitigations | L20: CoE Score | M20: Outstanding Requirement | N20: IM Comment | O20: IM moderation | P20: G7 QA | Q20: IM G7 Response | R20: Conclusion
B21: Knowledge
A22: K1 | B22: Connection of audio system components, signal flow and conversion | I22: =IF(C22:C52 = "FULLY MET",1,IF(C22:C52 = "PARTIALLY MET",0.5,IF(C22:C52 = "NOT MET",0,))) -> 0 | K22: NONE | L22: =IF(J22=1,1,IF(J22=0.5,0.5,IF(J22=0,0))) -> 0 | M22: =IF(L22=1,"NONE",IF(L22=0.5,"PARTIAL",IF(L22=0,"FULL"))) -> FULL
A23: K2 | B23: Methods of configuring and testing wireless microphones and what are common issues and adequate problem solving techniques | I23: 0 | K23: NONE | L23: 0 | M23: FULL
A24: K3 | B24: The impact of microphone placement and room acoustics on an audio signal | I24: 0 | K24: NONE | L24: 0 | M24: FULL
A25: K4 | B25: Audio mixing desk routing and operation | I25: 0 | K25: NONE | L25: 0 | M25: FULL
A26: K5 | B26: Digital Audio Workstation fundamental operations | I26: 0 | K26: NONE | L26: 0 | M26: FULL
A27: K6 | B27: Unmanaged audio mixing scenarios | I27: 0 | K27: NONE | L27: 0 | M27: FULL
A28: K7 | B28: Lighting design and fixtures/controller connections | I28: 0 | K28: NONE | L28: 0 | M28: FULL
A29: K8 | B29: Synchronisation of video signals for multi-camera setups | I29: 0 | K29: NONE | L29: 0 | M29: FULL
A30: K9 | B30: Principals of photography for moving image | I30: 0 | K30: NONE | L30: 0 | M30: FULL
A31: K10 | B31: Appropriate audiovisual equipment and/or applications for a given brief | I31: 0 | K31: NONE | L31: 0 | M31: FULL
A32: K11 | B32: Project management principles: planning, change, budgets, and documentation | I32: 0 | K32: NONE | L32: 0 | M32: FULL
A33: K12 | B33: Integrated audiovisual solutions for specific requirements | I33: 0 | K33: NONE | L33: 0 | M33: FULL
A34: K13 | B34: How to use CAD drawings when designing systems | I34: 0 | K34: NONE | L34: 0 | M34: FULL
A35: K14 | B35: AV over IP concepts and operation: servers, digital signage, channel distribution, and access | I35: 0 | K35: NONE | L35: 0 | M35: FULL
A36: K15 | B36: Awareness of the strengths, weaknesses, and limitations of videoconferencing systems and platforms | I36: 0 | K36: NONE | L36: 0 | M36: FULL
A37: K16 | B37: Videoconferencing booking systems | I37: 0 | K37: NONE | L37: 0 | M37: FULL
A38: K17 | B38: Redundancy and backup systems relevant to the project | I38: 0 | K38: NONE | L38: 0 | M38: FULL
A39: K18 | B39: Hardware/software configurations for streaming online audiovisual content | I39: 0 | K39: NONE | L39: 0 | M39: FULL
A40: K19 | B40: Installation/configuration of personal computers and common computer operating systems general functionality | I40: 0 | K40: NONE | L40: 0 | M40: FULL
A41: K20 | B41: Project mastering | I41: 0 | K41: NONE | L41: 0 | M41: FULL
A42: K21 | B42: Designation of video resolutions, frame rates, and output options | I42: 0 | K42: NONE | L42: 0 | M42: FULL
A43: K22 | B43: Video compression and decompression through codec and bitrate workflows | I43: 0 | K43: NONE | L43: 0 | M43: FULL
A44: K23 | B44: Required workflows for online and offline edits utilising a media server | I44: 0 | K44: NONE | L44: 0 | M44: FULL
A45: K24 | B45: Designation of sampling rate, bit depth, and channel options | I45: 0 | K45: NONE | L45: 0 | M45: FULL
A46: K25 | B46: Audio deliverables within the context of a specific project | I46: 0 | K46: NONE | L46: 0 | M46: FULL
A47: K26 | B47: Different types of online events, their requirements and key considerations | I47: 0 | K47: NONE | L47: 0 | M47: FULL
A48: K27 | B48: Interactive solutions for online events | I48: 0 | K48: NONE | L48: 0 | M48: FULL
A49: K28 | B49: Audiovisual accessibility considerations and systems | I49: 0 | K49: NONE | L49: 0 | M49: FULL
A50: K29 | B50: Personal data management in accordance with relevant data protection legislation | I50: 0 | K50: NONE | L50: 0 | M50: FULL
A51: K30 | B51: National, employer, and context specific health and safety regulations | I51: 0 | K51: NONE | L51: 0 | M51: FULL
A52: K31 | B52: Potential hazards and preventative measures | I52: 0 | K52: NONE | L52: 0 | M52: FULL
B53: Skills
A54: S1 | B54: Operate a video camera and vision mixer | I54: =IF(C54:C81 = "FULLY MET",1,IF(C54:C81 = "PARTIALLY MET",0.5,IF(C54:C81 = "NOT MET",0,))) -> 0 | K54: NONE | L54: =IF(J54=1,1,IF(J54=0.5,0.5,IF(J54=0,0))) -> 0 | M54: =IF(L54=1,"NONE",IF(L54=0.5,"PARTIAL",IF(L54=0,"FULL"))) -> FULL
A55: S2 | B55: Integrate a projector and/or display as part of an audiovisual presentation | I55: 0 | K55: NONE | L55: 0 | M55: FULL
A56: S3 | B56: Audio mixing; loudness, timbre, spatialisation, and channel management | I56: 0 | K56: NONE | L56: 0 | M56: FULL
A57: S4 | B57: Apply and problem solve video signal flow for live production | I57: 0 | K57: NONE | L57: 0 | M57: FULL
A58: S5 | B58: Operate and program lighting control software/hardware | I58: 0 | K58: NONE | L58: 0 | M58: FULL
A59: S6 | B59: Root cause analysis & problem solving | I59: 0 | K59: NONE | L59: 0 | M59: FULL
A60: S7 | B60: Collate, compare, and synthesise information from various sources | I60: 0 | K60: NONE | L60: 0 | M60: FULL
A61: S8 | B61: Work collaboratively; Building and maintaining positive relationships with stakeholders (such as performers, public speakers, presenters, clients and event organisers) | I61: 0 | K61: PARTIAL | L61: =IF(J61=1,0.5,IF(J61=0.5,0.5,IF(J61=0,0))) -> 0 | M61: =IF(L61=0.5,"NONE",IF(L61=0,"PARTIAL")) -> PARTIAL
A62: S9 | B62: Communicate technical concepts with clarity in person and in writing to end users of all skill levels and seniority | I62: 0 | K62: NONE | L62: =IF(J62=1,1,IF(J62=0.5,0.5,IF(J62=0,0))) -> 0 | M62: =IF(L62=1,"NONE",IF(L62=0.5,"PARTIAL",IF(L62=0,"FULL"))) -> FULL
A63: S10 | B63: Install, test, and commission relevant hardware | I63: 0 | K63: NONE | L63: 0 | M63: FULL
A64: S11 | B64: Configure and manage remote participation systems | I64: 0 | K64: NONE | L64: 0 | M64: FULL
A65: S12 | B65: Edit audio and video content | I65: 0 | K65: NONE | L65: 0 | M65: FULL
A66: S13 | B66: Prepare, maintain, and manipulate audio and video assets through post-production | I66: 0 | K66: NONE | L66: 0 | M66: FULL
A67: S14 | B67: Create digital assets for video workflows | I67: 0 | K67: NONE | L67: 0 | M67: FULL
A68: S15 | B68: Manual camera operating for a range of contemporary S35mm digital cameras | I68: 0 | K68: NONE | L68: 0 | M68: FULL
A69: S16 | B69: Audio capture | I69: 0 | K69: NONE | L69: 0 | M69: FULL
A70: S17 | B70: Deliver virtual event technical operations | I70: 0 | K70: NONE | L70: 0 | M70: FULL
A71: S18 | B71: Clearly advise and guide event participants | I71: 0 | K71: NONE | L71: 0 | M71: FULL
A72: S19 | B72: Devise a learning program intended to cover a particular device/system | I72: 0 | K72: NONE | L72: 0 | M72: FULL
A73: S20 | B73: Identify personal training and professional development needs via research and investigation | I73: 0 | K73: NONE | L73: 0 | M73: FULL
A74: S21 | B74: Organise appropriate personal professional development activities to develop and enhance own role and skills | I74: 0 | K74: NONE | L74: 0 | M74: FULL
A75: S22 | B75: Use collaborative online environments to schedule and update projects and tasks | I75: 0 | K75: NONE | L75: 0 | M75: FULL
A76: S23 | B76: Complete risk assessment documentation | I76: 0 | K76: NONE | L76: 0 | M76: FULL
A77: S24 | B77: Accurately assesses level of risk to health and safety of themselves and others | I77: 0 | K77: NONE | L77: 0 | M77: FULL
A78: S25 | B78: Test and maintain audiovisual equipment, cables, and connectors: substitute items where necessary | I78: 0 | K78: NONE | L78: 0 | M78: FULL
A79: S26 | B79: Document and record maintenance activities | I79: 0 | K79: NONE | L79: 0 | M79: FULL
A80: S27 | B80: Safe storage of equipment | I80: 0 | K80: NONE | L80: 0 | M80: FULL
A81: S28 | B81: Create a coherent planning document | I81: 0 | K81: NONE | L81: 0 | M81: FULL
B82: Behaviours
A83: B1 | B83: Think and act independently and safely whilst working within company guidelines | I83: =IF(C83:C92 = "FULLY MET",1,IF(C83:C92 = "PARTIALLY MET",0.5,IF(C83:C92 = "NOT MET",0,))) -> 0 | K83: PARTIAL | L83: =IF(J83=1,0.5,IF(J83=0.5,0.5,IF(J83=0,0))) -> 0 | M83: =IF(L83=0.5,"NONE",IF(L83=0,"PARTIAL")) -> PARTIAL
A84: B2 | B84: Work calmly and methodically in time-sensitive situations | I84: 0 | K84: NONE | L84: =IF(J84=1,1,IF(J84=0.5,0.5,IF(J84=0,0))) -> 0 | M84: =IF(L84=1,"NONE",IF(L84=0.5,"PARTIAL",IF(L84=0,"FULL"))) -> FULL
A85: B3 | B85: Reference user manuals and manufacturer guidance | I85: 0 | K85: NONE | L85: 0 | M85: FULL
A86: B4 | B86: Awareness of the importance of regular contact, when appropriate, to offer updated information and documentation | I86: 0 | K86: NONE | L86: 0 | M86: FULL
A87: B5 | B87: Able to modify personal approach based on the situation | I87: 0 | K87: NONE | L87: 0 | M87: FULL
A88: B6 | B88: Challenges approaches to work in a constructive manner | I88: 0 | K88: NONE | L88: 0 | M88: FULL
A89: B7 | B89: Confident & effective communicator | I89: 0 | K89: NONE | L89: 0 | M89: FULL
A90: B8 | B90: Online researcher of new equipment and training opportunities, communicate with professionals and organisations to prioritise personal training goals and activities | I90: 0 | K90: PARTIAL | L90: =IF(J90=1,0.5,IF(J90=0.5,0.5,IF(J90=0,0))) -> 0 | M90: =IF(L90=0.5,"NONE",IF(L90=0,"PARTIAL")) -> PARTIAL
A91: B9 | B91: Well prepared, anticipates issues ahead of time | I91: 0 | K91: NONE | L91: =IF(J91=1,1,IF(J91=0.5,0.5,IF(J91=0,0))) -> 0 | M91: =IF(L91=1,"NONE",IF(L91=0.5,"PARTIAL",IF(L91=0,"FULL"))) -> FULL
A92: B10 | B92: Take initiative e.g. seek the source of an issue of own accord and take necessary action | I92: 0 | K92: NONE | L92: 0 | M92: FULL
I95: Gross score | J95: =SUM(J22:J92) -> 0 | K95: Net Score | L95: =SUM(L22:L92) -> 0
I96: total KSB coverage | J96: =J95/L99 -> 0 | K96: total CoE KSB coverage | L96: =L95/L102 -> 0
K99: total KSBs | L99: 69
K100: fully mitigated | L100: 0
K101: partialy mitigated | L101: 3
K102: net KSB | L102: =L99-L100-(L101*0.5) -> 67.5

Sheet ST0944
B1: START HERE
B2: Awarding body/Applicant:
B3: Please type the name of awarding body/applicant here
B4: Qualification name:
B5: Please type your qualification title here
B6: Programme title if applicable:
B7: Please type the programme title here
A10: EXAMPLE OF KSB MAPPING
A11: KSB | B11: KSB Statement | C11: KSB coverage Select the coverage provided by the qualification from the dropdown box | D11: Where in the qualification is the relevant content? Please reference precisely where the content you are citing as evidence is within the submitted documents - Document name/Module name/Specific page number | E11: Evidence Quote or copy & paste the relevant content from your referenced qualification documents. Please provide 1 - 3 references that best evidence the KSB and only refer to content that all students will cover regardless of option choice. The information you supply in this column, in conjunction with the Supporting Comments / Rationale column (Column F) should clearly and explicitly demonstrate the declared level of KSB coverage. | F11: Supporting Comments/Rationale Where the evidence in Column E does not clearly and explicitly provide the declared level of coverage or might not be obvious to someone who is not an expert in your qualification, use this space to explain how the level of KSB coverage is achieved by the qualification content - please be specific to the wording and meaning of the KSB statement. Where a KSB is not fully met, please provide the rationale for why you feel this is not achievable. | G11: Assessment method Provide information on the method(s) used to assess this KSB and relevant assessment materials.
A12: K7 | B12: Safe and professional working practices including health, safety, environment and legislative requirements relevant to the sector, the organisation and own role | C12: FULLY MET | D12: Qualification specification, pg 14-16 Module 2: Health, safety and professional working practices, pg 6 | E12: Module 2: LO1 - Understand the importance of health and safety in the workplace. LO2 - Understand the application of health and safety legislation in the workplace. LO3 - Understand how to apply safe working practices to work activities. Indicative content: local, regional, national health & safety regulations, codes of practice, site safety, health & safety promotion, health & safety measures, PPE, manual handling, equipment management, waste disposal, risk management, risk assessment | F12: Learners will be able to show a full understanding of Health & Safety and legislative requirements relevant to the role. The indicative content on Pg 16 of the qualification specification shows they will cover Health & Safety across the wider sector, and then identify some measures that may be specific to certain organisations. Learners will also analyse the role of the employer and the environment with regards to applying Health & Safety working practices and processes. | G12: Module 2 - students will produce a written report using a brief. There is also a short answer paper. Module 2 Assessment Brief pg 7-8 refers.
A13: S23 | B13: Communicate effectively (verbal, non-verbal, written, digital) in manner relevant to the target audience | C13: FULLY MET | D13: Qualification specification, pg 21-22 Module 6: The Fundamentals of Practice, pg 12 Module 9: Personal and Professional Development Skills, pg 11 | E13: Module 6: LO2 - Know how to use digital devices and databases relevant to your workplace. Module 9: LO1 - Understand the uses of different methods of communication. LO3 - Be able to communicate effectively with different audiences. Indicative content: verbal and non-verbal communication skills, presentation skills, academic and non-academic writing style, writing skills | F13: Learners will cover verbal, non-verbal, written and digital communications, and demonstrate practical skills by completing assessment tasks which will include simulated work environments and preparing presentations targeting different audiences. Learners will develop the skills to communicate with people in a professional capacity including co-workers, line managers, clients, contractors and the public. | G13: Module 6 - case study. Module 9 - scenarios in simulated work environment, students will produce presentation. Module 9 assessment pg 4.
B18: Assistant recording technician (level 4)
B19: Return to Guide
A20: KSB | B20: KSB Statement | C20: KSB coverage Select the coverage provided by the qualification from the dropdown box | D20: Where in the qualification is the relevant content? Please reference precisely where the content you are citing as evidence is within the submitted documents - Document name/Module name/Specific page number | E20: Evidence Quote or copy & paste the relevant content from your referenced qualification documents. Please provide 1 - 3 references that best evidence the KSB and only refer to content that all students will cover regardless of option choice. The information you supply in this column, in conjunction with the Supporting Comments / Rationale column (Column F) should clearly and explicitly demonstrate the declared level of KSB coverage. | F20: Supporting Comments/Rationale Where the evidence in Column E does not clearly and explicitly provide the declared level of coverage or might not be obvious to someone who is not an expert in your qualification, use this space to explain how the level of KSB coverage is achieved by the qualification content - please be specific to the wording and meaning of the KSB statement. Where a KSB is not fully met, please provide the rationale for why you feel this is not achievable. | G20: Assessment method Provide information on the method(s) used to assess this KSB and relevant assessment materials. | I20: AB Score | J20: IM Score | K20: Mitigations | L20: CoE Score | M20: Outstanding Requirement | N20: IM Comment | O20: IM moderation | P20: G7 QA | Q20: IM G7 Response | R20: Conclusion
B21: Knowledge
A22: K1 | B22: Audio equipment set up requirements to meet differing recording specifications and its final application. | I22: =IF(C22:C44 = "FULLY MET",1,IF(C22:C44 = "PARTIALLY MET",0.5,IF(C22:C44 = "NOT MET",0,))) -> 0 | K22: NONE | L22: =IF(J22=1,1,IF(J22=0.5,0.5,IF(J22=0,0))) -> 0 | M22: =IF(L22=1,"NONE",IF(L22=0.5,"PARTIAL",IF(L22=0,"FULL"))) -> FULL
A23: K2 | B23: How to use software to edit and mix sound. | I23: 0 | K23: NONE | L23: 0 | M23: FULL
A24: K3 | B24: How to regulate volume levels and the impact on sound quality. | I24: 0 | K24: NONE | L24: 0 | M24: FULL
A25: K4 | B25: How to minimise unwanted sounds. | I25: 0 | K25: NONE | L25: 0 | M25: FULL
A26: K5 | B26: Audio dynamics of the studio and how this impacts on the quality of the recording. | I26: 0 | K26: NONE | L26: 0 | M26: FULL
A27: K6 | B27: What different items of audio equipment are for, their functions and ideal uses, and in what situations they should be deployed. Different types of microphones and the situations in which they could be used to best effect. | I27: 0 | K27: NONE | L27: 0 | M27: FULL
A28: K7 | B28: How to set up inputs and outputs on the mixing console and its impact on the final sound. To include pre-amp, EQ, pan/mute and fader. | I28: 0 | K28: NONE | L28: 0 | M28: FULL
A29: K8 | B29: How to mix input sound signals and send them to the outputs (aux sends, subgroups and main mix). | I29: 0 | K29: NONE | L29: 0 | M29: FULL
A30: K9 | B30: Procedures to identify and diagnose problems with audio equipment and common solutions for their resolution. | I30: 0 | K30: NONE | L30: 0 | M30: FULL
A31: K10 | B31: When to refer issues with equipment to a technician for repair/maintenance. | I31: 0 | K31: NONE | L31: 0 | M31: FULL
A32: K11 | B32: Boundaries of responsibility in regard to recording sessions. | I32: 0 | K32: NONE | L32: 0 | M32: FULL
A33: K12 | B33: How the set-up of the studio is impacted by the type of music/sound being recorded and its final application. | I33: 0 | K33: NONE | L33: 0 | M33: FULL
A34: K13 | B34: How to identify studio equipment and integrate with client's own equipment. The set up and operation of recording software and hardware protocols. | I34: 0 | K34: NONE | L34: 0 | M34: FULL
A35: K14 | B35: Inputs and outputs assignment and how to set these up on equipment. | I35: 0 | K35: NONE | L35: 0 | M35: FULL
A36: K15 | B36: The protocols for labelling and documenting channels. | I36: 0 | K36: NONE | L36: 0 | M36: FULL
A37: K16 | B37: Back up procedures for digital sound files and sound library requirements. | I37: 0 | K37: NONE | L37: 0 | M37: FULL
A38: K17 | B38: How the security of sound files and physical assets on site can be protected. | I38: 0 | K38: NONE | L38: 0 | M38: FULL
A39: K18 | B39: How credits are assigned and the implications this has upon the recording. | I39: 0 | K39: NONE | L39: 0 | M39: FULL
A40: K19 | B40: How to collaborate with producers and performers. | I40: 0 | K40: NONE | L40: 0 | M40: FULL
A41: K20 | B41: How the requirements of different media can vary according to where the sound recording will be used (e.g. tv/film, computer games). | I41: 0 | K41: NONE | L41: 0 | M41: FULL
A42: K21 | B42: The Health and Safety at Work Act 1974. Assessing the risks and potential health and safety issues that apply, particularly in relation to ear protection and electrical safety. | I42: 0 | K42: NONE | L42: 0 | M42: FULL
A43: K22 | B43: The Control of Noise at Work Regulations 2005 (CNWR), and the relevant guidance for the music and entertainment sector. | I43: 0 | K43: NONE | L43: 0 | M43: FULL
A44: K23 | B44: The importance of meeting deadlines during sessions that use several external paid musicians. The need to maintain the momentum of the recording session to minimise costs. | I44: 0 | K44: NONE | L44: 0 | M44: FULL
B45: Skills
A46: S1 | B46: Establish editor, producer and client requirements. Determines hardware and software needed to achieve the sound specification. | I46: =IF(C46:C63 = "FULLY MET",1,IF(C46:C63 = "PARTIALLY MET",0.5,IF(C46:C63 = "NOT MET",0,))) -> 0 | K46: NONE | L46: =IF(J46=1,1,IF(J46=0.5,0.5,IF(J46=0,0))) -> 0 | M46: =IF(L46=1,"NONE",IF(L46=0.5,"PARTIAL",IF(L46=0,"FULL"))) -> FULL
A47: S2 | B47: Sets up the studio and equipment to meet sound brief. Takes into account acoustics to produce the best quality outputs tailored to the purpose. Positions microphones, sets up amps and sound levels. | I47: 0 | K47: NONE | L47: 0 | M47: FULL
A48: S3 | B48: Reviews the effectiveness of the setup and adjusts equipment to achieve the required specification and quality. | I48: 0 | K48: NONE | L48: 0 | M48: FULL
A49: S4 | B49: Evaluates information and makes recommendations, for different sound requirements. Supports stakeholders preparing for and during the live recording and maintains client relationships. | I49: 0 | K49: PARTIAL | L49: =IF(J49=1,0.5,IF(J49=0.5,0.5,IF(J49=0,0))) -> 0 | M49: =IF(L49=0.5,"NONE",IF(L49=0,"PARTIAL")) -> PARTIAL
A50: S5 | B50: Sets up and assists with the operation of the mixing console. Balances and adjust sound sources using equalization and audio effects, mixing, reproduction, and reinforcement of sound. | I50: 0 | K50: NONE | L50: =IF(J50=1,1,IF(J50=0.5,0.5,IF(J50=0,0))) -> 0 | M50: =IF(L50=1,"NONE",IF(L50=0.5,"PARTIAL",IF(L50=0,"FULL"))) -> FULL
A51: S6 | B51: Plans work in a methodical way to ensure the efficiency of the recording session and takes into account competing priorities. | I51: 0 | K51: NONE | L51: 0 | M51: FULL
A52: S7 | B52: Balance the differing needs required by clients and the priorities of the organisation/ studio. | I52: 0 | K52: NONE | L52: 0 | M52: FULL
A53: S8 | B53: Manage the security and format of different types of sound files. | I53: 0 | K53: NONE | L53: 0 | M53: FULL
A54: S9 | B54: Uses problem solving techniques to diagnose equipment faults/issues. Escalates faults/issues when they are outside the levels of their own responsibility. | I54: 0 | K54: NONE | L54: 0 | M54: FULL
A55: S10 | B55: Implements solutions to address equipment faults in a live environment to ensure the continuing running of the recording session. Considers cost and artist requirements when implementing the solution. | I55: 0 | K55: NONE | L55: 0 | M55: FULL
A56: S11 | B56: Produce records related to the set-up of the studio and particular equipment for future reference/ continuous improvement and to ensure repeatability. | I56: 0 | K56: NONE | L56: 0 | M56: FULL
A57: S12 | B57: Log when credits may be due to self or other individuals involved with the recording. | I57: 0 | K57: NONE | L57: 0 | M57: FULL
A58: S13 | B58: Synchronises audio with other mediums/ productions. | I58: 0 | K58: NONE | L58: 0 | M58: FULL
A59: S14 | B59: Restore work area and store equipment maintaining equipment integrity and to ensure the condition of the equipment is not compromised | I59: 0 | K59: NONE | L59: 0 | M59: FULL
A60: S15 | B60: Monitor the maintenance requirements of electrical equipment in line with company procedures. Consider the frequency of checks required, the inspection requirements and testing needed. | I60: 0 | K60: PARTIAL | L60: =IF(J60=1,0.5,IF(J60=0.5,0.5,IF(J60=0,0))) -> 0 | M60: =IF(L60=0.5,"NONE",IF(L60=0,"PARTIAL")) -> PARTIAL
A61: S16 | B61: Complies with statutory and organisational health & safety regulations and policies. | I61: 0 | K61: PARTIAL | L61: =IF(J61=1,0.5,IF(J61=0.5,0.5,IF(J61=0,0))) -> 0 | M61: PARTIAL
A62: S17 | B62: Supports stakeholders preparing for and during the live recording and maintains client relationships. | I62: 0 | K62: PARTIAL | L62: =IF(J62=1,0.5,IF(J62=0.5,0.5,IF(J62=0,0))) -> 0 | M62: PARTIAL
A63: S18 | B63: Follow protocol to correctly label file names and archive the different mixes and multitrack recordings for easy retrieval. | I63: 0 | K63: NONE | L63: =IF(J63=1,1,IF(J63=0.5,0.5,IF(J63=0,0))) -> 0 | M63: =IF(L63=1,"NONE",IF(L63=0.5,"PARTIAL",IF(L63=0,"FULL"))) -> FULL
B64: Behaviours
A65: B1 | B65: Champions the importance of adherence to the organisation’s Environmental, Health and Safety management systems. Actively displays and promotes a safety first culture within the organisation. | I65: =IF(C65:C71 = "FULLY MET",1,IF(C65:C71 = "PARTIALLY MET",0.5,IF(C65:C71 = "NOT MET",0,))) -> 0 | K65: PARTIAL | L65: =IF(J65=1,0.5,IF(J65=0.5,0.5,IF(J65=0,0))) -> 0 | M65: =IF(L65=0.5,"NONE",IF(L65=0,"PARTIAL")) -> PARTIAL
A66: B2 | B66: Operates in a systematic, proactive and transparent way. | I66: 0 | K66: NONE | L66: =IF(J66=1,1,IF(J66=0.5,0.5,IF(J66=0,0))) -> 0 | M66: =IF(L66=1,"NONE",IF(L66=0.5,"PARTIAL",IF(L66=0,"FULL"))) -> FULL
A67: B3 | B67: Keeps abreast of developments in emerging technologies and actively promotes the use of new technologies to optimise performance. | I67: 0 | K67: NONE | L67: 0 | M67: FULL
A68: B4 | B68: Takes full responsibility for own professional development, seeking opportunities to enhance knowledge, skills and experience. | I68: 0 | K68: PARTIAL | L68: =IF(J68=1,0.5,IF(J68=0.5,0.5,IF(J68=0,0))) -> 0 | M68: =IF(L68=0.5,"NONE",IF(L68=0,"PARTIAL")) -> PARTIAL
A69: B5 | B69: Accepts responsibility for their workload with a responsible approach to risk. Demonstrates a high level of motivation and resilience when facing challenge. | I69: 0 | K69: NONE | L69: =IF(J69=1,1,IF(J69=0.5,0.5,IF(J69=0,0))) -> 0 | M69: =IF(L69=1,"NONE",IF(L69=0.5,"PARTIAL",IF(L69=0,"FULL"))) -> FULL
A70: B6 | B70: Sensitive to the needs of artists. Creates and maintains positive, professional, trusting and ethical working relationships with their team and the wider range of internal, external and connected stakeholders. | I70: 0 | K70: PARTIAL | L70: =IF(J70=1,0.5,IF(J70=0.5,0.5,IF(J70=0,0))) -> 0 | M70: =IF(L70=0.5,"NONE",IF(L70=0,"PARTIAL")) -> PARTIAL
A71: B7 | B71: Acts professionally with a positive and respectful attitude. | I71: 0 | K71: NONE | L71: =IF(J71=1,1,IF(J71=0.5,0.5,IF(J71=0,0))) -> 0 | M71: =IF(L71=1,"NONE",IF(L71=0.5,"PARTIAL",IF(L71=0,"FULL"))) -> FULL
I74: Gross score | J74: =SUM(J22:J71) -> 0 | K74: Net Score | L74: =SUM(L22:L71) -> 0
I75: total KSB coverage | J75: =J74/L78 -> 0 | K75: total CoE KSB coverage | L75: =L74/L81 -> 0
K78: total KSBs | L78: 48
K79: fully mitigated | L79: 0
K80: partialy mitigated | L80: 7
K81: net KSB | L81: =L78-L79-(L80*0.5) -> 44.5

Sheet ST1324
B1: START HERE
B2: Awarding body/Applicant:
B3: Please type the name of awarding body/applicant here
B4: Qualification name:
B5: Please type your qualification title here
B6: Programme title if applicable:
B7: Please type the programme title here
A10: EXAMPLE OF KSB MAPPING
A11: KSB | B11: KSB Statement | C11: KSB coverage Select the coverage provided by the qualification from the dropdown box | D11: Where in the qualification is the relevant content? Please reference precisely where the content you are citing as evidence is within the submitted documents - Document name/Module name/Specific page number | E11: Evidence Quote or copy & paste the relevant content from your referenced qualification documents. Please provide 1 - 3 references that best evidence the KSB and only refer to content that all students will cover regardless of option choice. The information you supply in this column, in conjunction with the Supporting Comments / Rationale column (Column F) should clearly and explicitly demonstrate the declared level of KSB coverage. | F11: Supporting Comments/Rationale Where the evidence in Column E does not clearly and explicitly provide the declared level of coverage or might not be obvious to someone who is not an expert in your qualification, use this space to explain how the level of KSB coverage is achieved by the qualification content - please be specific to the wording and meaning of the KSB statement. Where a KSB is not fully met, please provide the rationale for why you feel this is not achievable. | G11: Assessment method Provide information on the method(s) used to assess this KSB and relevant assessment materials.
A12: K7 | B12: Safe and professional working practices including health, safety, environment and legislative requirements relevant to the sector, the organisation and own role | C12: FULLY MET | D12: Qualification specification, pg 14-16 Module 2: Health, safety and professional working practices, pg 6 | E12: Module 2: LO1 - Understand the importance of health and safety in the workplace. LO2 - Understand the application of health and safety legislation in the workplace. LO3 - Understand how to apply safe working practices to work activities. Indicative content: local, regional, national health & safety regulations, codes of practice, site safety, health & safety promotion, health & safety measures, PPE, manual handling, equipment management, waste disposal, risk management, risk assessment | F12: Learners will be able to show a full understanding of Health & Safety and legislative requirements relevant to the role. The indicative content on Pg 16 of the qualification specification shows they will cover Health & Safety across the wider sector, and then identify some measures that may be specific to certain organisations. Learners will also analyse the role of the employer and the environment with regards to applying Health & Safety working practices and processes. | G12: Module 2 - students will produce a written report using a brief. There is also a short answer paper. Module 2 Assessment Brief pg 7-8 refers.
A13: S23 | B13: Communicate effectively (verbal, non-verbal, written, digital) in manner relevant to the target audience | C13: FULLY MET | D13: Qualification specification, pg 21-22 Module 6: The Fundamentals of Practice, pg 12 Module 9: Personal and Professional Development Skills, pg 11 | E13: Module 6: LO2 - Know how to use digital devices and databases relevant to your workplace. Module 9: LO1 - Understand the uses of different methods of communication. LO3 - Be able to communicate effectively with different audiences. Indicative content: verbal and non-verbal communication skills, presentation skills, academic and non-academic writing style, writing skills | F13: Learners will cover verbal, non-verbal, written and digital communications, and demonstrate practical skills by completing assessment tasks which will include simulated work environments and preparing presentations targeting different audiences. Learners will develop the skills to communicate with people in a professional capacity including co-workers, line managers, clients, contractors and the public. | G13: Module 6 - case study. Module 9 - scenarios in simulated work environment, students will produce presentation. Module 9 assessment pg 4.
B18: Journalist (level 5)
B19: Return to Guide
A20: KSB | B20: KSB Statement | C20: KSB coverage Select the coverage provided by the qualification from the dropdown box | D20: Where in the qualification is the relevant content? Please reference precisely where the content you are citing as evidence is within the submitted documents - Document name/Module name/Specific page number | E20: Evidence Quote or copy & paste the relevant content from your referenced qualification documents. Please provide 1 - 3 references that best evidence the KSB and only refer to content that all students will cover regardless of option choice. The information you supply in this column, in conjunction with the Supporting Comments / Rationale column (Column F) should clearly and explicitly demonstrate the declared level of KSB coverage. | F20: Supporting Comments/Rationale Where the evidence in Column E does not clearly and explicitly provide the declared level of coverage or might not be obvious to someone who is not an expert in your qualification, use this space to explain how the level of KSB coverage is achieved by the qualification content - please be specific to the wording and meaning of the KSB statement. Where a KSB is not fully met, please provide the rationale for why you feel this is not achievable. | G20: Assessment method Provide information on the method(s) used to assess this KSB and relevant assessment materials. | I20: AB Score | J20: IM Score | K20: Mitigations | L20: CoE Score | M20: Outstanding Requirement | N20: IM Comment | O20: IM moderation | P20: G7 QA | Q20: IM G7 Response | R20: Conclusion
B21: Knowledge
A22: K1 | B22: Own role within the business, the brand's business model and target audience, both in terms of demographic and sociographic profile; and understand audiences’ needs from the media. | I22: =IF(C22:C42 = "FULLY MET",1,IF(C22:C42 = "PARTIALLY MET",0.5,IF(C22:C42 = "NOT MET",0,))) -> 0 | K22: NONE | L22: =IF(J22=1,1,IF(J22=0.5,0.5,IF(J22=0,0))) -> 0 | M22: =IF(L22=1,"NONE",IF(L22=0.5,"PARTIAL",IF(L22=0,"FULL"))) -> FULL
A23: K2 | B23: The relevant legislation affecting journalists: defamation; contempt of court; reporting restrictions; privacy, copyright, confidential sources. | I23: 0 | K23: NONE | L23: 0 | M23: FULL
A24: K3 | B24: The relevant regulations and more general ethical issues and how they can affect a journalist’s work including; the codes of conduct/practice and relevant regulatory bodies to comply with such as the Independent Press Standards Organisation (IPSO), the Ofcom Broadcasting Code, BBC editorial guidelines and employer guidelines. | I24: 0 | K24: NONE | L24: 0 | M24: FULL
A25: K4 | B25: How to identify, find and establish physical and on-line contacts/sources to inform and contribute to content. | I25: 0 | K25: NONE | L25: 0 | M25: FULL
A26: K5 | B26: How to use audience analytics to inform content selection and story telling. | I26: 0 | K26: NONE | L26: 0 | M26: FULL
A27: K6 | B27: The techniques for planning and structuring content narratives, including working to a brief, which adopt the brand’s tone and follow brand rules and conventions. | I27: 0 | K27: NONE | L27: 0 | M27: FULL
A28: K7 | B28: How to generate original and exclusive content, and the contexts within which the content can be used. | I28: 0 | K28: NONE | L28: 0 | M28: FULL
A29: K8 | B29: How to identify and use techniques to extract data which will support content creation. | I29: 0 | K29: NONE | L29: 0 | M29: FULL
A30: K9 | B30: Interviewing techniques, strategies and lines of questioning to extract the maximum, relevant information from interviewees whether face-to-face, by telephone or electronic means in many settings, including press conferences, formal one-to-one interviews, on-the-doorstep and in the street. | I30: 0 | K30: NONE | L30: 0 | M30: FULL
A31: K10 | B31: How and when to obtain specialist subject knowledge selecting appropriate research techniques to ensure accuracy. | I31: 0 | K31: NONE | L31: 0 | M31: FULL
A32: K11 | B32: The theoretical and practical uses of social media platforms, the issues/risks of these and how this aligns with the employer’s target audience and protocols. | I32: 0 | K32: NONE | L32: 0 | M32: FULL
A33: K12 | B33: The technical requirements and use of multi-platform digital/social journalism recording equipment, editing and publishing applications/programs. | I33: 0 | K33: NONE | L33: 0 | M33: FULL
A34: K13 | B34: How to shoot and edit video and audio to meet standards for publication on different platforms. | I34: 0 | K34: NONE | L34: 0 | M34: FULL
A35: K14 | B35: Own employer’s recording and editing protocols and programs; how to proof read content and edit as required. | I35: 0 | K35: NONE | L35: 0 | M35: FULL
A36: K15 | B36: How to maintain professional ethics and practices and keep abreast of new developments within the media industry. | I36: 0 | K36: NONE | L36: 0 | M36: FULL
A37: K16 | B37: How clear, timely communication contributes to productive working relationships. | I37: 0 | K37: NONE | L37: 0 | M37: FULL
A38: K17 | B38: The value of brands, how they are developed and enhanced and how they can be damaged. | I38: 0 | K38: NONE | L38: 0 | M38: FULL
A39: K18 | B39: The requirements of health and safety legislation in day-to-day work. | I39: 0 | K39: NONE | L39: 0 | M39: FULL
A40: K19 | B40: Own workplace terminology, equipment and programs. | I40: 0 | K40: NONE | L40: 0 | M40: FULL
A41: K20 | B41: Procedures for dealing with complaints. | I41: 0 | K41: NONE | L41: 0 | M41: FULL
A42: K21 | B42: How to integrate equality, diversity and inclusion in the workplace. | I42: 0 | K42: NONE | L42: 0 | M42: FULL
B43: Skills
A44: S1 | B44: Undertake research before reporting to ensure that journalistic content/material published or broadcast is accurate, impartial, balanced, engages the audience and is verifiable with industry standard use of English. | I44: =IF(C44:C62 = "FULLY MET",1,IF(C44:C62 = "PARTIALLY MET",0.5,IF(C44:C62 = "NOT MET",0,))) -> 0 | K44: NONE | L44: =IF(J44=1,1,IF(J44=0.5,0.5,IF(J44=0,0))) -> 0 | M44: =IF(L44=1,"NONE",IF(L44=0.5,"PARTIAL",IF(L44=0,"FULL"))) -> FULL
A45: S2 | B45: Identify, select, and verify multiple sources of information, including people, reports, data and social media, cross-checking and corroborating when necessary. | I45: 0 | K45: NONE | L45: 0 | M45: FULL
A46: S3 | B46: Take accurate, relevant notes when and where needed, use shorthand where required by your employer. | I46: 0 | K46: NONE | L46: 0 | M46: FULL
A47: S4 | B47: Assess the strengths/weaknesses of available platforms and where and when journalistic content is likely to work best. | I47: 0 | K47: NONE | L47: 0 | M47: FULL
A48: S5 | B48: Assess and produce journalistic content in accordance with legal and regulatory requirements; ethical issues and organisational specifications, alerting senior managers when necessary. | I48: 0 | K48: PARTIAL | L48: =IF(J48=1,0.5,IF(J48=0.5,0.5,IF(J48=0,0))) -> 0 | M48: =IF(L48=0.5,"NONE",IF(L48=0,"PARTIAL")) -> PARTIAL
A49: S6 | B49: Make decisions and judgements at speed and when under pressure, on the way stories are researched and presented, aiming to lead when breaking news. | I49: 0 | K49: NONE | L49: =IF(J49=1,1,IF(J49=0.5,0.5,IF(J49=0,0))) -> 0 | M49: =IF(L49=1,"NONE",IF(L49=0.5,"PARTIAL",IF(L49=0,"FULL"))) -> FULL
A50: S7 | B50: Find and use contacts to create journalistic content and exclusive stories which meet the needs of the target audience. Verify information from contacts and critically review its short and long-term implications. | I50: 0 | K50: NONE | L50: =IF(J50=1,1,IF(J50=0.5,0.5,IF(J50=0,0))) -> 0 | M50: =IF(L50=1,"NONE",IF(L50=0.5,"PARTIAL",IF(L50=0,"FULL"))) -> FULL
A51: S8 | B51: Use audience analytics to evaluate the success of the journalistic content and how that can inform future decision-making. | I51: 0 | K51: NONE | L51: 0 | M51: FULL
A52: S9 | B52: Monitor relevant social media on a systematic basis. Proactively seek, verify and curate sources of user-generated content that will help improve targeted content, grow the audience and the depth of engagement. | I52: 0 | K52: NONE | L52: 0 | M52: FULL
A53: S10 | B53: Produce journalistic content using language which resonates with the audience as measured by audience analytics, social media interaction and reach or other internal "tools" used by employers to understand audience sentiment. | I53: 0 | K53: NONE | L53: 0 | M53: FULL
A54: S11 | B54: Produce journalistic content in multimedia combinations as required which "draw in" the viewer/listener/user to tell the complete story. | I54: 0 | K54: NONE | L54: 0 | M54: FULL
A55: S12 | B55: Report live to the audience from the scene of an event using remote technologies. | I55: 0 | K55: NONE | L55: 0 | M55: FULL
A56: S13 | B56: Publish journalistic content, using all available tools to enhance the user experience. | I56: 0 | K56: NONE | L56: 0 | M56: FULL
A57: S14 | B57: Undertake different types of interviews to extract information, identifying and selecting the right interviewing technique to suit the interviewee and seeking to make a connection with the subject. | I57: 0 | K57: NONE | L57: 0 | M57: FULL
A58: S15 | B58: Evaluate answers from interviewees to inform further questioning, probing for detail and inconsistencies in replies given. If needed, identify other people to speak to. | I58: 0 | K58: NONE | L58: 0 | M58: FULL
A59: S16 | B59: Check and evaluate own work in relation to industry standards, adhering to employer guidelines. Ensure it is of a quality to maintain the organisation's reputation in the industry. | I59: 0 | K59: PARTIAL | L59: =IF(J59=1,0.5,IF(J59=0.5,0.5,IF(J59=0,0))) -> 0 | M59: =IF(L59=0.5,"NONE",IF(L59=0,"PARTIAL")) -> PARTIAL
A60: S17 | B60: Seek constructive feedback from relevant people about your performance; taking action as required. | I60: 0 | K60: NONE | L60: =IF(J60=1,1,IF(J60=0.5,0.5,IF(J60=0,0))) -> 0 | M60: =IF(L60=1,"NONE",IF(L60=0.5,"PARTIAL",IF(L60=0,"FULL"))) -> FULL
A61: S18 | B61: Consider the impact of equality and diversity practices on individuals and groups and ensure those practices are inclusive. | I61: 0 | K61: NONE | L61: 0 | M61: FULL
A62: S19 | B62: Locate, clean and interrogate datasets to inform content generation. | I62: 0 | K62: NONE | L62: 0 | M62: FULL
B63: Behaviours
A64: B1 | B64: Proactive and is curious, forward-looking, and open to change and emerging trends, to enhance the overall experience of the reader, viewer, or end-user. | I64: =IF(C64:C72 = "FULLY MET",1,IF(C64:C72 = "PARTIALLY MET",0.5,IF(C64:C72 = "NOT MET",0,))) -> 0 | K64: NONE | L64: =IF(J64=1,1,IF(J64=0.5,0.5,IF(J64=0,0))) -> 0 | M64: =IF(L64=1,"NONE",IF(L64=0.5,"PARTIAL",IF(L64=0,"FULL"))) -> FULL
A65: B2 | B65: Work on own initiative to prepare accurate journalistic content in the most eye-catching and compelling manner, getting it ‘right first time’. Takes responsibility for seeing the "big picture" amidst a mass of information or data. | I65: 0 | K65: NONE | L65: 0 | M65: FULL
A66: B3 | B66: Work ethically and with integrity and knows when to seek advice from more senior staff. | I66: 0 | K66: NONE | L66: 0 | M66: FULL
A67: B4 | B67: Work in a transparent and open way; making judgements free from bias. | I67: 0 | K67: NONE | L67: 0 | M67: FULL
A68: B5 | B68: Act to build and enhance the brand (employer’s and personal) and considers the consequences of any actions. | I68: 0 | K68: PARTIAL | L68: =IF(J68=1,0.5,IF(J68=0.5,0.5,IF(J68=0,0))) -> 0 | M68: =IF(L68=0.5,"NONE",IF(L68=0,"PARTIAL")) -> PARTIAL
A69: B6 | B69: Works collaboratively with stakeholders and colleagues, developing strong working relationships to achieve common goals and promote mutual respect. | I69: 0 | K69: PARTIAL | L69: =IF(J69=1,0.5,IF(J69=0.5,0.5,IF(J69=0,0))) -> 0 | M69: PARTIAL
A70: B7 | B70: Recognises and complies with equality, diversity and inclusion in the workplace. | I70: 0 | K70: NONE | L70: =IF(J70=1,1,IF(J70=0.5,0.5,IF(J70=0,0))) -> 0 | M70: =IF(L70=1,"NONE",IF(L70=0.5,"PARTIAL",IF(L70=0,"FULL"))) -> FULL
A71: B8 | B71: Is empathetic, builds trust and contact networks, recognising a duty of care may be owed to sources/contacts, and is a good listener while still critically evaluating the information being received. | I71: 0 | K71: NONE | L71: =IF(J71=1,1,IF(J71=0.5,0.5,IF(J71=0,0))) -> 0 | M71: =IF(L71=1,"NONE",IF(L71=0.5,"PARTIAL",IF(L71=0,"FULL"))) -> FULL
A72: B9 | B72: Adapts positively to changing work priorities and patterns, ensuring deadlines continue to be met. | I72: 0 | K72: NONE | L72: =IF(J72=1,1,IF(J72=0.5,0.5,IF(J72=0,0))) -> 0 | M72: =IF(L72=1,"NONE",IF(L72=0.5,"PARTIAL",IF(L72=0,"FULL"))) -> FULL
I75: Gross score | J75: =SUM(J22:J72) -> 0 | K75: Net Score | L75: =SUM(L22:L72) -> 0
I76: total KSB coverage | J76: =J75/L79 -> 0 | K76: total CoE KSB coverage | L76: =L75/L82 -> 0
K79: total KSBs | L79: 49
K80: fully mitigated | L80: 0
K81: partialy mitigated | L81: 4
K82: net KSB | L82: =L79-L80-(L81*0.5) -> 47

Sheet ST1325
B1: START HERE
B2: Awarding body/Applicant:
B3: Please type the name of awarding body/applicant here
B4: Qualification name:
B5: Please type your qualification title here
B6: Programme title if applicable:
B7: Please type the programme title here
A10: EXAMPLE OF KSB MAPPING
A11: KSB | B11: KSB Statement (this list contain the core KSBs for the Junior visual effects (VFX) artist or assistant technical director (ATD) occupation, plus the specific KSBs for Junior VFX Artist (2D), Junior VFX Artist (CG/3D) and Assistant Technical Director (VFX) options) | C11: Included in: | F11: KSB coverage Select the coverage provided by the qualification from the dropdown box | G11: Where in the qualification is the relevant content? Please reference precisely where the content you are citing as evidence is within the submitted documents - Document name/Module name/Specific page number | H11: Evidence Quote or copy & paste the relevant content from your referenced qualification documents. Please provide 1 - 3 references that best evidence the KSB and only refer to content that all students will cover regardless of option choice. The information you supply in this column, in conjunction with the Supporting Comments / Rationale column (Column I) should clearly and explicitly demonstrate the declared level of KSB coverage. | I11: Supporting Comments/Rationale Where the evidence in Column H does not clearly and explicitly provide the declared level of coverage or might not be obvious to someone who is not an expert in your qualification, use this space to explain how the level of KSB coverage is achieved by the qualification content - please be specific to the wording and meaning of the KSB statement. Where a KSB is not fully met, please provide the rationale for why you feel this is not achievable. | J11: Assessment method Provide information on the method(s) used to assess this KSB and relevant assessment materials.
C12: Junior visual effects - VFX artist or assistant technical director - ATD (level 4) - Junior VFX Artist (2D) | D12: Junior visual effects - VFX artist or assistant technical director - ATD (level 4) - Junior VFX Artist (CG/3D) | E12: Junior visual effects - VFX artist or assistant technical director - ATD (level 4) - Assistant Technical Director (VFX)
A13: K7 | B13: Safe and professional working practices including health, safety, environment and legislative requirements relevant to the sector, the organisation and own role | C13: YES | D13: YES | E13: YES | F13: FULLY MET | G13: Qualification specification, pg 14-16 Module 2: Health, safety and professional working practices, pg 6 | H13: Module 2: LO1 - Understand the importance of health and safety in the workplace. LO2 - Understand the application of health and safety legislation in the workplace. LO3 - Understand how to apply safe working practices to work activities. Indicative content: local, regional, national health & safety regulations, codes of practice, site safety, health & safety promotion, health & safety measures, PPE, manual handling, equipment management, waste disposal, risk management, risk assessment | I13: Learners will be able to show a full understanding of Health & Safety and legislative requirements relevant to the role. The indicative content on Pg 16 of the qualification specification shows they will cover Health & Safety across the wider sector, and then identify some measures that may be specific to certain organisations. Learners will also analyse the role of the employer and the environment with regards to applying Health & Safety working practices and processes. | J13: Module 2 - students will produce a written report using a brief. There is also a short answer paper. Module 2 Assessment Brief pg 7-8 refers.
A14: S23 | B14: Communicate effectively (verbal, non-verbal, written, digital) in manner relevant to the target audience | C14: YES | D14: YES | E14: YES | F14: FULLY MET | G14: Qualification specification, pg 21-22 Module 6: The Fundamentals of Practice, pg 12 Module 9: Personal and Professional Development Skills, pg 11 | H14: Module 6: LO2 - Know how to use digital devices and databases relevant to your workplace. Module 9: LO1 - Understand the uses of different methods of communication. LO3 - Be able to communicate effectively with different audiences. Indicative content: verbal and non-verbal communication skills, presentation skills, academic and non-academic writing style, writing skills | I14: Learners will cover verbal, non-verbal, written and digital communications, and demonstrate practical skills by completing assessment tasks which will include simulated work environments and preparing presentations targeting different audiences. Learners will develop the skills to communicate with people in a professional capacity including co-workers, line managers, clients, contractors and the public. | J14: Module 6 - case study. Module 9 - scenarios in simulated work environment, students will produce presentation. Module 9 assessment pg 4.
B19: Junior visual effects - VFX artist or assistant technical director - ATD (level 4)
B20: Return to Guide
B21: Three options are available (columns C-E). Please check if the KSB needs to be mapped against the option of your choice. If you map against two or three options and the evidence is different for each option please mark which evidence corresponds to which option.
A23: KSB | B23: KSB Statement (this list contain the core KSBs for the Junior visual effects (VFX) artist or assistant technical director (ATD) occupation, plus the specific KSBs for Junior VFX Artist (2D), Junior VFX Artist (CG/3D) andAssistant Technical Director (VFX) options) | C23: Included in: | F23: KSB coverage Select the coverage provided by the qualification from the dropdown box | G23: Where in the qualification is the relevant content? Please reference precisely where the content you are citing as evidence is within the submitted documents - Document name/Module name/Specific page number | H23: Evidence Quote or copy & paste the relevant content from your referenced qualification documents. Please provide 1 - 3 references that best evidence the KSB and only refer to content that all students will cover regardless of option choice. The information you supply in this column, in conjunction with the Supporting Comments / Rationale column (Column I) should clearly and explicitly demonstrate the declared level of KSB coverage. | I23: Supporting Comments/Rationale Where the evidence in Column H does not clearly and explicitly provide the declared level of coverage or might not be obvious to someone who is not an expert in your qualification, use this space to explain how the level of KSB coverage is achieved by the qualification content - please be specific to the wording and meaning of the KSB statement. Where a KSB is not fully met, please provide the rationale for why you feel this is not achievable. | J23: Assessment method Provide information on the method(s) used to assess this KSB and relevant assessment materials. | L23: AB Score | M23: IM Score | N23: Mitigations | O23: CoE Score | P23: Outstanding Requirement | Q23: IM Comment | R23: IM moderation | S23: G7 QA | T23: IM G7 Response | U23: Conclusion
B24: Knowledge | C24: Junior visual effects - VFX artist or assistant technical director - ATD (level 4) - Junior VFX Artist (2D) | D24: Junior visual effects - VFX artist or assistant technical director - ATD (level 4) - Junior VFX Artist (CG/3D) | E24: Junior visual effects - VFX artist or assistant technical director - ATD (level 4) - Assistant Technical Director (VFX)
A25: K1 | B25: The value of VFX content and confidentiality to the business and its customers. Why it is important to maintain data security, and the legal and regulatory requirements which apply to VFX assets including copyright and intellectual property rights | C25: YES | D25: YES | E25: YES | L25: =IF(F25:F69 = "FULLY MET",1,IF(F25:F69 = "PARTIALLY MET",0.5,IF(F25:F69 = "NOT MET",0,))) -> 0 | N25: NONE | O25: =IF(M25=1,1,IF(M25=0.5,0.5,IF(M25=0,0))) -> 0 | P25: =IF(O25=1,"NONE",IF(O25=0.5,"PARTIAL",IF(O25=0,"FULL"))) -> FULL
A26: K2 | B26: The in-camera creation pipeline, from pre-production, through shoot, editorial, VFX to grading | C26: YES | D26: YES | E26: YES | L26: 0 | N26: NONE | O26: 0 | P26: FULL
A27: K3 | B27: The importance and methods of retaining the quality of the source material | C27: YES | D27: YES | E27: YES | L27: 0 | N27: NONE | O27: 0 | P27: FULL
A28: K4 | B28: The VFX industry and the terminology, policies, standards and procedures, current tools and workflows used | C28: YES | D28: YES | E28: YES | L28: 0 | N28: NONE | O28: 0 | P28: FULL
A29: K5 | B29: The VFX production pipeline, including shot bidding, turn-over, briefing, reviews, client reviews, deliveries and final delivery | C29: YES | D29: YES | E29: YES | L29: 0 | N29: NONE | O29: 0 | P29: FULL
A30: K6 | B30: The importance of naming conventions, file formats and version control and the impact of not doing this correctly | C30: YES | D30: YES | E30: YES | L30: 0 | N30: NONE | O30: 0 | P30: FULL
A31: K7 | B31: How to identify production requirements from a brief; plan your approach to the work, techniques, optimisation and schedule | C31: YES | D31: YES | E31: YES | L31: 0 | N31: NONE | O31: 0 | P31: FULL
A32: K8 | B32: The requirements and expectations of the workflow, and of other team members who will use the assets you create | C32: YES | D32: YES | E32: YES | L32: 0 | N32: NONE | O32: 0 | P32: FULL
A33: K9 | B33: Common artefacts in plate photography such as lens distortion, parallax and overscan | C33: YES | D33: YES | E33: YES | L33: 0 | N33: NONE | O33: 0 | P33: FULL
A34: K10 | B34: The principles of perspective, depth of field and scale, and how this relates to a believable final image | C34: YES | D34: YES | E34: YES | L34: 0 | N34: NONE | O34: 0 | P34: FULL
A35: K11 | B35: The principles of photographic composition, light and colour | C35: YES | D35: YES | E35: YES | L35: 0 | N35: NONE | O35: 0 | P35: FULL
A36: K12 | B36: The principles of computer systems, IP networks and shared storage systems as applied in VFX | C36: YES | D36: YES | E36: YES | L36: 0 | N36: NONE | O36: 0 | P36: FULL
A37: K13 | B37: How assets are managed throughout the workflow including: production storage, shared storage, nearline storage and archive, whether on premises or in the cloud | C37: YES | D37: YES | E37: YES | L37: 0 | N37: NONE | O37: 0 | P37: FULL
A38: K14 | B38: Why it is important to evaluate progress and seek feedback on your work in VFX | C38: YES | D38: YES | E38: YES | L38: 0 | N38: NONE | O38: 0 | P38: FULL
A39: K15 | B39: How to create assets that support the vision of the story and the purpose of the image | C39: YES | D39: YES | E39: YES | L39: 0 | N39: NONE | O39: 0 | P39: FULL
A40: K16 | B40: How computer generated imagery (CGI) can be rendered in multiple passes in order to be adjusted more efficiently in the composite. These passes can include: colour, diffuse, specular, shadow and beauty lighting. | C40: YES | D40: YES | E40: YES | L40: 0 | N40: NONE | O40: 0 | P40: FULL
A41: K17 | B41: Research methods, techniques and tools that can be used and where to find credible and valid sources of information, reference materials and previously created assets. | C41: YES | D41: YES | E41: YES | L41: 0 | N41: NONE | O41: 0 | P41: FULL
A42: K18 | B42: The different software and techniques that could be used; the implications of their use, how to customise these and how they can be used to solve problems. | C42: YES | D42: YES | E42: YES | L42: 0 | N42: NONE | O42: 0 | P42: FULL
A43: K19 | B43: The rendering requirements for the production and how to optimise assets | C43: YES | D43: YES | E43: YES | L43: 0 | N43: NONE | O43: 0 | P43: FULL
A44: K20 | B44: How digital images are encoded and stored, especially colour spaces and their appropriate use | C44: YES | D44: NO | E44: NO | L44: 0 | N44: NONE | O44: 0 | P44: FULL
A45: K21 | B45: The differences in linear light, gamma encoded and logarithmic encoded pixel values | C45: YES | D45: NO | E45: NO | L45: 0 | N45: NONE | O45: 0 | P45: FULL
A46: K22 | B46: The implications of working with high and low dynamic range images | C46: YES | D46: NO | E46: NO | L46: 0 | N46: NONE | O46: 0 | P46: FULL
A47: K23 | B47: The VFX colour pipeline, from acquisition to working space, balance grades, look grades and delivery | C47: YES | D47: NO | E47: NO | L47: 0 | N47: NONE | O47: 0 | P47: FULL
A48: K24 | B48: How to determine the most appropriate method for removing unwanted artefacts in live action footage | C48: YES | D48: NO | E48: NO | L48: 0 | N48: NONE | O48: 0 | P48: FULL
A49: K25 | B49: Camera moves and how they impact patching or frame-by-frame painting | C49: YES | D49: NO | E49: NO | L49: 0 | N49: NONE | O49: 0 | P49: FULL
A50: K26 | B50: How to determine which technique is the correct method to generate the matte and how the matte will be used in the composite | C50: YES | D50: NO | E50: NO | L50: 0 | N50: NONE | O50: 0 | P50: FULL
A51: K27 | B51: Motion blur, how it affects the matte and the principals of animation to effectively replicate in the generated matte | C51: YES | D51: NO | E51: NO | L51: 0 | N51: NONE | O51: 0 | P51: FULL
A52: K28 | B52: How to analyse the shot to determine the most efficient breakdown of shapes and keyframes | C52: YES | D52: NO | E52: NO | L52: 0 | N52: NONE | O52: 0 | P52: FULL
A53: K29 | B53: The concept and purpose of a template or hero script as appropriate | C53: YES | D53: NO | E53: NO | L53: 0 | N53: NONE | O53: 0 | P53: FULL
A54: K30 | B54: How to identify and select the different rendering techniques and tools to use, and how to save and duplicate render settings across multiple files | C54: NO | D54: YES | E54: NO | L54: 0 | N54: NONE | O54: 0 | P54: FULL
A55: K31 | B55: The types of data and information you might receive from an on-set environment | C55: NO | D55: YES | E55: NO | L55: 0 | N55: NONE | O55: 0 | P55: FULL
A56: K32 | B56: The fundamentals of data structures, structured and unstructured data, database system design, implementation and maintenance | C56: NO | D56: NO | E56: YES | L56: 0 | N56: NONE | O56: 0 | P56: FULL
A57: K33 | B57: The quality issues that can arise with data and how to avoid and/or resolve these | C57: NO | D57: NO | E57: YES | L57: 0 | N57: NONE | O57: 0 | P57: FULL
A58: K34 | B58: How to identify where your asset or shot fits within a sequence | C58: NO | D58: YES | E58: NO | L58: 0 | N58: NONE | O58: 0 | P58: FULL
A59: K35 | B59: The process of following image features across a series of frames to record the position of an object in the source footage | C59: NO | D59: YES | E59: NO | L59: 0 | N59: NONE | O59: 0 | P59: FULL
A60: K36 | B60: How the camera moves, the impact on the tracking process and how to select the most appropriate method to produce an accurate track | C60: NO | D60: YES | E60: NO | L60: 0 | N60: NONE | O60: 0 | P60: FULL
A61: K37 | B61: The technical process of tracking and how you can improve the accuracy and efficiency of tracking the shot | C61: NO | D61: YES | E61: NO | L61: 0 | N61: NONE | O61: 0 | P61: FULL
A62: K38 | B62: How to interrogate software to solve issues with and/or create: simple shot lighting, basic simulations, a model, a rig or blocked animation | C62: NO | D62: YES | E62: NO | L62: 0 | N62: NONE | O62: 0 | P62: FULL
A63: K39 | B63: The organisation's data architecture | C63: NO | D63: NO | E63: YES | L63: 0 | N63: NONE | O63: 0 | P63: FULL
A64: K40 | B64: Grid computing and its use within VFX render queues - at a basic level | C64: NO | D64: NO | E64: YES | L64: 0 | N64: NONE | O64: 0 | P64: FULL
A65: K41 | B65: How to balance resource needs within the company’s physical capacity | C65: NO | D65: NO | E65: YES | L65: 0 | N65: NONE | O65: 0 | P65: FULL
A66: K42 | B66: Principles of software development, the software design process and the importance of design before development | C66: NO | D66: NO | E66: YES | L66: 0 | N66: NONE | O66: 0 | P66: FULL
A67: K43 | B67: How workflow diagrams, prototyping and presenting to intended users can aid in designing better solutions | C67: NO | D67: NO | E67: YES | L67: 0 | N67: NONE | O67: 0 | P67: FULL
A68: K44 | B68: Application specific scripting languages e.g. general scripting languages such as python alongside application specific scripting Mel, vex , Hscript etc. as appropriate | C68: NO | D68: NO | E68: YES | L68: 0 | N68: NONE | O68: 0 | P68: FULL
A69: K45 | B69: The concept and purpose of a template or hero script as appropriate | C69: NO | D69: YES | E69: NO | L69: 0 | N69: NONE | O69: 0 | P69: FULL
B70: Skills
A71: S1 | B71: Identify the information required, and gather the appropriate research or reference materials to carry out your work to expected creative, narrative and technical standards on each production | C71: YES | D71: YES | E71: YES | L71: =IF(F71:F117 = "FULLY MET",1,IF(F71:F117 = "PARTIALLY MET",0.5,IF(F71:F117 = "NOT MET",0,))) -> 0 | N71: NONE | O71: =IF(M71=1,1,IF(M71=0.5,0.5,IF(M71=0,0))) -> 0 | P71: =IF(O71=1,"NONE",IF(O71=0.5,"PARTIAL",IF(O71=0,"FULL"))) -> FULL
A72: S2 | B72: Select the appropriate software and technique to meet the required standards and tasks, taking into account the needs of other departments in the production pipeline | C72: YES | D72: YES | E72: YES | L72: 0 | N72: NONE | O72: =IF(M72=1,1,IF(M72=0.5,0.5,IF(M72=0,0))) -> 0 | P72: =IF(O72=1,"NONE",IF(O72=0.5,"PARTIAL",IF(O72=0,"FULL"))) -> FULL
A73: S3 | B73: Use appropriate techniques to reduce degradation of the source material | C73: YES | D73: YES | E73: YES | L73: 0 | N73: NONE | O73: =IF(M73=1,1,IF(M73=0.5,0.5,IF(M73=0,0))) -> 0 | P73: =IF(O73=1,"NONE",IF(O73=0.5,"PARTIAL",IF(O73=0,"FULL"))) -> FULL
A74: S4 | B74: Identify render errors and fix/escalate them as appropriate | C74: YES | D74: YES | E74: YES | L74: 0 | N74: NONE | O74: =IF(M74=1,1,IF(M74=0.5,0.5,IF(M74=0,0))) -> 0 | P74: =IF(O74=1,"NONE",IF(O74=0.5,"PARTIAL",IF(O74=0,"FULL"))) -> FULL
A75: S5 | B75: Work in line with agreed workflows, adapting to operational and creative changes as they occur | C75: YES | D75: YES | E75: YES | L75: 0 | N75: NONE | O75: =IF(M75=1,1,IF(M75=0.5,0.5,IF(M75=0,0))) -> 0 | P75: =IF(O75=1,"NONE",IF(O75=0.5,"PARTIAL",IF(O75=0,"FULL"))) -> FULL
A76: S6 | B76: Operate within and adhere to agreed organisational policies, standards and procedures such as health & safety, confidentiality, security, asset storage and legal and regulatory requirements | C76: YES | D76: YES | E76: YES | L76: 0 | N76: PARTIAL | O76: =IF(M76=1,0.5,IF(M76=0.5,0.5,IF(M76=0,0))) -> 0 | P76: =IF(O76=0.5,"NONE",IF(O76=0,"PARTIAL")) -> PARTIAL
A77: S7 | B77: Manage own workload and operate both individually and as part of a wider VFX team, keeping colleagues, clients and/or other departments updated on progress and report any issues arising | C77: YES | D77: YES | E77: YES | L77: 0 | N77: PARTIAL | O77: =IF(M77=1,0.5,IF(M77=0.5,0.5,IF(M77=0,0))) -> 0 | P77: =IF(O77=0.5,"NONE",IF(O77=0,"PARTIAL")) -> PARTIAL
A78: S8 | B78: Use reliable information to keep-up-to date with the new tools, software, data and other related technology, and how they affect your work | C78: YES | D78: YES | E78: YES | L78: 0 | N78: NONE | O78: =IF(M78=1,1,IF(M78=0.5,0.5,IF(M78=0,0))) -> 0 | P78: =IF(O78=1,"NONE",IF(O78=0.5,"PARTIAL",IF(O78=0,"FULL"))) -> FULL
A79: S9 | B79: Interpret and correct lens distortion, parallax and overscan | C79: YES | D79: YES | E79: YES | L79: 0 | N79: NONE | O79: 0 | P79: FULL
A80: S10 | B80: Multitask on simultaneous projects, often for different clients, deciding how to prioritise the work to ensure that all tasks are completed on schedule | C80: YES | D80: YES | E80: YES | L80: 0 | N80: NONE | O80: 0 | P80: FULL
A81: S11 | B81: Respond positively to feedback on work, making refinements as needed | C81: YES | D81: YES | E81: YES | L81: 0 | N81: NONE | O81: 0 | P81: FULL
A82: S12 | B82: Apply the naming conventions, file formats and version control for the work | C82: YES | D82: YES | E82: YES | L82: 0 | N82: NONE | O82: 0 | P82: FULL
A83: S13 | B83: Deliver content in the correct format as required by the employer and clients | C83: YES | D83: YES | E83: YES | L83: 0 | N83: NONE | O83: 0 | P83: FULL
A84: S14 | B84: Use maths to describe problems, recreate physical systems or manipulate computer generated geometry | C84: YES | D84: YES | E84: YES | L84: 0 | N84: NONE | O84: 0 | P84: FULL
A85: S15 | B85: Move, store and organise assets created, ensuring data integrity, in order to enable their use throughout the rest of the pipeline | C85: YES | D85: YES | E85: YES | L85: 0 | N85: NONE | O85: 0 | P85: FULL
A86: S16 | B86: Analyse and determine the most appropriate approach to carry out the work | C86: YES | D86: YES | E86: YES | L86: 0 | N86: NONE | O86: 0 | P86: FULL
A87: S17 | B87: Trouble shoot VFX problems, taking responsibility for the course of action followed, including identifying opportunities to deliver viable solutions and sharing these outcomes. | C87: YES | D87: YES | E87: YES | L87: 0 | N87: NONE | O87: 0 | P87: FULL
A88: S18 | B88: Convert between common colour spaces, selecting the appropriate colour space for the given task and combining images from multiple colour spaces | C88: YES | D88: NO | E88: NO | L88: 0 | N88: NONE | O88: 0 | P88: FULL
A89: S19 | B89: Apply colour adjustments at the correct stage of the composite, using non-destructive adjustments where possible | C89: YES | D89: NO | E89: NO | L89: 0 | N89: NONE | O89: 0 | P89: FULL
A90: S20 | B90: Use patching techniques to remove unwanted objects within the live action footage | C90: YES | D90: NO | E90: NO | L90: 0 | N90: NONE | O90: 0 | P90: FULL
A91: S21 | B91: Use frame-by-frame painting to remove unwanted objects within the live action footage | C91: YES | D91: NO | E91: NO | L91: 0 | N91: NONE | O91: 0 | P91: FULL
A92: S22 | B92: Generate mattes by roto-scoping and luminance, difference and colour keying | C92: YES | D92: NO | E92: NO | L92: 0 | N92: NONE | O92: 0 | P92: FULL
A93: S23 | B93: Produce accurate roto-scope by correctly placing shapes, control points and keyframes | C93: YES | D93: NO | E93: NO | L93: 0 | N93: NONE | O93: 0 | P93: FULL
A94: S24 | B94: Accurately replicate motion blur within the roto-scope generated matte | C94: YES | D94: NO | E94: NO | L94: 0 | N94: NONE | O94: 0 | P94: FULL
A95: S25 | B95: Complete basic composites demonstrating keying, colour grading, re- timing and screen insertion | C95: YES | D95: NO | E95: NO | L95: 0 | N95: NONE | O95: 0 | P95: FULL
A96: S26 | B96: Complete basic live action and CGI composites demonstrating set extensions and simple CGI objects integrated into live action elements | C96: YES | D96: NO | E96: NO | L96: 0 | N96: NONE | O96: 0 | P96: FULL
A97: S27 | B97: Create accurate point tracks and planar tracks in line with production requirements | C97: YES | D97: NO | E97: NO | L97: 0 | N97: NONE | O97: 0 | P97: FULL
A98: S28 | B98: Apply render settings across multiple assets | C98: NO | D98: YES | E98: NO | L98: 0 | N98: NONE | O98: 0 | P98: FULL
A99: S29 | B99: Analyse, interpret and use on-set data and information | C99: NO | D99: YES | E99: NO | L99: 0 | N99: NONE | O99: 0 | P99: FULL
A100: S30 | B100: Model and manipulate geometry for scene reconstruction | C100: NO | D100: YES | E100: NO | L100: 0 | N100: NONE | O100: 0 | P100: FULL
A101: S31 | B101: Select and use software to create: a model, a texture map, puppet rig or blocked animation to meet the requirements of the brief | C101: NO | D101: YES | E101: NO | L101: 0 | N101: NONE | O101: 0 | P101: FULL
A102: S32 | B102: Review assets created with the relevant people, offering suggestions to assist others with the production | C102: NO | D102: YES | E102: NO | L102: 0 | N102: NONE | O102: 0 | P102: FULL
A103: S33 | B103: Capture and work with photogrammetry and convert it to useable 3D geometry and cameras | C103: NO | D103: YES | E103: NO | L103: 0 | N103: NONE | O103: 0 | P103: FULL
A104: S34 | B104: Optimise and rebuild assets/scenes for real time rendering | C104: NO | D104: YES | E104: NO | L104: 0 | N104: NONE | O104: 0 | P104: FULL
A105: S35 | B105: Assemble, layout and maintain assets into project, sequence, or shot based environments | C105: NO | D105: YES | E105: NO | L105: 0 | N105: NONE | O105: 0 | P105: FULL
A106: S36 | B106: Identify, collect and migrate data to/from a range of systems | C106: NO | D106: NO | E106: YES | L106: 0 | N106: NONE | O106: 0 | P106: FULL
A107: S37 | B107: Manipulate and link different data sets as required | C107: NO | D107: NO | E107: YES | L107: 0 | N107: NONE | O107: 0 | P107: FULL
A108: S38 | B108: Perform database queries across multiple tables to extract data for analysis | C108: NO | D108: NO | E108: YES | L108: 0 | N108: NONE | O108: 0 | P108: FULL
A109: S39 | B109: Monitor, manipulate and report on render queues | C109: NO | D109: NO | E109: YES | L109: 0 | N109: NONE | O109: 0 | P109: FULL
A110: S40 | B110: Monitor, track and report render resource usage | C110: NO | D110: NO | E110: YES | L110: 0 | N110: NONE | O110: 0 | P110: FULL
A111: S41 | B111: Investigate existing solutions or frameworks | C111: NO | D111: NO | E111: YES | L111: 0 | N111: NONE | O111: 0 | P111: FULL
A112: S42 | B112: Design and present proposed solutions and respond to feedback | C112: NO | D112: NO | E112: YES | L112: 0 | N112: NONE | O112: 0 | P112: FULL
A113: S43 | B113: Plan and document development roadmap | C113: NO | D113: NO | E113: YES | L113: 0 | N113: NONE | O113: 0 | P113: FULL
A114: S44 | B114: Troubleshoot individual artist input, output or archival problems | C114: NO | D114: NO | E114: YES | L114: 0 | N114: NONE | O114: 0 | P114: FULL
A115: S45 | B115: Develop small-scale tools, using existing pipeline frameworks and libraries | C115: NO | D115: NO | E115: YES | L115: 0 | N115: NONE | O115: 0 | P115: FULL
A116: S46 | B116: Support or troubleshoot pipeline and workflow tools | C116: NO | D116: NO | E116: YES | L116: 0 | N116: NONE | O116: 0 | P116: FULL
A117: S47 | B117: Create accurate point tracks and planar tracks in line with production requirements | C117: NO | D117: YES | E117: NO | L117: 0 | N117: NONE | O117: 0 | P117: FULL
B118: Behaviours
A119: B1 | B119: Work with sustained concentration and with attention to detail; able to self-check work for quality control | C119: YES | D119: YES | E119: YES | L119: =IF(F119:F125 = "FULLY MET",1,IF(F119:F125 = "PARTIALLY MET",0.5,IF(F119:F125 = "NOT MET",0,))) -> 0 | N119: NONE | O119: =IF(M119=1,1,IF(M119=0.5,0.5,IF(M119=0,0))) -> 0 | P119: =IF(O119=1,"NONE",IF(O119=0.5,"PARTIAL",IF(O119=0,"FULL"))) -> FULL
A120: B2 | B120: Work on own initiative, be proactive and inquisitive; but recognise your own level of authority and when it is necessary to escalate issues. Act in a professional and ethical manner, embracing equality, diversity and inclusion in the workplace. | C120: YES | D120: YES | E120: YES | L120: 0 | N120: NONE | O120: =IF(M120=1,1,IF(M120=0.5,0.5,IF(M120=0,0))) -> 0 | P120: =IF(O120=1,"NONE",IF(O120=0.5,"PARTIAL",IF(O120=0,"FULL"))) -> FULL
A121: B3 | B121: Think creatively and logically to solve technical problems - contribute to a process continual improvement of workflow and technique. Use initiative and innovation to problem solve, to provide creative solutions and opportunities for the production. | C121: YES | D121: YES | E121: YES | L121: 0 | N121: NONE | O121: =IF(M121=1,1,IF(M121=0.5,0.5,IF(M121=0,0))) -> 0 | P121: =IF(O121=1,"NONE",IF(O121=0.5,"PARTIAL",IF(O121=0,"FULL"))) -> FULL
A122: B4 | B122: Be flexible and able to work under pressure - managing and re-organising priorities and bringing multiple tasks to completion within deadlines, communicating progress as required | C122: YES | D122: YES | E122: YES | L122: 0 | N122: NONE | O122: =IF(M122=1,1,IF(M122=0.5,0.5,IF(M122=0,0))) -> 0 | P122: =IF(O122=1,"NONE",IF(O122=0.5,"PARTIAL",IF(O122=0,"FULL"))) -> FULL
A123: B5 | B123: Demonstrate judgement in assessing the use of emerging practice within the constraints of a production environment. Do not willingly accept second best, and be pragmatic about balancing client expectations against the available time and budget. | C123: YES | D123: YES | E123: YES | L123: 0 | N123: NONE | O123: =IF(M123=1,1,IF(M123=0.5,0.5,IF(M123=0,0))) -> 0 | P123: =IF(O123=1,"NONE",IF(O123=0.5,"PARTIAL",IF(O123=0,"FULL"))) -> FULL
A124: B6 | B124: Use different communication methods and tools to suit different audiences or situations and changes in circumstances to create and maintain positive, professional, trusting and ethical working relationships with your team and the wider range of internal, external and connected stakeholders. | C124: YES | D124: YES | E124: YES | L124: 0 | N124: PARTIAL | O124: =IF(M124=1,0.5,IF(M124=0.5,0.5,IF(M124=0,0))) -> 0 | P124: =IF(O124=0.5,"NONE",IF(O124=0,"PARTIAL")) -> PARTIAL
A125: B7 | B125: Maintain commercial confidentiality and professional practice at all times, and in all settings | C125: YES | D125: YES | E125: YES | L125: 0 | N125: NONE | O125: =IF(M125=1,1,IF(M125=0.5,0.5,IF(M125=0,0))) -> 0 | P125: =IF(O125=1,"NONE",IF(O125=0.5,"PARTIAL",IF(O125=0,"FULL"))) -> FULL
L128: Junior Visual Effects (VFX) Artist or Assistant Technical Director (ATD) (Level 4) - Junior VFX Artist (2D)
L130: Gross score | M130: =SUM(M25:M53,M71:M97,M119:M125) -> 0 | N130: Net Score | O130: =SUM(O25:O53,O71:O97,O119:O125) -> 0
L131: total KSB coverage | M131: =M130/O134 -> 0 | N131: total CoE KSB coverage | O131: =O130/O137 -> 0
N134: total KSBs | O134: 63
N135: fully mitigated | O135: 0
N136: partialy mitigated | O136: 3
N137: net KSB | O137: =O134-O135-(O136*0.5) -> 61.5
L140: Junior Visual Effects (VFX) Artist or Assistant Technical Director (ATD) (Level 4) - Junior VFX Artist (CG/3D)
L142: Gross score | M142: =SUM(M25:M43,M54:M55,M58:M62,M69,M71:M87,M98:M105,M117,M119:M125) -> 0 | N142: Net Score | O142: =SUM(O25:O43,O54:O55,O58:O62,O69,O71:O87,O98:O105,O117,O119:O125) -> 0
L143: total KSB coverage | M143: =M142/O146 -> 0 | N143: total CoE KSB coverage | O143: =O142/O149 -> 0
N146: total KSBs | O146: 60
N147: fully mitigated | O147: 0
N148: partialy mitigated | O148: 3
N149: net KSB | O149: =O146-O147-(O148*0.5) -> 58.5
L152: Junior Visual Effects (VFX) Artist or Assistant Technical Director (ATD) (Level 4) - Assistant Technical Director (VFX)
L154: Gross score | M154: =SUM(M25:M43,M56:M57,M63:M68,M71:M87,M106:M116,M119:M125) -> 0 | N154: Net Score | O154: =SUM(O25:O43,O56:O57,O63:O68,O71:O87,O106:O116,O119:O125) -> 0
L155: total KSB coverage | M155: =M154/O158 -> 0 | N155: total CoE KSB coverage | O155: =O154/O161 -> 0
N158: total KSBs | O158: 62
N159: fully mitigated | O159: 0
N160: partialy mitigated | O160: 3
N161: net KSB | O161: =O158-O159-(O160*0.5) -> 60.5
L164: TOTAL FOR ALL KSBs
L166: Gross score | M166: =SUM(M25:M125) -> 0 | N166: Net Score | O166: =SUM(O25:O125) -> 0
L167: total KSB coverage | M167: =M166/O170 -> 0 | N167: total CoE KSB coverage | O167: =O166/O173 -> 0
N170: total KSBs | O170: 99
N171: fully mitigated | O171: 0
N172: partialy mitigated | O172: 3
N173: net KSB | O173: =O170-O171-(O172*0.5) -> 97.5

Sheet ST1388
B1: START HERE
B2: Awarding body/Applicant:
B3: Please type the name of awarding body/applicant here
B4: Qualification name:
B5: Please type your qualification title here
B6: Programme title if applicable:
B7: Please type the programme title here
A10: EXAMPLE OF KSB MAPPING
A11: KSB | B11: KSB Statement | C11: KSB coverage Select the coverage provided by the qualification from the dropdown box | D11: Where in the qualification is the relevant content? Please reference precisely where the content you are citing as evidence is within the submitted documents - Document name/Module name/Specific page number | E11: Evidence Quote or copy & paste the relevant content from your referenced qualification documents. Please provide 1 - 3 references that best evidence the KSB and only refer to content that all students will cover regardless of option choice. The information you supply in this column, in conjunction with the Supporting Comments / Rationale column (Column F) should clearly and explicitly demonstrate the declared level of KSB coverage. | F11: Supporting Comments/Rationale Where the evidence in Column E does not clearly and explicitly provide the declared level of coverage or might not be obvious to someone who is not an expert in your qualification, use this space to explain how the level of KSB coverage is achieved by the qualification content - please be specific to the wording and meaning of the KSB statement. Where a KSB is not fully met, please provide the rationale for why you feel this is not achievable. | G11: Assessment method Provide information on the method(s) used to assess this KSB and relevant assessment materials.
A12: K7 | B12: Safe and professional working practices including health, safety, environment and legislative requirements relevant to the sector, the organisation and own role | C12: FULLY MET | D12: Qualification specification, pg 14-16 Module 2: Health, safety and professional working practices, pg 6 | E12: Module 2: LO1 - Understand the importance of health and safety in the workplace. LO2 - Understand the application of health and safety legislation in the workplace. LO3 - Understand how to apply safe working practices to work activities. Indicative content: local, regional, national health & safety regulations, codes of practice, site safety, health & safety promotion, health & safety measures, PPE, manual handling, equipment management, waste disposal, risk management, risk assessment | F12: Learners will be able to show a full understanding of Health & Safety and legislative requirements relevant to the role. The indicative content on Pg 16 of the qualification specification shows they will cover Health & Safety across the wider sector, and then identify some measures that may be specific to certain organisations. Learners will also analyse the role of the employer and the environment with regards to applying Health & Safety working practices and processes. | G12: Module 2 - students will produce a written report using a brief. There is also a short answer paper. Module 2 Assessment Brief pg 7-8 refers.
A13: S23 | B13: Communicate effectively (verbal, non-verbal, written, digital) in manner relevant to the target audience | C13: FULLY MET | D13: Qualification specification, pg 21-22 Module 6: The Fundamentals of Practice, pg 12 Module 9: Personal and Professional Development Skills, pg 11 | E13: Module 6: LO2 - Know how to use digital devices and databases relevant to your workplace. Module 9: LO1 - Understand the uses of different methods of communication. LO3 - Be able to communicate effectively with different audiences. Indicative content: verbal and non-verbal communication skills, presentation skills, academic and non-academic writing style, writing skills | F13: Learners will cover verbal, non-verbal, written and digital communications, and demonstrate practical skills by completing assessment tasks which will include simulated work environments and preparing presentations targeting different audiences. Learners will develop the skills to communicate with people in a professional capacity including co-workers, line managers, clients, contractors and the public. | G13: Module 6 - case study. Module 9 - scenarios in simulated work environment, students will produce presentation. Module 9 assessment pg 4.
B18: Photographer (level 4)
B19: Return to Guide
A20: KSB | B20: KSB Statement | C20: KSB coverage Select the coverage provided by the qualification from the dropdown box | D20: Where in the qualification is the relevant content? Please reference precisely where the content you are citing as evidence is within the submitted documents - Document name/Module name/Specific page number | E20: Evidence Quote or copy & paste the relevant content from your referenced qualification documents. Please provide 1 - 3 references that best evidence the KSB and only refer to content that all students will cover regardless of option choice. The information you supply in this column, in conjunction with the Supporting Comments / Rationale column (Column F) should clearly and explicitly demonstrate the declared level of KSB coverage. | F20: Supporting Comments/Rationale Where the evidence in Column E does not clearly and explicitly provide the declared level of coverage or might not be obvious to someone who is not an expert in your qualification, use this space to explain how the level of KSB coverage is achieved by the qualification content - please be specific to the wording and meaning of the KSB statement. Where a KSB is not fully met, please provide the rationale for why you feel this is not achievable. | G20: Assessment method Provide information on the method(s) used to assess this KSB and relevant assessment materials. | I20: AB Score | J20: IM Score | K20: Mitigations | L20: CoE Score | M20: Outstanding Requirement | N20: IM Comment | O20: IM moderation | P20: G7 QA | Q20: IM G7 Response | R20: Conclusion
B21: Knowledge
A22: K1 | B22: Range of functions, roles and skills within photo imaging and employers and professional bodies representing the industry. | I22: =IF(C22:C45 = "FULLY MET",1,IF(C22:C45 = "PARTIALLY MET",0.5,IF(C22:C45 = "NOT MET",0,))) -> 0 | K22: NONE | L22: =IF(J22=1,1,IF(J22=0.5,0.5,IF(J22=0,0))) -> 0 | M22: =IF(L22=1,"NONE",IF(L22=0.5,"PARTIAL",IF(L22=0,"FULL"))) -> FULL
A23: K2 | B23: Approaches to and resources for maintaining up-to-date knowledge of existing and evolving technology, trends and platforms. | I23: 0 | K23: NONE | L23: =IF(J23=1,1,IF(J23=0.5,0.5,IF(J23=0,0))) -> 0 | M23: =IF(L23=1,"NONE",IF(L23=0.5,"PARTIAL",IF(L23=0,"FULL"))) -> FULL
A24: K3 | B24: Own responsibilities towards health and safety and how to recognise and address environmental hazards in their workplace. | I24: 0 | K24: NONE | L24: 0 | M24: FULL
A25: K4 | B25: Legislation, regulations and guidance for the photo imaging industry including copyright and intellectual property, GDPR, model release and photography of children. | I25: 0 | K25: NONE | L25: 0 | M25: FULL
A26: K5 | B26: Insurance requirements including professional indemnity and public liability. | I26: 0 | K26: NONE | L26: 0 | M26: FULL
A27: K6 | B27: Camera settings and the relationship between; aperture, shutter speed and ISO. | I27: 0 | K27: NONE | L27: 0 | M27: FULL
A28: K7 | B28: How to interpret a photographic brief prior to a shoot including client/colleague engagement. | I28: 0 | K28: NONE | L28: 0 | M28: FULL
A29: K8 | B29: Potential factors that can affect what can be achieved upon receiving the brief including aesthetics, own personal style, legal and ethical matters. | I29: 0 | K29: NONE | L29: 0 | M29: FULL
A30: K9 | B30: Resource requirements including budget, time, suppliers, technical specifications and sustainability considerations. | I30: 0 | K30: NONE | L30: 0 | M30: FULL
A31: K10 | B31: Own business or organisation’s strategy and objectives, the business environment and business issues related to photographic projects and customer needs. | I31: 0 | K31: NONE | L31: 0 | M31: FULL
A32: K11 | B32: How and when to work independently or interact within a team, understanding own role within the organisation. | I32: 0 | K32: NONE | L32: 0 | M32: FULL
A33: K12 | B33: Importance of communications and customer/client service to the organisation, including how to handle enquiries, comments and complaints. | I33: 0 | K33: NONE | L33: 0 | M33: FULL
A34: K13 | B34: How to safely set up, operate and store photographic equipment in different environments and situations. | I34: 0 | K34: NONE | L34: 0 | M34: FULL
A35: K14 | B35: Causes of common faults/issues in photographic equipment, fault- finding, the maintenance and fixing of faults and knowing when to escalate an issue. | I35: 0 | K35: NONE | L35: 0 | M35: FULL
A36: K15 | B36: Principles of light including using available light combinations (e.g., daylight, free- standing lights and camera mounted flash), lenses and exposure. | I36: 0 | K36: NONE | L36: 0 | M36: FULL
A37: K16 | B37: Principles of composition such as rule of thirds, leading lines and symmetry. | I37: 0 | K37: NONE | L37: 0 | M37: FULL
A38: K17 | B38: End-to-end photographic workflow and planning process, the key stages including postproduction and own role and responsibilities within this. | I38: 0 | K38: NONE | L38: 0 | M38: FULL
A39: K18 | B39: Importance of metadata and keywording in allowing for the search and proper identifications of stored images and how to enter key metadata to store specific information in photo editing software in the workplace. | I39: 0 | K39: NONE | L39: 0 | M39: FULL
A40: K19 | B40: Range of available industry-standard software relevant to image retouching and how to use it. | I40: 0 | K40: NONE | L40: 0 | M40: FULL
A41: K20 | B41: Colour management – the reasons for, and use of, colour profiles and the calibration of monitors for printing purposes. | I41: 0 | K41: NONE | L41: 0 | M41: FULL
A42: K21 | B42: How to manage different formats, including the digitisation of historic images and how to convert file formats, selecting the most appropriate file format and the significance of lossy or lossless compression. | I42: 0 | K42: NONE | L42: 0 | M42: FULL
A43: K22 | B43: Concepts and techniques of video editing required to construct video sequences and edit points to tell a story using industry-standard editing systems. | I43: 0 | K43: NONE | L43: 0 | M43: FULL
A44: K23 | B44: How to make sure the imaging system is secure, free from viruses and password protected. | I44: 0 | K44: NONE | L44: 0 | M44: FULL
A45: K24 | B45: Own organisation’s procedures relating to sending and receiving material in the format to meet the customer/client brief. | I45: 0 | K45: NONE | L45: 0 | M45: FULL
B46: Skills
A47: S1 | B47: Comply with legislation, regulations and guidance including copyright and health & safety. | I47: =IF(C47:C71 = "FULLY MET",1,IF(C47:C71 = "PARTIALLY MET",0.5,IF(C47:C71 = "NOT MET",0,))) -> 0 | K47: NONE | L47: =IF(J47=1,1,IF(J47=0.5,0.5,IF(J47=0,0))) -> 0 | M47: =IF(L47=1,"NONE",IF(L47=0.5,"PARTIAL",IF(L47=0,"FULL"))) -> FULL
A48: S2 | B48: Provide necessary permissions for use of images and issue licenses for own work as required. | I48: 0 | K48: NONE | L48: =IF(J48=1,1,IF(J48=0.5,0.5,IF(J48=0,0))) -> 0 | M48: =IF(L48=1,"NONE",IF(L48=0.5,"PARTIAL",IF(L48=0,"FULL"))) -> FULL
A49: S3 | B49: Use reliable information to keep up-to-date with the new tools, equipment, and other related technology, and how they affect own work. | I49: 0 | K49: NONE | L49: 0 | M49: FULL
A50: S4 | B50: Discuss with the customer/client the purpose of the work, objectives, the deadline, budget and amount of flexibility in meeting the brief. | I50: 0 | K50: NONE | L50: 0 | M50: FULL
A51: S5 | B51: Use the information gathered from the customer/client to review, evaluate and select the preferred approach to the work. | I51: 0 | K51: NONE | L51: 0 | M51: FULL
A52: S6 | B52: Prepare and present the possible approaches to the brief to the client/customer. | I52: 0 | K52: NONE | L52: 0 | M52: FULL
A53: S7 | B53: Identify and mitigate health and safety issues likely to arise from the brief. | I53: 0 | K53: NONE | L53: 0 | M53: FULL
A54: S8 | B54: Manage own workload and operate both individually and as part of a wider photographic team, keeping internal and external stakeholders updated on progress and reporting any issues arising. | I54: 0 | K54: NONE | L54: 0 | M54: FULL
A55: S9 | B55: Manage developing situations with customers/clients such as customer relations, complaints, dissatisfaction and business environment and know when to escalate these as required. | I55: 0 | K55: NONE | L55: 0 | M55: FULL
A56: S10 | B56: Select equipment and resources suitable for the task considering, the end purpose of the imagery, the location and existing light conditions. | I56: 0 | K56: NONE | L56: 0 | M56: FULL
A57: S11 | B57: Assemble and position equipment safely, checking for any issues and carrying out repairs as required. | I57: 0 | K57: NONE | L57: 0 | M57: FULL
A58: S12 | B58: Determine the camera settings and lighting arrangements to meet the task and adjust if required. | I58: 0 | K58: NONE | L58: 0 | M58: FULL
A59: S13 | B59: Take images that achieve the viewpoint, composition and point of focus. | I59: 0 | K59: NONE | L59: 0 | M59: FULL
A60: S14 | B60: Record, clearly and accurately, information required throughout workflow. | I60: 0 | K60: NONE | L60: 0 | M60: FULL
A61: S15 | B61: Embed copyright and other key metadata information in images in standard image file formats. | I61: 0 | K61: NONE | L61: 0 | M61: FULL
A62: S16 | B62: Assign keywords to classify images including by content, topic and concept. | I62: 0 | K62: NONE | L62: 0 | M62: FULL
A63: S17 | B63: Manage key metadata so it is preserved throughout the workflow to storage. | I63: 0 | K63: NONE | L63: 0 | M63: FULL
A64: S18 | B64: Export finished content or work-in-progress with metadata, from post-production systems to the customer/client. | I64: 0 | K64: NONE | L64: 0 | M64: FULL
A65: S19 | B65: Determine an agreed approach with the client/customer to be adopted for retouching the image(s) in line with their requirements. | I65: 0 | K65: NONE | L65: 0 | M65: FULL
A66: S20 | B66: Produce retouched images, check the quality of the retouched images against client requirements and workplace standards. | I66: 0 | K66: NONE | L66: 0 | M66: FULL
A67: S21 | B67: Follow protocol to save the retouched image files in the correct format ready for outputting or storage. | I67: 0 | K67: NONE | L67: 0 | M67: FULL
A68: S22 | B68: Implement workplace security procedures to check the system security, virus protection and file security. | I68: 0 | K68: NONE | L68: 0 | M68: FULL
A69: S23 | B69: Diagnose any problems in the imaging system using problem solving techniques. | I69: 0 | K69: NONE | L69: 0 | M69: FULL
A70: S24 | B70: Review and implement procedures in place to maintain a history of all image files. | I70: 0 | K70: NONE | L70: 0 | M70: FULL
A71: S25 | B71: Undertake continuing professional development within the role, reflecting systematically on progress and identifying opportunities for meaningful improvement. | I71: 0 | K71: NONE | L71: 0 | M71: FULL
B72: Behaviours
A73: B1 | B73: Works collaboratively to build and maintain positive relationships with colleagues, customers/clients and suppliers. | I73: =IF(C73:C77 = "FULLY MET",1,IF(C73:C77 = "PARTIALLY MET",0.5,IF(C73:C77 = "NOT MET",0,))) -> 0 | K73: NONE | L73: =IF(J73=1,1,IF(J73=0.5,0.5,IF(J73=0,0))) -> 0 | M73: =IF(L73=1,"NONE",IF(L73=0.5,"PARTIAL",IF(L73=0,"FULL"))) -> FULL
A74: B2 | B74: Takes ownership of work, with a strong work ethic and commitment to achieving high standards. | I74: 0 | K74: NONE | L74: =IF(J74=1,1,IF(J74=0.5,0.5,IF(J74=0,0))) -> 0 | M74: =IF(L74=1,"NONE",IF(L74=0.5,"PARTIAL",IF(L74=0,"FULL"))) -> FULL
A75: B3 | B75: Committed to keeping up to date with new technologies, including viable sustainability solutions, and industry best practice. Resourceful in finding creative solutions to solve problems. | I75: 0 | K75: NONE | L75: 0 | M75: FULL
A76: B4 | B76: Works in a professional and ethical manner, embracing equality, diversity and inclusion in the workplace. | I76: 0 | K76: NONE | L76: 0 | M76: FULL
A77: B5 | B77: Reflective. Considers the results of the images or videography created and identifies areas for improvement or re-use. | I77: 0 | K77: NONE | L77: 0 | M77: FULL
I80: Gross score | J80: =SUM(J22:J77) -> 0 | K80: Net Score | L80: =SUM(L22:L77) -> 0
I81: total KSB coverage | J81: =J80/L84 -> 0 | K81: total CoE KSB coverage | L81: =L80/L87 -> 0
K84: total KSBs | L84: 54
K85: fully mitigated | L85: 0
K86: partialy mitigated | L86: 0
K87: net KSB | L87: =L84-L85-(L86*0.5) -> 54

Sheet Source filters (hidden)
A4: FULLY MET
A5: PARTIALLY MET
A6: NOT MET
